{"text_format":"1","workbook":"xlsx","n_sheets":1,"sheets":["Sheet1"],"not_rendered":{"charts":0,"images":0,"macros":1,"external_links":0,"defined_names":1,"comments":0,"pivot_tables":0},"unopened":[],"bounds":{"document_bytes":16777216,"sheet_cells":100000,"rows_first":2000,"rows_last":500,"rows_between":2000,"halvings":0,"cell_chars":16384,"cell_head_chars":4096},"cells_cut":0,"cells_raw":0,"read":"whole","date_system":"1900"}

{"sheet":"Sheet1","index":0,"n_rows":1750,"n_cols":17,"rows_kept":1750,"cut":false,"hidden":false,"merged":[[50,1,50,5],[43,15,44,16],[131,8,137,12],[115,1,115,5],[14,15,15,16],[5,8,11,12],[58,1,58,5],[54,1,54,5],[27,1,27,5],[26,1,26,5],[41,7,42,14],[43,12,44,14],[43,7,44,11],[39,13,40,14],[3,8,3,12],[3,0,11,7],[22,1,22,5],[21,1,21,5],[14,7,15,11],[14,12,15,14],[12,0,13,5],[10,13,11,14],[12,7,13,14],[18,1,18,5],[34,8,40,12],[28,0,28,5],[32,8,32,12],[41,0,42,5],[24,1,24,5],[51,1,51,5],[25,1,25,5],[23,1,23,5],[32,0,40,7],[47,1,47,5],[149,1,149,5],[59,1,59,5],[60,1,60,5],[136,13,137,14],[138,0,139,5],[138,7,139,14],[52,1,52,5],[55,1,55,5],[107,13,108,14],[109,0,110,5],[109,7,110,14],[111,7,112,11],[111,12,112,14],[100,0,108,7],[85,1,85,5],[87,1,87,5],[88,1,88,5],[96,1,96,5],[100,8,100,12],[102,8,108,12],[89,1,89,5],[92,1,92,5],[95,1,95,5],[74,13,75,14],[76,0,77,5],[76,7,77,14],[78,7,79,11],[78,12,79,14],[67,0,75,7],[125,1,125,5],[129,0,137,7],[129,8,129,12],[140,7,141,11],[140,12,141,14],[173,1,173,5],[176,1,176,5],[177,1,177,5],[178,1,178,5],[118,1,118,5],[119,1,119,5],[120,1,120,5],[91,1,91,5],[90,1,90,5],[56,1,56,5],[57,1,57,5],[53,1,53,5],[150,1,150,5],[151,1,151,5],[93,1,93,5],[86,1,86,5],[69,8,75,12],[94,1,94,5],[121,1,121,5],[122,1,122,5],[123,1,123,5],[124,1,124,5],[63,1,63,5],[67,8,67,12],[61,1,61,5],[62,1,62,5],[82,1,82,5],[144,1,144,5],[147,1,147,5],[148,1,148,5],[152,1,152,5],[153,1,153,5],[202,1,202,5],[205,1,205,5],[206,1,206,5],[207,1,207,5],[165,13,166,14],[167,0,168,5],[167,7,168,14],[169,7,170,11],[169,12,170,14],[154,1,154,5],[158,0,166,7],[158,8,158,12],[160,8,166,12],[179,1,179,5],[180,1,180,5],[181,1,181,5],[182,1,182,5],[231,1,231,5],[234,1,234,5],[235,1,235,5],[236,1,236,5],[194,13,195,14],[196,0,197,5],[196,7,197,14],[198,7,199,11],[198,12,199,14],[183,1,183,5],[187,0,195,7],[187,8,187,12],[189,8,195,12],[208,1,208,5],[209,1,209,5],[210,1,210,5],[211,1,211,5],[260,1,260,5],[263,1,263,5],[264,1,264,5],[265,1,265,5],[223,13,224,14],[225,0,226,5],[225,7,226,14],[227,7,228,11],[227,12,228,14],[212,1,212,5],[216,0,224,7],[216,8,216,12],[218,8,224,12],[237,1,237,5],[238,1,238,5],[239,1,239,5],[240,1,240,5],[289,1,289,5],[292,1,292,5],[293,1,293,5],[294,1,294,5],[252,13,253,14],[254,0,255,5],[254,7,255,14],[256,7,257,11],[256,12,257,14],[241,1,241,5],[245,0,253,7],[245,8,245,12],[247,8,253,12],[266,1,266,5],[267,1,267,5],[268,1,268,5],[269,1,269,5],[318,1,318,5],[321,1,321,5],[322,1,322,5],[323,1,323,5],[281,13,282,14],[283,0,284,5],[283,7,284,14],[285,7,286,11],[285,12,286,14],[270,1,270,5],[274,0,282,7],[274,8,274,12],[276,8,282,12],[295,1,295,5],[296,1,296,5],[297,1,297,5],[298,1,298,5],[347,1,347,5],[350,1,350,5],[351,1,351,5],[352,1,352,5],[310,13,311,14],[312,0,313,5],[312,7,313,14],[314,7,315,11],[314,12,315,14],[299,1,299,5],[303,0,311,7],[303,8,303,12],[305,8,311,12],[324,1,324,5],[325,1,325,5],[326,1,326,5],[327,1,327,5],[376,1,376,5],[379,1,379,5],[380,1,380,5],[381,1,381,5],[339,13,340,14],[341,0,342,5],[341,7,342,14],[343,7,344,11],[343,12,344,14],[328,1,328,5],[332,0,340,7],[332,8,332,12],[334,8,340,12],[353,1,353,5],[354,1,354,5],[355,1,355,5],[356,1,356,5],[405,1,405,5],[408,1,408,5],[409,1,409,5],[410,1,410,5],[368,13,369,14],[370,0,371,5],[370,7,371,14],[372,7,373,11],[372,12,373,14],[357,1,357,5],[361,0,369,7],[361,8,361,12],[363,8,369,12],[382,1,382,5],[383,1,383,5],[384,1,384,5],[385,1,385,5],[434,1,434,5],[437,1,437,5],[438,1,438,5],[439,1,439,5],[397,13,398,14],[399,0,400,5],[399,7,400,14],[401,7,402,11],[401,12,402,14],[386,1,386,5],[390,0,398,7],[390,8,390,12],[392,8,398,12],[411,1,411,5],[412,1,412,5],[413,1,413,5],[414,1,414,5],[463,1,463,5],[466,1,466,5],[467,1,467,5],[468,1,468,5],[426,13,427,14],[428,0,429,5],[428,7,429,14],[430,7,431,11],[430,12,431,14],[415,1,415,5],[419,0,427,7],[419,8,419,12],[421,8,427,12],[440,1,440,5],[441,1,441,5],[442,1,442,5],[443,1,443,5],[492,1,492,5],[495,1,495,5],[496,1,496,5],[497,1,497,5],[455,13,456,14],[457,0,458,5],[457,7,458,14],[459,7,460,11],[459,12,460,14],[444,1,444,5],[448,0,456,7],[448,8,448,12],[450,8,456,12],[469,1,469,5],[470,1,470,5],[471,1,471,5],[472,1,472,5],[521,1,521,5],[524,1,524,5],[525,1,525,5],[526,1,526,5],[484,13,485,14],[486,0,487,5],[486,7,487,14],[488,7,489,11],[488,12,489,14],[473,1,473,5],[477,0,485,7],[477,8,477,12],[479,8,485,12],[498,1,498,5],[499,1,499,5],[500,1,500,5],[501,1,501,5],[550,1,550,5],[553,1,553,5],[554,1,554,5],[555,1,555,5],[513,13,514,14],[515,0,516,5],[515,7,516,14],[517,7,518,11],[517,12,518,14],[502,1,502,5],[506,0,514,7],[506,8,506,12],[508,8,514,12],[527,1,527,5],[528,1,528,5],[529,1,529,5],[530,1,530,5],[579,1,579,5],[582,1,582,5],[583,1,583,5],[584,1,584,5],[542,13,543,14],[544,0,545,5],[544,7,545,14],[546,7,547,11],[546,12,547,14],[531,1,531,5],[535,0,543,7],[535,8,535,12],[537,8,543,12],[556,1,556,5],[557,1,557,5],[558,1,558,5],[559,1,559,5],[608,1,608,5],[611,1,611,5],[612,1,612,5],[613,1,613,5],[571,13,572,14],[573,0,574,5],[573,7,574,14],[575,7,576,11],[575,12,576,14],[560,1,560,5],[564,0,572,7],[564,8,564,12],[566,8,572,12],[585,1,585,5],[586,1,586,5],[587,1,587,5],[588,1,588,5],[637,1,637,5],[640,1,640,5],[641,1,641,5],[642,1,642,5],[600,13,601,14],[602,0,603,5],[602,7,603,14],[604,7,605,11],[604,12,605,14],[589,1,589,5],[593,0,601,7],[593,8,593,12],[595,8,601,12],[614,1,614,5],[615,1,615,5],[616,1,616,5],[617,1,617,5],[666,1,666,5],[669,1,669,5],[670,1,670,5],[671,1,671,5],[629,13,630,14],[631,0,632,5],[631,7,632,14],[633,7,634,11],[633,12,634,14],[618,1,618,5],[622,0,630,7],[622,8,622,12],[624,8,630,12],[643,1,643,5],[644,1,644,5],[645,1,645,5],[646,1,646,5],[695,1,695,5],[698,1,698,5],[699,1,699,5],[700,1,700,5],[658,13,659,14],[660,0,661,5],[660,7,661,14],[662,7,663,11],[662,12,663,14],[647,1,647,5],[651,0,659,7],[651,8,651,12],[653,8,659,12],[672,1,672,5],[673,1,673,5],[674,1,674,5],[675,1,675,5],[724,1,724,5],[727,1,727,5],[728,1,728,5],[729,1,729,5],[687,13,688,14],[689,0,690,5],[689,7,690,14],[691,7,692,11],[691,12,692,14],[676,1,676,5],[680,0,688,7],[680,8,680,12],[682,8,688,12],[701,1,701,5],[702,1,702,5],[703,1,703,5],[704,1,704,5],[753,1,753,5],[756,1,756,5],[757,1,757,5],[758,1,758,5],[716,13,717,14],[718,0,719,5],[718,7,719,14],[720,7,721,11],[720,12,721,14],[705,1,705,5],[709,0,717,7],[709,8,709,12],[711,8,717,12],[730,1,730,5],[731,1,731,5],[732,1,732,5],[733,1,733,5],[782,1,782,5],[785,1,785,5],[786,1,786,5],[787,1,787,5],[745,13,746,14],[747,0,748,5],[747,7,748,14],[749,7,750,11],[749,12,750,14],[734,1,734,5],[738,0,746,7],[738,8,738,12],[740,8,746,12],[759,1,759,5],[760,1,760,5],[761,1,761,5],[762,1,762,5],[811,1,811,5],[814,1,814,5],[815,1,815,5],[816,1,816,5],[774,13,775,14],[776,0,777,5],[776,7,777,14],[778,7,779,11],[778,12,779,14],[763,1,763,5],[767,0,775,7],[767,8,767,12],[769,8,775,12],[788,1,788,5],[789,1,789,5],[790,1,790,5],[791,1,791,5],[840,1,840,5],[843,1,843,5],[844,1,844,5],[845,1,845,5],[803,13,804,14],[805,0,806,5],[805,7,806,14],[807,7,808,11],[807,12,808,14],[792,1,792,5],[796,0,804,7],[796,8,796,12],[798,8,804,12],[817,1,817,5],[818,1,818,5],[819,1,819,5],[820,1,820,5],[869,1,869,5],[872,1,872,5],[873,1,873,5],[874,1,874,5],[832,13,833,14],[834,0,835,5],[834,7,835,14],[836,7,837,11],[836,12,837,14],[821,1,821,5],[825,0,833,7],[825,8,825,12],[827,8,833,12],[846,1,846,5],[847,1,847,5],[848,1,848,5],[849,1,849,5],[898,1,898,5],[901,1,901,5],[902,1,902,5],[903,1,903,5],[861,13,862,14],[863,0,864,5],[863,7,864,14],[865,7,866,11],[865,12,866,14],[850,1,850,5],[854,0,862,7],[854,8,854,12],[856,8,862,12],[875,1,875,5],[876,1,876,5],[877,1,877,5],[878,1,878,5],[927,1,927,5],[930,1,930,5],[931,1,931,5],[932,1,932,5],[890,13,891,14],[892,0,893,5],[892,7,893,14],[894,7,895,11],[894,12,895,14],[879,1,879,5],[883,0,891,7],[883,8,883,12],[885,8,891,12],[904,1,904,5],[905,1,905,5],[906,1,906,5],[907,1,907,5],[956,1,956,5],[959,1,959,5],[960,1,960,5],[961,1,961,5],[919,13,920,14],[921,0,922,5],[921,7,922,14],[923,7,924,11],[923,12,924,14],[908,1,908,5],[912,0,920,7],[912,8,912,12],[914,8,920,12],[933,1,933,5],[934,1,934,5],[935,1,935,5],[936,1,936,5],[985,1,985,5],[988,1,988,5],[989,1,989,5],[990,1,990,5],[948,13,949,14],[950,0,951,5],[950,7,951,14],[952,7,953,11],[952,12,953,14],[937,1,937,5],[941,0,949,7],[941,8,941,12],[943,8,949,12],[962,1,962,5],[963,1,963,5],[964,1,964,5],[965,1,965,5],[1014,1,1014,5],[1017,1,1017,5],[1018,1,1018,5],[1019,1,1019,5],[977,13,978,14],[979,0,980,5],[979,7,980,14],[981,7,982,11],[981,12,982,14],[966,1,966,5],[970,0,978,7],[970,8,970,12],[972,8,978,12],[991,1,991,5],[992,1,992,5],[993,1,993,5],[994,1,994,5],[1043,1,1043,5],[1046,1,1046,5],[1047,1,1047,5],[1048,1,1048,5],[1006,13,1007,14],[1008,0,1009,5],[1008,7,1009,14],[1010,7,1011,11],[1010,12,1011,14],[995,1,995,5],[999,0,1007,7],[999,8,999,12],[1001,8,1007,12],[1020,1,1020,5],[1021,1,1021,5],[1022,1,1022,5],[1023,1,1023,5],[1072,1,1072,5],[1075,1,1075,5],[1076,1,1076,5],[1077,1,1077,5],[1035,13,1036,14],[1037,0,1038,5],[1037,7,1038,14],[1039,7,1040,11],[1039,12,1040,14],[1024,1,1024,5],[1028,0,1036,7],[1028,8,1028,12],[1030,8,1036,12],[1049,1,1049,5],[1050,1,1050,5],[1051,1,1051,5],[1052,1,1052,5],[1101,1,1101,5],[1104,1,1104,5],[1105,1,1105,5],[1106,1,1106,5],[1064,13,1065,14],[1066,0,1067,5],[1066,7,1067,14],[1068,7,1069,11],[1068,12,1069,14],[1053,1,1053,5],[1057,0,1065,7],[1057,8,1057,12],[1059,8,1065,12],[1078,1,1078,5],[1079,1,1079,5],[1080,1,1080,5],[1081,1,1081,5],[1130,1,1130,5],[1133,1,1133,5],[1134,1,1134,5],[1135,1,1135,5],[1093,13,1094,14],[1095,0,1096,5],[1095,7,1096,14],[1097,7,1098,11],[1097,12,1098,14],[1082,1,1082,5],[1086,0,1094,7],[1086,8,1086,12],[1088,8,1094,12],[1107,1,1107,5],[1108,1,1108,5],[1109,1,1109,5],[1110,1,1110,5],[1159,1,1159,5],[1162,1,1162,5],[1163,1,1163,5],[1164,1,1164,5],[1122,13,1123,14],[1124,0,1125,5],[1124,7,1125,14],[1126,7,1127,11],[1126,12,1127,14],[1111,1,1111,5],[1115,0,1123,7],[1115,8,1115,12],[1117,8,1123,12],[1136,1,1136,5],[1137,1,1137,5],[1138,1,1138,5],[1139,1,1139,5],[1188,1,1188,5],[1191,1,1191,5],[1192,1,1192,5],[1193,1,1193,5],[1151,13,1152,14],[1153,0,1154,5],[1153,7,1154,14],[1155,7,1156,11],[1155,12,1156,14],[1140,1,1140,5],[1144,0,1152,7],[1144,8,1144,12],[1146,8,1152,12],[1165,1,1165,5],[1166,1,1166,5],[1167,1,1167,5],[1168,1,1168,5],[1217,1,1217,5],[1220,1,1220,5],[1221,1,1221,5],[1222,1,1222,5],[1180,13,1181,14],[1182,0,1183,5],[1182,7,1183,14],[1184,7,1185,11],[1184,12,1185,14],[1169,1,1169,5],[1173,0,1181,7],[1173,8,1173,12],[1175,8,1181,12],[1194,1,1194,5],[1195,1,1195,5],[1196,1,1196,5],[1197,1,1197,5],[1246,1,1246,5],[1249,1,1249,5],[1250,1,1250,5],[1251,1,1251,5],[1209,13,1210,14],[1211,0,1212,5],[1211,7,1212,14],[1213,7,1214,11],[1213,12,1214,14],[1198,1,1198,5],[1202,0,1210,7],[1202,8,1202,12],[1204,8,1210,12],[1223,1,1223,5],[1224,1,1224,5],[1225,1,1225,5],[1226,1,1226,5],[1275,1,1275,5],[1278,1,1278,5],[1279,1,1279,5],[1280,1,1280,5],[1238,13,1239,14],[1240,0,1241,5],[1240,7,1241,14],[1242,7,1243,11],[1242,12,1243,14],[1227,1,1227,5],[1231,0,1239,7],[1231,8,1231,12],[1233,8,1239,12],[1252,1,1252,5],[1253,1,1253,5],[1254,1,1254,5],[1255,1,1255,5],[1304,1,1304,5],[1307,1,1307,5],[1308,1,1308,5],[1309,1,1309,5],[1267,13,1268,14],[1269,0,1270,5],[1269,7,1270,14],[1271,7,1272,11],[1271,12,1272,14],[1256,1,1256,5],[1260,0,1268,7],[1260,8,1260,12],[1262,8,1268,12],[1281,1,1281,5],[1282,1,1282,5],[1283,1,1283,5],[1284,1,1284,5],[1333,1,1333,5],[1336,1,1336,5],[1337,1,1337,5],[1338,1,1338,5],[1296,13,1297,14],[1298,0,1299,5],[1298,7,1299,14],[1300,7,1301,11],[1300,12,1301,14],[1285,1,1285,5],[1289,0,1297,7],[1289,8,1289,12],[1291,8,1297,12],[1310,1,1310,5],[1311,1,1311,5],[1312,1,1312,5],[1313,1,1313,5],[1362,1,1362,5],[1365,1,1365,5],[1366,1,1366,5],[1367,1,1367,5],[1325,13,1326,14],[1327,0,1328,5],[1327,7,1328,14],[1329,7,1330,11],[1329,12,1330,14],[1314,1,1314,5],[1318,0,1326,7],[1318,8,1318,12],[1320,8,1326,12],[1339,1,1339,5],[1340,1,1340,5],[1341,1,1341,5],[1342,1,1342,5],[1391,1,1391,5],[1394,1,1394,5],[1395,1,1395,5],[1396,1,1396,5],[1354,13,1355,14],[1356,0,1357,5],[1356,7,1357,14],[1358,7,1359,11],[1358,12,1359,14],[1343,1,1343,5],[1347,0,1355,7],[1347,8,1347,12],[1349,8,1355,12],[1368,1,1368,5],[1369,1,1369,5],[1370,1,1370,5],[1371,1,1371,5],[1420,1,1420,5],[1423,1,1423,5],[1424,1,1424,5],[1425,1,1425,5],[1383,13,1384,14],[1385,0,1386,5],[1385,7,1386,14],[1387,7,1388,11],[1387,12,1388,14],[1372,1,1372,5],[1376,0,1384,7],[1376,8,1376,12],[1378,8,1384,12],[1397,1,1397,5],[1398,1,1398,5],[1399,1,1399,5],[1400,1,1400,5],[1449,1,1449,5],[1452,1,1452,5],[1453,1,1453,5],[1454,1,1454,5],[1412,13,1413,14],[1414,0,1415,5],[1414,7,1415,14],[1416,7,1417,11],[1416,12,1417,14],[1401,1,1401,5],[1405,0,1413,7],[1405,8,1405,12],[1407,8,1413,12],[1426,1,1426,5],[1427,1,1427,5],[1428,1,1428,5],[1429,1,1429,5],[1478,1,1478,5],[1481,1,1481,5],[1482,1,1482,5],[1483,1,1483,5],[1441,13,1442,14],[1443,0,1444,5],[1443,7,1444,14],[1445,7,1446,11],[1445,12,1446,14],[1430,1,1430,5],[1434,0,1442,7],[1434,8,1434,12],[1436,8,1442,12],[1455,1,1455,5],[1456,1,1456,5],[1457,1,1457,5],[1458,1,1458,5],[1507,1,1507,5],[1510,1,1510,5],[1511,1,1511,5],[1512,1,1512,5],[1470,13,1471,14],[1472,0,1473,5],[1472,7,1473,14],[1474,7,1475,11],[1474,12,1475,14],[1459,1,1459,5],[1463,0,1471,7],[1463,8,1463,12],[1465,8,1471,12],[1484,1,1484,5],[1485,1,1485,5],[1486,1,1486,5],[1487,1,1487,5],[1536,1,1536,5],[1539,1,1539,5],[1540,1,1540,5],[1541,1,1541,5],[1499,13,1500,14],[1501,0,1502,5],[1501,7,1502,14],[1503,7,1504,11],[1503,12,1504,14],[1488,1,1488,5],[1492,0,1500,7],[1492,8,1492,12],[1494,8,1500,12],[1513,1,1513,5],[1514,1,1514,5],[1515,1,1515,5],[1516,1,1516,5],[1565,1,1565,5],[1568,1,1568,5],[1569,1,1569,5],[1570,1,1570,5],[1528,13,1529,14],[1530,0,1531,5],[1530,7,1531,14],[1532,7,1533,11],[1532,12,1533,14],[1517,1,1517,5],[1521,0,1529,7],[1521,8,1521,12],[1523,8,1529,12],[1542,1,1542,5],[1543,1,1543,5],[1544,1,1544,5],[1545,1,1545,5],[1594,1,1594,5],[1597,1,1597,5],[1598,1,1598,5],[1599,1,1599,5],[1557,13,1558,14],[1559,0,1560,5],[1559,7,1560,14],[1561,7,1562,11],[1561,12,1562,14],[1546,1,1546,5],[1550,0,1558,7],[1550,8,1550,12],[1552,8,1558,12],[1571,1,1571,5],[1572,1,1572,5],[1630,1,1630,5],[1573,1,1573,5],[1574,1,1574,5],[1633,1,1633,5],[1637,0,1645,7],[1637,8,1637,12],[1639,8,1645,12],[1586,13,1587,14],[1588,0,1589,5],[1588,7,1589,14],[1590,7,1591,11],[1590,12,1591,14],[1575,1,1575,5],[1579,0,1587,7],[1579,8,1579,12],[1581,8,1587,12],[1600,1,1600,5],[1601,1,1601,5],[1658,1,1658,5],[1659,1,1659,5],[1660,1,1660,5],[1661,1,1661,5],[1652,1,1652,5],[1655,1,1655,5],[1656,1,1656,5],[1657,1,1657,5],[1673,13,1674,14],[1675,0,1676,5],[1675,7,1676,14],[1602,1,1602,5],[1603,1,1603,5],[78,15,79,16],[111,15,112,16],[1706,7,1707,11],[1706,12,1707,14],[1691,1,1691,5],[1695,0,1703,7],[1695,8,1695,12],[1697,8,1703,12],[1648,12,1649,14],[1615,13,1616,14],[1617,0,1618,5],[1617,7,1618,14],[1619,7,1620,11],[1619,12,1620,14],[1604,1,1604,5],[1608,0,1616,7],[1608,8,1608,12],[1610,8,1616,12],[1629,1,1629,5],[1717,1,1717,5],[1718,1,1718,5],[1719,1,1719,5],[1710,1,1710,5],[1713,1,1713,5],[1714,1,1714,5],[1731,13,1732,14],[1677,7,1678,11],[1677,12,1678,14],[1662,1,1662,5],[1666,0,1674,7],[1666,8,1666,12],[1668,8,1674,12],[1687,1,1687,5],[1688,1,1688,5],[1689,1,1689,5],[1690,1,1690,5],[1681,1,1681,5],[1684,1,1684,5]],"merged_total":1036,"flags":["merged_cut"]}
[]
[]
[]
["INSTRUCTIONS:  Use this form when a single information collection document involves multiple reporting and recordkeeping requirements.  The totals of the figures in cols. should be entered in item 13 of OMB-83-I:                  cols. (D) &/or (I) = 13a (respondent is only counted once); cols. F & I = 13b;         cols. H & K = 13c.                                                                                                                                                                                                                                                                                                       (F)Total/(D)Total = (E)Average     (H)Total/(F)Total = (G)Average     (K)Total/(I)Total = (J)Average\nNOTE:  The columns will calculate automatically.  If Col. E's response is something other than annually, i.e., 1/6 years, list as \"1/6\" & decimal will display.    \n",null,null,null,null,null,null,null,"TITLE OF INFORMATION COLLECTION DOCUMENT",null,null,null,null,"OMB NO."]
[]
[null,null,null,null,null,null,null,null,"Rural Community Development Initiative",null,null,null,null,"0575-0180"]
[]
[]
[null,null,null,null,null,null,null,null,null,null,null,null,null,"DATE PREPARED"]
[]
[null,null,null,null,null,null,null,null,null,null,null,null,null,"2020-11-16"]
[]
["IDENTIFICATION OF REPORTING OR RECORDKEEPING REQUIREMENT",null,null,null,null,null,null,"ANNUAL BURDEN"]
[]
[null,null,null,null,null,null,null,"REPORTS",null,null,null,null,"RECORDS",null,null,"RESPONDENT COST"]
[]
[null,null,null,null,null,null,null,null,null,null,null,null,null,null,"TOTAL"]
[null,null,null,null,null,null,"FORMS NO (S)","NO. OF","NO OF","TOTAL ANNUAL","HOURS","TOTAL ","NO. OF ","ANNUAL ","RECORD-","COST","TOTAL"]
["SECTION OF","DESCRIPTION",null,null,null,null,"(If \"none\"","RESPONDENTS","RESPONSES","RESPONSES","PER  ","HOURS","RECORD-","HOURS PER","KEEPING HOURS","PER","COST"]
["NOTICE",null,null,null,null,null,"so state)",null,"PER ","(Col. D x E)","RESPONSE","(Col. F x G)","KEEPERS","RECORD-","(Col. I x J)","HOUR","(Col. H x L)"]
[null,null,null,null,null,null,null,null,"RESPONDENT",null,null,null,null,"KEEPER"]
["(A)","(B)",null,null,null,null,"(C)","(D)","(E)","(F)","(G)","(H)","(I)","(J)","(K)","(L)","(M)"]
[null,"Reporting Requirements - Forms"]
[null,"Assurance Agreement                                            ",null,null,null,null,"RD 400-4",90,1,{"$f":"SUM(H24*I24)","v":90},0.25,{"$f":"SUM(J24*K24)","v":22.5},null,null,{"$f":"SUM(M24*N24)","v":0},30,{"$f":"SUM(L24*P24)","v":675}]
[null,"Statement of Budget, Income and Equity                                                                   ",null,null,null,null,"RD 442-2",90,1,90,1.5,135,null,null,0,30,4050]
[null,"Balance Sheet                                                                   ",null,null,null,null,"RD 442-3",90,1,90,1,90,null,null,0,30,2700]
[null,"SUBTOTAL",null,null,null,null,null,null,null,{"$f":"SUM(J23:J26)","v":270},null,{"$f":"SUM(L23:L26)","v":247.5},{"$f":"SUM(M23:M26)","v":0},null,{"$f":"SUM(O23:O26)","v":0},null,{"$f":"SUM(Q23:Q26)","v":7425}]
[null,"TOTAL OF ALL PAGES",null,null,null,null,null,null,null,{"$f":"J27+J57+J64+J91","v":3130},null,{"$f":"SUM(L27+L57+L64+L91)","v":4193.75},{"$f":"SUM(M27+M64+M97+M126+M155+M184+M213+M242+M271+M300+M329+M358+M387+M416+M445+M474+M503+M532+M561+M590+M619+M648+M677+M706+M735+M764+M793+M822+M851+M880+M909+M938+M967+M996+M1025+M1054+M1083+M1112+M1141+M1170+M1199+M1228+M1257+M1286+M1315+M1344+M1373+M1402+M1431+M1460+M1489+M1518+M1547+M1576+M1605+M1634+M1663+M1692+M1721+M1750)","v":0},null,{"$f":"SUM(O27+O64+O97+O126+O155+O184+O213+O242+O271+O300+O329+O358+O387+O416+O445+O474+O503+O532+O561+O590+O619+O648+O677+O706+O735+O764+O793+O822+O851+O880+O909+O938+O967+O996+O1025+O1054+O1083+O1112+O1141+O1170+O1199+O1228+O1257+O1286+O1315+O1344+O1373+O1402+O1431+O1460+O1489+O1518+O1547+O1576+O1605+O1634+O1663+O1692+O1721+O1750)","v":0},null,{"$f":"SUM(Q27+Q57+Q64+Q91)","v":125812.5}]
["TOTAL - COLUMNS \"F\" AND \"I\" = OMB 831, 13 b; COLUMNS \"H\" AND \"K\" = OMB 831, 13c",null,null,null,null,null,null,null,null,{"$f":"SUM(J28)","v":3130},null,{"$f":"SUM(L28)","v":4193.75},null,null,null,null,{"$f":"Q28","v":125812.5}]
[]
[]
[]
["INSTRUCTIONS:  Use this form when a single information collection document involves multiple reporting and recordkeeping requirements.  The totals of the figures in cols. should be entered in item 13 of OMB-83-1:                  cols. (D) &/or (I) = 13a (respondent is only counted once); cols. F & I = 13b;         cols. H & K = 13c.                                                                                                                                                                                                                                                                                                       (F)Total/(D)Total = (E)Average     (H)Total/(F)Total = (G)Average     (K)Total/(I)Total = (J)Average\nNOTE:  The columns will calculate automatically.  If Col. E's response is something other than annually, i.e., 1/6 years, list as \"1/6\" & decimal will display.    \n",null,null,null,null,null,null,null,"TITLE OF INFORMATION COLLECTION DOCUMENT",null,null,null,null,"OMB NO."]
[]
[null,null,null,null,null,null,null,null,"Rural Community Development Initiative",null,null,null,null,"0575-0180"]
[]
[]
[null,null,null,null,null,null,null,null,null,null,null,null,null,"DATE PREPARED"]
[]
[null,null,null,null,null,null,null,null,null,null,null,null,null,"Novemer 16, 2020"]
[]
["IDENTIFICATION OF REPORTING OR RECORDKEEPING REQUIREMENT",null,null,null,null,null,null,"ANNUAL BURDEN"]
[]
[null,null,null,null,null,null,null,"REPORTS",null,null,null,null,"RECORDS",null,null,"RESPONDENT COST"]
[]
[null,null,null,null,null,null,null,null,null,null,null,null,null,null,"TOTAL"]
[null,null,null,null,null,null,"FORMS NO (S)","NO. OF","NO OF","TOTAL ANNUAL","HOURS","TOTAL ","NO. OF ","ANNUAL ","RECORD-","COST","TOTAL"]
["SECTION OF","DESCRIPTION",null,null,null,null,"(If \"none\"","RESPONDENTS","RESPONSES","RESPONSES","PER  ","HOURS","RECORD-","HOURS PER","KEEPING HOURS","PER","COST"]
["NOTICE",null,null,null,null,null,"so state)",null,"PER ","(Col. D x E)","RESPONSE","(Col. F x G)","KEEPERS","RECORD-","(Col. I x J)","HOUR","(Col. H x L)"]
[null,null,null,null,null,null,null,null,"RESPONDENT",null,null,null,null,"KEEPER"]
["(A)","(B)",null,null,null,null,"(C)","(D)","(E)","(F)","(G)","(H)","(I)","(J)","(K)","(L)","(M)"]
[null,"Reporting Requirements - Non-Forms Applicants"]
[null,"Association or Relationship with Rural Development Employees",null,null,null,null,"Written",75,1,{"$f":"H53*I53","v":75},0.25,{"$f":"SUM(J53*K53)","v":18.75},null,null,{"$f":"SUM(M53*N53)","v":0},30,{"$f":"SUM(L53*P53)","v":562.5}]
[null,"Data Universal Number System (DUNS) and System for Award Management System (SAM)",null,null,null,null,"Written",75,1,{"$f":"H54*I54","v":75},0.25,{"$f":"J54*K54","v":18.75},null,null,0,30,{"$f":"L54*P54","v":562.5}]
["Contents of Application","Certification of Non-Lobbying Activities",null,null,null,null,"Written",75,1,{"$f":"SUM(H55*I55)","v":75},0.25,{"$f":"SUM(J55*K55)","v":18.75},null,null,{"$f":"SUM(M55*N55)","v":0},30,{"$f":"SUM(L55*P55)","v":562.5}]
[null,"Application Narrative",null,null,null,null,"Written",75,1,{"$f":"SUM(H56*I56)","v":75},10,{"$f":"SUM(J56*K56)","v":750},null,null,{"$f":"SUM(M56*N56)","v":0},30,{"$f":"SUM(L56*P56)","v":22500}]
[null,"SUBTOTAL",null,null,null,null,null,null,null,{"$f":"J53+J54+J55+J56","v":300},null,{"$f":"L53+L54+L55+L56","v":806.25},null,null,null,null,{"$f":"Q53+Q54+Q55+Q56","v":24187.5}]
[null,"Reporting Requirements - Non-Forms Awardees/Grantees"]
["Grant Amounts","Modification of Application for Reduced Grant Amount",null,null,null,null,"Written",20,1,{"$f":"SUM(H59*I59)","v":20},1,{"$f":"SUM(J59*K59)","v":20},null,null,{"$f":"SUM(M59*N59)","v":0},30,{"$f":"SUM(L59*P59)","v":600}]
[null,"Performance Progresss Report ",null,null,null,null,"Written",90,4,360,1,360,null,null,0,30,{"$f":"SUM(L60*P60)","v":10800}]
[null,"Performance Progresss Report (Final)",null,null,null,null,"Written",90,1,90,2,180,null,null,0,30,5400]
[null,"Financial Reporting",null,null,null,null,"Written",90,12,1080,1,1080,null,null,0,30,{"$f":"SUM(L62*P62)","v":32400}]
[null,"Financial Management System",null,null,null,null,"Written",90,1,90,6,540,null,null,0,30,16200]
[null,"SUBTOTAL",null,null,null,null,null,null,null,{"$f":"SUM(J59:J63)","v":1640},null,{"$f":"SUM(L59:L63)","v":2180},{"$f":"SUM(M59:M63)","v":0},null,{"$f":"SUM(O59:O63)","v":0},null,{"$f":"SUM(Q59:Q63)","v":65400}]
[]
[]
[]
["INSTRUCTIONS:  Use this form when a single information collection document involves multiple reporting and recordkeeping requirements.  The totals of the figures in cols. should be entered in item 13 of OMB-83-1:                  cols. (D) &/or (I) = 13a (respondent is only counted once); cols. F & I = 13b;         cols. H & K = 13c.                                                                                                                                                                                                                                                                                                       (F)Total/(D)Total = (E)Average     (H)Total/(F)Total = (G)Average     (K)Total/(I)Total = (J)Average\nNOTE:  The columns will calculate automatically.  If Col. E's response is something other than annually, i.e., 1/6 years, list as \"1/6\" & decimal will display.    \n",null,null,null,null,null,null,null,"TITLE OF INFORMATION COLLECTION DOCUMENT",null,null,null,null,"OMB NO."]
[]
[null,null,null,null,null,null,null,null,"Rural Community Development Initiative",null,null,null,null,"0575-0180"]
[]
[]
[null,null,null,null,null,null,null,null,null,null,null,null,null,"DATE PREPARED"]
[]
[null,null,null,null,null,null,null,null,null,null,null,null,null,"2020-11-16"]
[]
["IDENTIFICATION OF REPORTING OR RECORDKEEPING REQUIREMENT",null,null,null,null,null,null,"ANNUAL BURDEN"]
[]
[null,null,null,null,null,null,null,"REPORTS",null,null,null,null,"RECORDS",null,null,"RESPONDENT COST"]
[]
[null,null,null,null,null,null,null,null,null,null,null,null,null,null,"TOTAL"]
[null,null,null,null,null,null,"FORMS NO (S)","NO. OF","NO OF","TOTAL ANNUAL","HOURS","TOTAL ","NO. OF ","ANNUAL ","RECORD-","COST","TOTAL"]
["SECTION OF","DESCRIPTION",null,null,null,null,"(If \"none\"","RESPONDENTS","RESPONSES","RESPONSES","PER  ","HOURS","RECORD-","HOURS PER","KEEPING HOURS","PER","COST"]
["REGS.",null,null,null,null,null,"so state)",null,"PER ","(Col. D x E)","RESPONSE","(Col. F x G)","KEEPERS","RECORD-","(Col. I x J)","HOUR","(Col. H x L)"]
[null,null,null,null,null,null,null,null,"RESPONDENT",null,null,null,null,"KEEPER"]
["(A)","(B)",null,null,null,null,"(C)","(D)","(E)","(F)","(G)","(H)","(I)","(J)","(K)","(L)","(M)"]
[null,"Reporting Req. - Non-Forms  Awardees/Grantees      cont'd"]
["Contents of Application","Audits (over $750,000)",null,null,null,null,"Written",20,1,{"$f":"SUM(H88*I88)","v":20},3,{"$f":"SUM(J88*K88)","v":60},null,null,{"$f":"SUM(M88*N88)","v":0},30,{"$f":"SUM(L88*P88)","v":1800}]
[null,"Record Keeping Requirement"]
[null,"Data Collection by Race, Sex and National Origin                                                                                     -- Intermediaries - 30                                                          -- Recipients & Beneficiaries- 870",null,null,null,null,"Written",900,1,{"$f":"SUM(H90*I90)","v":900},1,{"$f":"SUM(J90*K90)","v":900},null,null,{"$f":"SUM(M90*N90)","v":0},30,{"$f":"SUM(L90*P90)","v":27000}]
[null,"SUBTOTAL",null,null,null,null,null,null,null,{"$f":"SUM(J88:J90)","v":920},null,{"$f":"SUM(L88:L90)","v":960},{"$f":"SUM(M81:M90)","v":0},null,{"$f":"SUM(O81:O90)","v":0},null,{"$f":"SUM(Q88:Q90)","v":28800}]
[null,"Reporting Req. - Form Burden Approved under other OMB Numbers    "]
["Contents of Application","Application for Federal Assistance                                (Common Form - burden reported under RCF)",null,null,null,null,"SF-424 (4040-0004)",75,1,75,0.75,56.25,null,null,0,30,{"$f":"SUM(L93*P93)","v":1687.5}]
[null,"Disclosure of Lobbying Activities",null,null,null,null,"SF-LLL (4040-0013)",75,1,{"$f":"SUM(H94*I94)","v":75},0.25,{"$f":"SUM(J94*K94)","v":18.75},null,null,{"$f":"SUM(M94*N94)","v":0},30,{"$f":"SUM(L94*P94)","v":562.5}]
["Grantee Req.","Request for Advance or Reimbursement",null,null,null,null,"SF-270 (4040-0012)",90,1,90,1,90,null,null,0,30,2700]
[null,"Federal Financial Report ",null,null,null,null,"SF-425 (4040-0014)",90,4,360,1,360,null,null,0,30,10800]
[]
[]
[]
[]
["INSTRUCTIONS:  Use this form when a single information collection document involves multiple reporting and recordkeeping requirements.  The totals of the figures in cols. should be entered in item 13 of OMB-83-1:                  cols. (D) &/or (I) = 13a (respondent is only counted once); cols. F & I = 13b;         cols. H & K = 13c.                                                                                                                                                                                                                                                                                                       (F)Total/(D)Total = (E)Average     (H)Total/(F)Total = (G)Average     (K)Total/(I)Total = (J)Average\nNOTE:  The columns will calculate automatically.  If Col. E's response is something other than annually, i.e., 1/6 years, list as \"1/6\" & decimal will display.    \n",null,null,null,null,null,null,null,"TITLE OF INFORMATION COLLECTION DOCUMENT",null,null,null,null,"OMB NO."]
[]
[null,null,null,null,null,null,null,null,null,null,null,null,null,"0563-New"]
[]
[]
[null,null,null,null,null,null,null,null,null,null,null,null,null,"DATE PREPARED"]
[]
[]
[]
["IDENTIFICATION OF REPORTING OR RECORDKEEPING REQUIREMENT",null,null,null,null,null,null,"ANNUAL BURDEN"]
[]
[null,null,null,null,null,null,null,"REPORTS",null,null,null,null,"RECORDS",null,null,"RESPONDENT COST"]
[]
[null,null,null,null,null,null,null,null,null,null,null,null,null,null,"TOTAL"]
[null,null,null,null,null,null,"FORMS NO (S)","NO. OF","NO OF","TOTAL ANNUAL","HOURS","TOTAL ","NO. OF ","ANNUAL ","RECORD-","COST","TOTAL"]
["SECTION OF","DESCRIPTION",null,null,null,null,"(If \"none\"","RESPONDENTS","RESPONSES","RESPONSES","PER  ","HOURS","RECORD-","HOURS PER","KEEPING HOURS","PER","COST"]
["REGS.",null,null,null,null,null,"so state)",null,"PER ","(Col. D x E)","RESPONSE","(Col. F x G)","KEEPERS","RECORD-","(Col. I x J)","HOUR","(Col. H x L)"]
[null,null,null,null,null,null,null,null,"RESPONDENT",null,null,null,null,"KEEPER"]
["(A)","(B)",null,null,null,null,"(C)","(D)","(E)","(F)","(G)","(H)","(I)","(J)","(K)","(L)","(M)"]
[null,null,null,null,null,null,null,null,null,{"$f":"SUM(H120*I120)","v":0},null,{"$f":"SUM(J120*K120)","v":0},null,null,{"$f":"SUM(M120*N120)","v":0},null,{"$f":"SUM(L120*P120)","v":0}]
[null,null,null,null,null,null,null,null,null,0,null,0,null,null,0,null,{"$f":"SUM(L121*P121)","v":0}]
[null,null,null,null,null,null,null,null,null,0,null,0,null,null,0,null,0]
[null,null,null,null,null,null,null,null,null,0,null,0,null,null,0,null,0]
[null,null,null,null,null,null,null,null,null,0,null,0,null,null,0,null,0]
[null,null,null,null,null,null,null,null,null,0,null,0,null,null,0,null,0]
[null,"SUBTOTAL",null,null,null,null,null,null,null,{"$f":"SUM(J120:J125)","v":0},null,{"$f":"SUM(L120:L125)","v":0},{"$f":"SUM(M120:M125)","v":0},null,{"$f":"SUM(O120:O125)","v":0},null,{"$f":"SUM(Q120:Q125)","v":0}]
[]
[]
[]
["INSTRUCTIONS:  Use this form when a single information collection document involves multiple reporting and recordkeeping requirements.  The totals of the figures in cols. should be entered in item 13 of OMB-83-1:                  cols. (D) &/or (I) = 13a (respondent is only counted once); cols. F & I = 13b;         cols. H & K = 13c.                                                                                                                                                                                                                                                                                                       (F)Total/(D)Total = (E)Average     (H)Total/(F)Total = (G)Average     (K)Total/(I)Total = (J)Average\nNOTE:  The columns will calculate automatically.  If Col. E's response is something other than annually, i.e., 1/6 years, list as \"1/6\" & decimal will display.    \n",null,null,null,null,null,null,null,"TITLE OF INFORMATION COLLECTION DOCUMENT",null,null,null,null,"OMB NO."]
[]
[null,null,null,null,null,null,null,null,null,null,null,null,null,"0563-New"]
[]
[]
[null,null,null,null,null,null,null,null,null,null,null,null,null,"DATE PREPARED"]
[]
[]
[]
["IDENTIFICATION OF REPORTING OR RECORDKEEPING REQUIREMENT",null,null,null,null,null,null,"ANNUAL BURDEN"]
[]
[null,null,null,null,null,null,null,"REPORTS",null,null,null,null,"RECORDS"]
[]
[null,null,null,null,null,null,null,null,null,null,null,null,null,null,"TOTAL"]
[null,null,null,null,null,null,"FORMS NO (S)","NO. OF","NO OF","TOTAL ANNUAL","HOURS","TOTAL ","NO. OF ","ANNUAL ","RECORD-"]
["SECTION OF","DESCRIPTION",null,null,null,null,"(If \"none\"","RESPONDENTS","RESPONSES","RESPONSES","PER  ","HOURS","RECORD-","HOURS PER","KEEPING HOURS"]
["REGS.",null,null,null,null,null,"so state)",null,"PER ","(Col. D x E)","RESPONSE","(Col. F x G)","KEEPERS","RECORD-","(Col. I x J)"]
[null,null,null,null,null,null,null,null,"RESPONDENT",null,null,null,null,"KEEPER"]
["(A)","(B)",null,null,null,null,"(C)","(D)","(E)","(F)","(G)","(H)","(I)","(J)","(K)"]
[null,null,null,null,null,null,null,null,null,{"$f":"SUM(H149*I149)","v":0},null,{"$f":"SUM(J149*K149)","v":0},null,null,{"$f":"SUM(M149*N149)","v":0}]
[null,null,null,null,null,null,null,null,null,0,null,0,null,null,0]
[null,null,null,null,null,null,null,null,null,0,null,0,null,null,0]
[null,null,null,null,null,null,null,null,null,0,null,0,null,null,0]
[null,null,null,null,null,null,null,null,null,0,null,0,null,null,0]
[null,null,null,null,null,null,null,null,null,0,null,0,null,null,0]
[null,"SUBTOTAL",null,null,null,null,null,null,null,{"$f":"SUM(J149:J154)","v":0},null,{"$f":"SUM(L149:L154)","v":0},{"$f":"SUM(M149:M154)","v":0},null,{"$f":"SUM(O149:O154)","v":0}]
[]
[]
[]
["INSTRUCTIONS:  Use this form when a single information collection document involves multiple reporting and recordkeeping requirements.  The totals of the figures in cols. should be entered in item 13 of OMB-83-1:                  cols. (D) &/or (I) = 13a (respondent is only counted once); cols. F & I = 13b;         cols. H & K = 13c.                                                                                                                                                                                                                                                                                                       (F)Total/(D)Total = (E)Average     (H)Total/(F)Total = (G)Average     (K)Total/(I)Total = (J)Average\nNOTE:  The columns will calculate automatically.  If Col. E's response is something other than annually, i.e., 1/6 years, list as \"1/6\" & decimal will display.    \n",null,null,null,null,null,null,null,"TITLE OF INFORMATION COLLECTION DOCUMENT",null,null,null,null,"OMB NO."]
[]
[null,null,null,null,null,null,null,null,null,null,null,null,null,"0563-New"]
[]
[]
[null,null,null,null,null,null,null,null,null,null,null,null,null,"DATE PREPARED"]
[]
[]
[]
["IDENTIFICATION OF REPORTING OR RECORDKEEPING REQUIREMENT",null,null,null,null,null,null,"ANNUAL BURDEN"]
[]
[null,null,null,null,null,null,null,"REPORTS",null,null,null,null,"RECORDS"]
[]
[null,null,null,null,null,null,null,null,null,null,null,null,null,null,"TOTAL"]
[null,null,null,null,null,null,"FORMS NO (S)","NO. OF","NO OF","TOTAL ANNUAL","HOURS","TOTAL ","NO. OF ","ANNUAL ","RECORD-"]
["SECTION OF","DESCRIPTION",null,null,null,null,"(If \"none\"","RESPONDENTS","RESPONSES","RESPONSES","PER  ","HOURS","RECORD-","HOURS PER","KEEPING HOURS"]
["REGS.",null,null,null,null,null,"so state)",null,"PER ","(Col. D x E)","RESPONSE","(Col. F x G)","KEEPERS","RECORD-","(Col. I x J)"]
[null,null,null,null,null,null,null,null,"RESPONDENT",null,null,null,null,"KEEPER"]
["(A)","(B)",null,null,null,null,"(C)","(D)","(E)","(F)","(G)","(H)","(I)","(J)","(K)"]
[null,null,null,null,null,null,null,null,null,{"$f":"SUM(H178*I178)","v":0},null,{"$f":"SUM(J178*K178)","v":0},null,null,{"$f":"SUM(M178*N178)","v":0}]
[null,null,null,null,null,null,null,null,null,0,null,0,null,null,0]
[null,null,null,null,null,null,null,null,null,0,null,0,null,null,0]
[null,null,null,null,null,null,null,null,null,0,null,0,null,null,0]
[null,null,null,null,null,null,null,null,null,0,null,0,null,null,0]
[null,null,null,null,null,null,null,null,null,0,null,0,null,null,0]
[null,"SUBTOTAL",null,null,null,null,null,null,null,{"$f":"SUM(J178:J183)","v":0},null,{"$f":"SUM(L178:L183)","v":0},{"$f":"SUM(M178:M183)","v":0},null,{"$f":"SUM(O178:O183)","v":0}]
[]
[]
[]
["INSTRUCTIONS:  Use this form when a single information collection document involves multiple reporting and recordkeeping requirements.  The totals of the figures in cols. should be entered in item 13 of OMB-83-1:                  cols. (D) &/or (I) = 13a (respondent is only counted once); cols. F & I = 13b;         cols. H & K = 13c.                                                                                                                                                                                                                                                                                                       (F)Total/(D)Total = (E)Average     (H)Total/(F)Total = (G)Average     (K)Total/(I)Total = (J)Average\nNOTE:  The columns will calculate automatically.  If Col. E's response is something other than annually, i.e., 1/6 years, list as \"1/6\" & decimal will display.    \n",null,null,null,null,null,null,null,"TITLE OF INFORMATION COLLECTION DOCUMENT",null,null,null,null,"OMB NO."]
[]
[null,null,null,null,null,null,null,null,null,null,null,null,null,"0581-"]
[]
[]
[null,null,null,null,null,null,null,null,null,null,null,null,null,"DATE PREPARED"]
[]
[]
[]
["IDENTIFICATION OF REPORTING OR RECORDKEEPING REQUIREMENT",null,null,null,null,null,null,"ANNUAL BURDEN"]
[]
[null,null,null,null,null,null,null,"REPORTS",null,null,null,null,"RECORDS"]
[]
[null,null,null,null,null,null,null,null,null,null,null,null,null,null,"TOTAL"]
[null,null,null,null,null,null,"FORMS NO (S)","NO. OF","NO OF","TOTAL ANNUAL","HOURS","TOTAL ","NO. OF ","ANNUAL ","RECORD-"]
["SECTION OF","DESCRIPTION",null,null,null,null,"(If \"none\"","RESPONDENTS","RESPONSES","RESPONSES","PER  ","HOURS","RECORD-","HOURS PER","KEEPING HOURS"]
["REGS.",null,null,null,null,null,"so state)",null,"PER ","(Col. D x E)","RESPONSE","(Col. F x G)","KEEPERS","RECORD-","(Col. I x J)"]
[null,null,null,null,null,null,null,null,"RESPONDENT",null,null,null,null,"KEEPER"]
["(A)","(B)",null,null,null,null,"(C)","(D)","(E)","(F)","(G)","(H)","(I)","(J)","(K)"]
[null,null,null,null,null,null,null,null,null,{"$f":"SUM(H207*I207)","v":0},null,{"$f":"SUM(J207*K207)","v":0},null,null,{"$f":"SUM(M207*N207)","v":0}]
[null,null,null,null,null,null,null,null,null,0,null,0,null,null,0]
[null,null,null,null,null,null,null,null,null,0,null,0,null,null,0]
[null,null,null,null,null,null,null,null,null,0,null,0,null,null,0]
[null,null,null,null,null,null,null,null,null,0,null,0,null,null,0]
[null,null,null,null,null,null,null,null,null,0,null,0,null,null,0]
[null,"SUBTOTAL",null,null,null,null,null,null,null,{"$f":"SUM(J207:J212)","v":0},null,{"$f":"SUM(L207:L212)","v":0},{"$f":"SUM(M207:M212)","v":0},null,{"$f":"SUM(O207:O212)","v":0}]
[]
[]
[]
["INSTRUCTIONS:  Use this form when a single information collection document involves multiple reporting and recordkeeping requirements.  The totals of the figures in cols. should be entered in item 13 of OMB-83-1:                  cols. (D) &/or (I) = 13a (respondent is only counted once); cols. F & I = 13b;         cols. H & K = 13c.                                                                                                                                                                                                                                                                                                       (F)Total/(D)Total = (E)Average     (H)Total/(F)Total = (G)Average     (K)Total/(I)Total = (J)Average\nNOTE:  The columns will calculate automatically.  If Col. E's response is something other than annually, i.e., 1/6 years, list as \"1/6\" & decimal will display.    \n",null,null,null,null,null,null,null,"TITLE OF INFORMATION COLLECTION DOCUMENT",null,null,null,null,"OMB NO."]
[]
[null,null,null,null,null,null,null,null,null,null,null,null,null,"0581-"]
[]
[]
[null,null,null,null,null,null,null,null,null,null,null,null,null,"DATE PREPARED"]
[]
[]
[]
["IDENTIFICATION OF REPORTING OR RECORDKEEPING REQUIREMENT",null,null,null,null,null,null,"ANNUAL BURDEN"]
[]
[null,null,null,null,null,null,null,"REPORTS",null,null,null,null,"RECORDS"]
[]
[null,null,null,null,null,null,null,null,null,null,null,null,null,null,"TOTAL"]
[null,null,null,null,null,null,"FORMS NO (S)","NO. OF","NO OF","TOTAL ANNUAL","HOURS","TOTAL ","NO. OF ","ANNUAL ","RECORD-"]
["SECTION OF","DESCRIPTION",null,null,null,null,"(If \"none\"","RESPONDENTS","RESPONSES","RESPONSES","PER  ","HOURS","RECORD-","HOURS PER","KEEPING HOURS"]
["REGS.",null,null,null,null,null,"so state)",null,"PER ","(Col. D x E)","RESPONSE","(Col. F x G)","KEEPERS","RECORD-","(Col. I x J)"]
[null,null,null,null,null,null,null,null,"RESPONDENT",null,null,null,null,"KEEPER"]
["(A)","(B)",null,null,null,null,"(C)","(D)","(E)","(F)","(G)","(H)","(I)","(J)","(K)"]
[null,null,null,null,null,null,null,null,null,{"$f":"SUM(H236*I236)","v":0},null,{"$f":"SUM(J236*K236)","v":0},null,null,{"$f":"SUM(M236*N236)","v":0}]
[null,null,null,null,null,null,null,null,null,0,null,0,null,null,0]
[null,null,null,null,null,null,null,null,null,0,null,0,null,null,0]
[null,null,null,null,null,null,null,null,null,0,null,0,null,null,0]
[null,null,null,null,null,null,null,null,null,0,null,0,null,null,0]
[null,null,null,null,null,null,null,null,null,0,null,0,null,null,0]
[null,"SUBTOTAL",null,null,null,null,null,null,null,{"$f":"SUM(J236:J241)","v":0},null,{"$f":"SUM(L236:L241)","v":0},{"$f":"SUM(M236:M241)","v":0},null,{"$f":"SUM(O236:O241)","v":0}]
[]
[]
[]
["INSTRUCTIONS:  Use this form when a single information collection document involves multiple reporting and recordkeeping requirements.  The totals of the figures in cols. should be entered in item 13 of OMB-83-1:                  cols. (D) &/or (I) = 13a (respondent is only counted once); cols. F & I = 13b;         cols. H & K = 13c.                                                                                                                                                                                                                                                                                                       (F)Total/(D)Total = (E)Average     (H)Total/(F)Total = (G)Average     (K)Total/(I)Total = (J)Average\nNOTE:  The columns will calculate automatically.  If Col. E's response is something other than annually, i.e., 1/6 years, list as \"1/6\" & decimal will display.    \n",null,null,null,null,null,null,null,"TITLE OF INFORMATION COLLECTION DOCUMENT",null,null,null,null,"OMB NO."]
[]
[null,null,null,null,null,null,null,null,null,null,null,null,null,"0581-"]
[]
[]
[null,null,null,null,null,null,null,null,null,null,null,null,null,"DATE PREPARED"]
[]
[]
[]
["IDENTIFICATION OF REPORTING OR RECORDKEEPING REQUIREMENT",null,null,null,null,null,null,"ANNUAL BURDEN"]
[]
[null,null,null,null,null,null,null,"REPORTS",null,null,null,null,"RECORDS"]
[]
[null,null,null,null,null,null,null,null,null,null,null,null,null,null,"TOTAL"]
[null,null,null,null,null,null,"FORMS NO (S)","NO. OF","NO OF","TOTAL ANNUAL","HOURS","TOTAL ","NO. OF ","ANNUAL ","RECORD-"]
["SECTION OF","DESCRIPTION",null,null,null,null,"(If \"none\"","RESPONDENTS","RESPONSES","RESPONSES","PER  ","HOURS","RECORD-","HOURS PER","KEEPING HOURS"]
["REGS.",null,null,null,null,null,"so state)",null,"PER ","(Col. D x E)","RESPONSE","(Col. F x G)","KEEPERS","RECORD-","(Col. I x J)"]
[null,null,null,null,null,null,null,null,"RESPONDENT",null,null,null,null,"KEEPER"]
["(A)","(B)",null,null,null,null,"(C)","(D)","(E)","(F)","(G)","(H)","(I)","(J)","(K)"]
[null,null,null,null,null,null,null,null,null,{"$f":"SUM(H265*I265)","v":0},null,{"$f":"SUM(J265*K265)","v":0},null,null,{"$f":"SUM(M265*N265)","v":0}]
[null,null,null,null,null,null,null,null,null,0,null,0,null,null,0]
[null,null,null,null,null,null,null,null,null,0,null,0,null,null,0]
[null,null,null,null,null,null,null,null,null,0,null,0,null,null,0]
[null,null,null,null,null,null,null,null,null,0,null,0,null,null,0]
[null,null,null,null,null,null,null,null,null,0,null,0,null,null,0]
[null,"SUBTOTAL",null,null,null,null,null,null,null,{"$f":"SUM(J265:J270)","v":0},null,{"$f":"SUM(L265:L270)","v":0},{"$f":"SUM(M265:M270)","v":0},null,{"$f":"SUM(O265:O270)","v":0}]
[]
[]
[]
["INSTRUCTIONS:  Use this form when a single information collection document involves multiple reporting and recordkeeping requirements.  The totals of the figures in cols. should be entered in item 13 of OMB-83-1:                  cols. (D) &/or (I) = 13a (respondent is only counted once); cols. F & I = 13b;         cols. H & K = 13c.                                                                                                                                                                                                                                                                                                       (F)Total/(D)Total = (E)Average     (H)Total/(F)Total = (G)Average     (K)Total/(I)Total = (J)Average\nNOTE:  The columns will calculate automatically.  If Col. E's response is something other than annually, i.e., 1/6 years, list as \"1/6\" & decimal will display.    \n",null,null,null,null,null,null,null,"TITLE OF INFORMATION COLLECTION DOCUMENT",null,null,null,null,"OMB NO."]
[]
[null,null,null,null,null,null,null,null,null,null,null,null,null,"0581-"]
[]
[]
[null,null,null,null,null,null,null,null,null,null,null,null,null,"DATE PREPARED"]
[]
[]
[]
["IDENTIFICATION OF REPORTING OR RECORDKEEPING REQUIREMENT",null,null,null,null,null,null,"ANNUAL BURDEN"]
[]
[null,null,null,null,null,null,null,"REPORTS",null,null,null,null,"RECORDS"]
[]
[null,null,null,null,null,null,null,null,null,null,null,null,null,null,"TOTAL"]
[null,null,null,null,null,null,"FORMS NO (S)","NO. OF","NO OF","TOTAL ANNUAL","HOURS","TOTAL ","NO. OF ","ANNUAL ","RECORD-"]
["SECTION OF","DESCRIPTION",null,null,null,null,"(If \"none\"","RESPONDENTS","RESPONSES","RESPONSES","PER  ","HOURS","RECORD-","HOURS PER","KEEPING HOURS"]
["REGS.",null,null,null,null,null,"so state)",null,"PER ","(Col. D x E)","RESPONSE","(Col. F x G)","KEEPERS","RECORD-","(Col. I x J)"]
[null,null,null,null,null,null,null,null,"RESPONDENT",null,null,null,null,"KEEPER"]
["(A)","(B)",null,null,null,null,"(C)","(D)","(E)","(F)","(G)","(H)","(I)","(J)","(K)"]
[null,null,null,null,null,null,null,null,null,{"$f":"SUM(H294*I294)","v":0},null,{"$f":"SUM(J294*K294)","v":0},null,null,{"$f":"SUM(M294*N294)","v":0}]
[null,null,null,null,null,null,null,null,null,0,null,0,null,null,0]
[null,null,null,null,null,null,null,null,null,0,null,0,null,null,0]
[null,null,null,null,null,null,null,null,null,0,null,0,null,null,0]
[null,null,null,null,null,null,null,null,null,0,null,0,null,null,0]
[null,null,null,null,null,null,null,null,null,0,null,0,null,null,0]
[null,"SUBTOTAL",null,null,null,null,null,null,null,{"$f":"SUM(J294:J299)","v":0},null,{"$f":"SUM(L294:L299)","v":0},{"$f":"SUM(M294:M299)","v":0},null,{"$f":"SUM(O294:O299)","v":0}]
[]
[]
[]
["INSTRUCTIONS:  Use this form when a single information collection document involves multiple reporting and recordkeeping requirements.  The totals of the figures in cols. should be entered in item 13 of OMB-83-1:                  cols. (D) &/or (I) = 13a (respondent is only counted once); cols. F & I = 13b;         cols. H & K = 13c.                                                                                                                                                                                                                                                                                                       (F)Total/(D)Total = (E)Average     (H)Total/(F)Total = (G)Average     (K)Total/(I)Total = (J)Average\nNOTE:  The columns will calculate automatically.  If Col. E's response is something other than annually, i.e., 1/6 years, list as \"1/6\" & decimal will display.    \n",null,null,null,null,null,null,null,"TITLE OF INFORMATION COLLECTION DOCUMENT",null,null,null,null,"OMB NO."]
[]
[null,null,null,null,null,null,null,null,null,null,null,null,null,"0581-"]
[]
[]
[null,null,null,null,null,null,null,null,null,null,null,null,null,"DATE PREPARED"]
[]
[]
[]
["IDENTIFICATION OF REPORTING OR RECORDKEEPING REQUIREMENT",null,null,null,null,null,null,"ANNUAL BURDEN"]
[]
[null,null,null,null,null,null,null,"REPORTS",null,null,null,null,"RECORDS"]
[]
[null,null,null,null,null,null,null,null,null,null,null,null,null,null,"TOTAL"]
[null,null,null,null,null,null,"FORMS NO (S)","NO. OF","NO OF","TOTAL ANNUAL","HOURS","TOTAL ","NO. OF ","ANNUAL ","RECORD-"]
["SECTION OF","DESCRIPTION",null,null,null,null,"(If \"none\"","RESPONDENTS","RESPONSES","RESPONSES","PER  ","HOURS","RECORD-","HOURS PER","KEEPING HOURS"]
["REGS.",null,null,null,null,null,"so state)",null,"PER ","(Col. D x E)","RESPONSE","(Col. F x G)","KEEPERS","RECORD-","(Col. I x J)"]
[null,null,null,null,null,null,null,null,"RESPONDENT",null,null,null,null,"KEEPER"]
["(A)","(B)",null,null,null,null,"(C)","(D)","(E)","(F)","(G)","(H)","(I)","(J)","(K)"]
[null,null,null,null,null,null,null,null,null,{"$f":"SUM(H323*I323)","v":0},null,{"$f":"SUM(J323*K323)","v":0},null,null,{"$f":"SUM(M323*N323)","v":0}]
[null,null,null,null,null,null,null,null,null,0,null,0,null,null,0]
[null,null,null,null,null,null,null,null,null,0,null,0,null,null,0]
[null,null,null,null,null,null,null,null,null,0,null,0,null,null,0]
[null,null,null,null,null,null,null,null,null,0,null,0,null,null,0]
[null,null,null,null,null,null,null,null,null,0,null,0,null,null,0]
[null,"SUBTOTAL",null,null,null,null,null,null,null,{"$f":"SUM(J323:J328)","v":0},null,{"$f":"SUM(L323:L328)","v":0},{"$f":"SUM(M323:M328)","v":0},null,{"$f":"SUM(O323:O328)","v":0}]
[]
[]
[]
["INSTRUCTIONS:  Use this form when a single information collection document involves multiple reporting and recordkeeping requirements.  The totals of the figures in cols. should be entered in item 13 of OMB-83-1:                  cols. (D) &/or (I) = 13a (respondent is only counted once); cols. F & I = 13b;         cols. H & K = 13c.                                                                                                                                                                                                                                                                                                       (F)Total/(D)Total = (E)Average     (H)Total/(F)Total = (G)Average     (K)Total/(I)Total = (J)Average\nNOTE:  The columns will calculate automatically.  If Col. E's response is something other than annually, i.e., 1/6 years, list as \"1/6\" & decimal will display.    \n",null,null,null,null,null,null,null,"TITLE OF INFORMATION COLLECTION DOCUMENT",null,null,null,null,"OMB NO."]
[]
[null,null,null,null,null,null,null,null,null,null,null,null,null,"0581-"]
[]
[]
[null,null,null,null,null,null,null,null,null,null,null,null,null,"DATE PREPARED"]
[]
[]
[]
["IDENTIFICATION OF REPORTING OR RECORDKEEPING REQUIREMENT",null,null,null,null,null,null,"ANNUAL BURDEN"]
[]
[null,null,null,null,null,null,null,"REPORTS",null,null,null,null,"RECORDS"]
[]
[null,null,null,null,null,null,null,null,null,null,null,null,null,null,"TOTAL"]
[null,null,null,null,null,null,"FORMS NO (S)","NO. OF","NO OF","TOTAL ANNUAL","HOURS","TOTAL ","NO. OF ","ANNUAL ","RECORD-"]
["SECTION OF","DESCRIPTION",null,null,null,null,"(If \"none\"","RESPONDENTS","RESPONSES","RESPONSES","PER  ","HOURS","RECORD-","HOURS PER","KEEPING HOURS"]
["REGS.",null,null,null,null,null,"so state)",null,"PER ","(Col. D x E)","RESPONSE","(Col. F x G)","KEEPERS","RECORD-","(Col. I x J)"]
[null,null,null,null,null,null,null,null,"RESPONDENT",null,null,null,null,"KEEPER"]
["(A)","(B)",null,null,null,null,"(C)","(D)","(E)","(F)","(G)","(H)","(I)","(J)","(K)"]
[null,null,null,null,null,null,null,null,null,{"$f":"SUM(H352*I352)","v":0},null,{"$f":"SUM(J352*K352)","v":0},null,null,{"$f":"SUM(M352*N352)","v":0}]
[null,null,null,null,null,null,null,null,null,0,null,0,null,null,0]
[null,null,null,null,null,null,null,null,null,0,null,0,null,null,0]
[null,null,null,null,null,null,null,null,null,0,null,0,null,null,0]
[null,null,null,null,null,null,null,null,null,0,null,0,null,null,0]
[null,null,null,null,null,null,null,null,null,0,null,0,null,null,0]
[null,"SUBTOTAL",null,null,null,null,null,null,null,{"$f":"SUM(J352:J357)","v":0},null,{"$f":"SUM(L352:L357)","v":0},{"$f":"SUM(M352:M357)","v":0},null,{"$f":"SUM(O352:O357)","v":0}]
[]
[]
[]
["INSTRUCTIONS:  Use this form when a single information collection document involves multiple reporting and recordkeeping requirements.  The totals of the figures in cols. should be entered in item 13 of OMB-83-1:                  cols. (D) &/or (I) = 13a (respondent is only counted once); cols. F & I = 13b;         cols. H & K = 13c.                                                                                                                                                                                                                                                                                                       (F)Total/(D)Total = (E)Average     (H)Total/(F)Total = (G)Average     (K)Total/(I)Total = (J)Average\nNOTE:  The columns will calculate automatically.  If Col. E's response is something other than annually, i.e., 1/6 years, list as \"1/6\" & decimal will display.    \n",null,null,null,null,null,null,null,"TITLE OF INFORMATION COLLECTION DOCUMENT",null,null,null,null,"OMB NO."]
[]
[null,null,null,null,null,null,null,null,null,null,null,null,null,"0581-"]
[]
[]
[null,null,null,null,null,null,null,null,null,null,null,null,null,"DATE PREPARED"]
[]
[]
[]
["IDENTIFICATION OF REPORTING OR RECORDKEEPING REQUIREMENT",null,null,null,null,null,null,"ANNUAL BURDEN"]
[]
[null,null,null,null,null,null,null,"REPORTS",null,null,null,null,"RECORDS"]
[]
[null,null,null,null,null,null,null,null,null,null,null,null,null,null,"TOTAL"]
[null,null,null,null,null,null,"FORMS NO (S)","NO. OF","NO OF","TOTAL ANNUAL","HOURS","TOTAL ","NO. OF ","ANNUAL ","RECORD-"]
["SECTION OF","DESCRIPTION",null,null,null,null,"(If \"none\"","RESPONDENTS","RESPONSES","RESPONSES","PER  ","HOURS","RECORD-","HOURS PER","KEEPING HOURS"]
["REGS.",null,null,null,null,null,"so state)",null,"PER ","(Col. D x E)","RESPONSE","(Col. F x G)","KEEPERS","RECORD-","(Col. I x J)"]
[null,null,null,null,null,null,null,null,"RESPONDENT",null,null,null,null,"KEEPER"]
["(A)","(B)",null,null,null,null,"(C)","(D)","(E)","(F)","(G)","(H)","(I)","(J)","(K)"]
[null,null,null,null,null,null,null,null,null,{"$f":"SUM(H381*I381)","v":0},null,{"$f":"SUM(J381*K381)","v":0},null,null,{"$f":"SUM(M381*N381)","v":0}]
[null,null,null,null,null,null,null,null,null,0,null,0,null,null,0]
[null,null,null,null,null,null,null,null,null,0,null,0,null,null,0]
[null,null,null,null,null,null,null,null,null,0,null,0,null,null,0]
[null,null,null,null,null,null,null,null,null,0,null,0,null,null,0]
[null,null,null,null,null,null,null,null,null,0,null,0,null,null,0]
[null,"SUBTOTAL",null,null,null,null,null,null,null,{"$f":"SUM(J381:J386)","v":0},null,{"$f":"SUM(L381:L386)","v":0},{"$f":"SUM(M381:M386)","v":0},null,{"$f":"SUM(O381:O386)","v":0}]
[]
[]
[]
["INSTRUCTIONS:  Use this form when a single information collection document involves multiple reporting and recordkeeping requirements.  The totals of the figures in cols. should be entered in item 13 of OMB-83-1:                  cols. (D) &/or (I) = 13a (respondent is only counted once); cols. F & I = 13b;         cols. H & K = 13c.                                                                                                                                                                                                                                                                                                       (F)Total/(D)Total = (E)Average     (H)Total/(F)Total = (G)Average     (K)Total/(I)Total = (J)Average\nNOTE:  The columns will calculate automatically.  If Col. E's response is something other than annually, i.e., 1/6 years, list as \"1/6\" & decimal will display.    \n",null,null,null,null,null,null,null,"TITLE OF INFORMATION COLLECTION DOCUMENT",null,null,null,null,"OMB NO."]
[]
[null,null,null,null,null,null,null,null,null,null,null,null,null,"0581-"]
[]
[]
[null,null,null,null,null,null,null,null,null,null,null,null,null,"DATE PREPARED"]
[]
[]
[]
["IDENTIFICATION OF REPORTING OR RECORDKEEPING REQUIREMENT",null,null,null,null,null,null,"ANNUAL BURDEN"]
[]
[null,null,null,null,null,null,null,"REPORTS",null,null,null,null,"RECORDS"]
[]
[null,null,null,null,null,null,null,null,null,null,null,null,null,null,"TOTAL"]
[null,null,null,null,null,null,"FORMS NO (S)","NO. OF","NO OF","TOTAL ANNUAL","HOURS","TOTAL ","NO. OF ","ANNUAL ","RECORD-"]
["SECTION OF","DESCRIPTION",null,null,null,null,"(If \"none\"","RESPONDENTS","RESPONSES","RESPONSES","PER  ","HOURS","RECORD-","HOURS PER","KEEPING HOURS"]
["REGS.",null,null,null,null,null,"so state)",null,"PER ","(Col. D x E)","RESPONSE","(Col. F x G)","KEEPERS","RECORD-","(Col. I x J)"]
[null,null,null,null,null,null,null,null,"RESPONDENT",null,null,null,null,"KEEPER"]
["(A)","(B)",null,null,null,null,"(C)","(D)","(E)","(F)","(G)","(H)","(I)","(J)","(K)"]
[null,null,null,null,null,null,null,null,null,{"$f":"SUM(H410*I410)","v":0},null,{"$f":"SUM(J410*K410)","v":0},null,null,{"$f":"SUM(M410*N410)","v":0}]
[null,null,null,null,null,null,null,null,null,0,null,0,null,null,0]
[null,null,null,null,null,null,null,null,null,0,null,0,null,null,0]
[null,null,null,null,null,null,null,null,null,0,null,0,null,null,0]
[null,null,null,null,null,null,null,null,null,0,null,0,null,null,0]
[null,null,null,null,null,null,null,null,null,0,null,0,null,null,0]
[null,"SUBTOTAL",null,null,null,null,null,null,null,{"$f":"SUM(J410:J415)","v":0},null,{"$f":"SUM(L410:L415)","v":0},{"$f":"SUM(M410:M415)","v":0},null,{"$f":"SUM(O410:O415)","v":0}]
[]
[]
[]
["INSTRUCTIONS:  Use this form when a single information collection document involves multiple reporting and recordkeeping requirements.  The totals of the figures in cols. should be entered in item 13 of OMB-83-1:                  cols. (D) &/or (I) = 13a (respondent is only counted once); cols. F & I = 13b;         cols. H & K = 13c.                                                                                                                                                                                                                                                                                                       (F)Total/(D)Total = (E)Average     (H)Total/(F)Total = (G)Average     (K)Total/(I)Total = (J)Average\nNOTE:  The columns will calculate automatically.  If Col. E's response is something other than annually, i.e., 1/6 years, list as \"1/6\" & decimal will display.    \n",null,null,null,null,null,null,null,"TITLE OF INFORMATION COLLECTION DOCUMENT",null,null,null,null,"OMB NO."]
[]
[null,null,null,null,null,null,null,null,null,null,null,null,null,"0581-"]
[]
[]
[null,null,null,null,null,null,null,null,null,null,null,null,null,"DATE PREPARED"]
[]
[]
[]
["IDENTIFICATION OF REPORTING OR RECORDKEEPING REQUIREMENT",null,null,null,null,null,null,"ANNUAL BURDEN"]
[]
[null,null,null,null,null,null,null,"REPORTS",null,null,null,null,"RECORDS"]
[]
[null,null,null,null,null,null,null,null,null,null,null,null,null,null,"TOTAL"]
[null,null,null,null,null,null,"FORMS NO (S)","NO. OF","NO OF","TOTAL ANNUAL","HOURS","TOTAL ","NO. OF ","ANNUAL ","RECORD-"]
["SECTION OF","DESCRIPTION",null,null,null,null,"(If \"none\"","RESPONDENTS","RESPONSES","RESPONSES","PER  ","HOURS","RECORD-","HOURS PER","KEEPING HOURS"]
["REGS.",null,null,null,null,null,"so state)",null,"PER ","(Col. D x E)","RESPONSE","(Col. F x G)","KEEPERS","RECORD-","(Col. I x J)"]
[null,null,null,null,null,null,null,null,"RESPONDENT",null,null,null,null,"KEEPER"]
["(A)","(B)",null,null,null,null,"(C)","(D)","(E)","(F)","(G)","(H)","(I)","(J)","(K)"]
[null,null,null,null,null,null,null,null,null,{"$f":"SUM(H439*I439)","v":0},null,{"$f":"SUM(J439*K439)","v":0},null,null,{"$f":"SUM(M439*N439)","v":0}]
[null,null,null,null,null,null,null,null,null,0,null,0,null,null,0]
[null,null,null,null,null,null,null,null,null,0,null,0,null,null,0]
[null,null,null,null,null,null,null,null,null,0,null,0,null,null,0]
[null,null,null,null,null,null,null,null,null,0,null,0,null,null,0]
[null,null,null,null,null,null,null,null,null,0,null,0,null,null,0]
[null,"SUBTOTAL",null,null,null,null,null,null,null,{"$f":"SUM(J439:J444)","v":0},null,{"$f":"SUM(L439:L444)","v":0},{"$f":"SUM(M439:M444)","v":0},null,{"$f":"SUM(O439:O444)","v":0}]
[]
[]
[]
["INSTRUCTIONS:  Use this form when a single information collection document involves multiple reporting and recordkeeping requirements.  The totals of the figures in cols. should be entered in item 13 of OMB-83-1:                  cols. (D) &/or (I) = 13a (respondent is only counted once); cols. F & I = 13b;         cols. H & K = 13c.                                                                                                                                                                                                                                                                                                       (F)Total/(D)Total = (E)Average     (H)Total/(F)Total = (G)Average     (K)Total/(I)Total = (J)Average\nNOTE:  The columns will calculate automatically.  If Col. E's response is something other than annually, i.e., 1/6 years, list as \"1/6\" & decimal will display.    \n",null,null,null,null,null,null,null,"TITLE OF INFORMATION COLLECTION DOCUMENT",null,null,null,null,"OMB NO."]
[]
[null,null,null,null,null,null,null,null,null,null,null,null,null,"0581-"]
[]
[]
[null,null,null,null,null,null,null,null,null,null,null,null,null,"DATE PREPARED"]
[]
[]
[]
["IDENTIFICATION OF REPORTING OR RECORDKEEPING REQUIREMENT",null,null,null,null,null,null,"ANNUAL BURDEN"]
[]
[null,null,null,null,null,null,null,"REPORTS",null,null,null,null,"RECORDS"]
[]
[null,null,null,null,null,null,null,null,null,null,null,null,null,null,"TOTAL"]
[null,null,null,null,null,null,"FORMS NO (S)","NO. OF","NO OF","TOTAL ANNUAL","HOURS","TOTAL ","NO. OF ","ANNUAL ","RECORD-"]
["SECTION OF","DESCRIPTION",null,null,null,null,"(If \"none\"","RESPONDENTS","RESPONSES","RESPONSES","PER  ","HOURS","RECORD-","HOURS PER","KEEPING HOURS"]
["REGS.",null,null,null,null,null,"so state)",null,"PER ","(Col. D x E)","RESPONSE","(Col. F x G)","KEEPERS","RECORD-","(Col. I x J)"]
[null,null,null,null,null,null,null,null,"RESPONDENT",null,null,null,null,"KEEPER"]
["(A)","(B)",null,null,null,null,"(C)","(D)","(E)","(F)","(G)","(H)","(I)","(J)","(K)"]
[null,null,null,null,null,null,null,null,null,{"$f":"SUM(H468*I468)","v":0},null,{"$f":"SUM(J468*K468)","v":0},null,null,{"$f":"SUM(M468*N468)","v":0}]
[null,null,null,null,null,null,null,null,null,0,null,0,null,null,0]
[null,null,null,null,null,null,null,null,null,0,null,0,null,null,0]
[null,null,null,null,null,null,null,null,null,0,null,0,null,null,0]
[null,null,null,null,null,null,null,null,null,0,null,0,null,null,0]
[null,null,null,null,null,null,null,null,null,0,null,0,null,null,0]
[null,"SUBTOTAL",null,null,null,null,null,null,null,{"$f":"SUM(J468:J473)","v":0},null,{"$f":"SUM(L468:L473)","v":0},{"$f":"SUM(M468:M473)","v":0},null,{"$f":"SUM(O468:O473)","v":0}]
[]
[]
[]
["INSTRUCTIONS:  Use this form when a single information collection document involves multiple reporting and recordkeeping requirements.  The totals of the figures in cols. should be entered in item 13 of OMB-83-1:                  cols. (D) &/or (I) = 13a (respondent is only counted once); cols. F & I = 13b;         cols. H & K = 13c.                                                                                                                                                                                                                                                                                                       (F)Total/(D)Total = (E)Average     (H)Total/(F)Total = (G)Average     (K)Total/(I)Total = (J)Average\nNOTE:  The columns will calculate automatically.  If Col. E's response is something other than annually, i.e., 1/6 years, list as \"1/6\" & decimal will display.    \n",null,null,null,null,null,null,null,"TITLE OF INFORMATION COLLECTION DOCUMENT",null,null,null,null,"OMB NO."]
[]
[null,null,null,null,null,null,null,null,null,null,null,null,null,"0581-"]
[]
[]
[null,null,null,null,null,null,null,null,null,null,null,null,null,"DATE PREPARED"]
[]
[]
[]
["IDENTIFICATION OF REPORTING OR RECORDKEEPING REQUIREMENT",null,null,null,null,null,null,"ANNUAL BURDEN"]
[]
[null,null,null,null,null,null,null,"REPORTS",null,null,null,null,"RECORDS"]
[]
[null,null,null,null,null,null,null,null,null,null,null,null,null,null,"TOTAL"]
[null,null,null,null,null,null,"FORMS NO (S)","NO. OF","NO OF","TOTAL ANNUAL","HOURS","TOTAL ","NO. OF ","ANNUAL ","RECORD-"]
["SECTION OF","DESCRIPTION",null,null,null,null,"(If \"none\"","RESPONDENTS","RESPONSES","RESPONSES","PER  ","HOURS","RECORD-","HOURS PER","KEEPING HOURS"]
["REGS.",null,null,null,null,null,"so state)",null,"PER ","(Col. D x E)","RESPONSE","(Col. F x G)","KEEPERS","RECORD-","(Col. I x J)"]
[null,null,null,null,null,null,null,null,"RESPONDENT",null,null,null,null,"KEEPER"]
["(A)","(B)",null,null,null,null,"(C)","(D)","(E)","(F)","(G)","(H)","(I)","(J)","(K)"]
[null,null,null,null,null,null,null,null,null,{"$f":"SUM(H497*I497)","v":0},null,{"$f":"SUM(J497*K497)","v":0},null,null,{"$f":"SUM(M497*N497)","v":0}]
[null,null,null,null,null,null,null,null,null,0,null,0,null,null,0]
[null,null,null,null,null,null,null,null,null,0,null,0,null,null,0]
[null,null,null,null,null,null,null,null,null,0,null,0,null,null,0]
[null,null,null,null,null,null,null,null,null,0,null,0,null,null,0]
[null,null,null,null,null,null,null,null,null,0,null,0,null,null,0]
[null,"SUBTOTAL",null,null,null,null,null,null,null,{"$f":"SUM(J497:J502)","v":0},null,{"$f":"SUM(L497:L502)","v":0},{"$f":"SUM(M497:M502)","v":0},null,{"$f":"SUM(O497:O502)","v":0}]
[]
[]
[]
["INSTRUCTIONS:  Use this form when a single information collection document involves multiple reporting and recordkeeping requirements.  The totals of the figures in cols. should be entered in item 13 of OMB-83-1:                  cols. (D) &/or (I) = 13a (respondent is only counted once); cols. F & I = 13b;         cols. H & K = 13c.                                                                                                                                                                                                                                                                                                       (F)Total/(D)Total = (E)Average     (H)Total/(F)Total = (G)Average     (K)Total/(I)Total = (J)Average\nNOTE:  The columns will calculate automatically.  If Col. E's response is something other than annually, i.e., 1/6 years, list as \"1/6\" & decimal will display.    \n",null,null,null,null,null,null,null,"TITLE OF INFORMATION COLLECTION DOCUMENT",null,null,null,null,"OMB NO."]
[]
[null,null,null,null,null,null,null,null,null,null,null,null,null,"0581-"]
[]
[]
[null,null,null,null,null,null,null,null,null,null,null,null,null,"DATE PREPARED"]
[]
[]
[]
["IDENTIFICATION OF REPORTING OR RECORDKEEPING REQUIREMENT",null,null,null,null,null,null,"ANNUAL BURDEN"]
[]
[null,null,null,null,null,null,null,"REPORTS",null,null,null,null,"RECORDS"]
[]
[null,null,null,null,null,null,null,null,null,null,null,null,null,null,"TOTAL"]
[null,null,null,null,null,null,"FORMS NO (S)","NO. OF","NO OF","TOTAL ANNUAL","HOURS","TOTAL ","NO. OF ","ANNUAL ","RECORD-"]
["SECTION OF","DESCRIPTION",null,null,null,null,"(If \"none\"","RESPONDENTS","RESPONSES","RESPONSES","PER  ","HOURS","RECORD-","HOURS PER","KEEPING HOURS"]
["REGS.",null,null,null,null,null,"so state)",null,"PER ","(Col. D x E)","RESPONSE","(Col. F x G)","KEEPERS","RECORD-","(Col. I x J)"]
[null,null,null,null,null,null,null,null,"RESPONDENT",null,null,null,null,"KEEPER"]
["(A)","(B)",null,null,null,null,"(C)","(D)","(E)","(F)","(G)","(H)","(I)","(J)","(K)"]
[null,null,null,null,null,null,null,null,null,{"$f":"SUM(H526*I526)","v":0},null,{"$f":"SUM(J526*K526)","v":0},null,null,{"$f":"SUM(M526*N526)","v":0}]
[null,null,null,null,null,null,null,null,null,0,null,0,null,null,0]
[null,null,null,null,null,null,null,null,null,0,null,0,null,null,0]
[null,null,null,null,null,null,null,null,null,0,null,0,null,null,0]
[null,null,null,null,null,null,null,null,null,0,null,0,null,null,0]
[null,null,null,null,null,null,null,null,null,0,null,0,null,null,0]
[null,"SUBTOTAL",null,null,null,null,null,null,null,{"$f":"SUM(J526:J531)","v":0},null,{"$f":"SUM(L526:L531)","v":0},{"$f":"SUM(M526:M531)","v":0},null,{"$f":"SUM(O526:O531)","v":0}]
[]
[]
[]
["INSTRUCTIONS:  Use this form when a single information collection document involves multiple reporting and recordkeeping requirements.  The totals of the figures in cols. should be entered in item 13 of OMB-83-1:                  cols. (D) &/or (I) = 13a (respondent is only counted once); cols. F & I = 13b;         cols. H & K = 13c.                                                                                                                                                                                                                                                                                                       (F)Total/(D)Total = (E)Average     (H)Total/(F)Total = (G)Average     (K)Total/(I)Total = (J)Average\nNOTE:  The columns will calculate automatically.  If Col. E's response is something other than annually, i.e., 1/6 years, list as \"1/6\" & decimal will display.    \n",null,null,null,null,null,null,null,"TITLE OF INFORMATION COLLECTION DOCUMENT",null,null,null,null,"OMB NO."]
[]
[null,null,null,null,null,null,null,null,null,null,null,null,null,"0581-"]
[]
[]
[null,null,null,null,null,null,null,null,null,null,null,null,null,"DATE PREPARED"]
[]
[]
[]
["IDENTIFICATION OF REPORTING OR RECORDKEEPING REQUIREMENT",null,null,null,null,null,null,"ANNUAL BURDEN"]
[]
[null,null,null,null,null,null,null,"REPORTS",null,null,null,null,"RECORDS"]
[]
[null,null,null,null,null,null,null,null,null,null,null,null,null,null,"TOTAL"]
[null,null,null,null,null,null,"FORMS NO (S)","NO. OF","NO OF","TOTAL ANNUAL","HOURS","TOTAL ","NO. OF ","ANNUAL ","RECORD-"]
["SECTION OF","DESCRIPTION",null,null,null,null,"(If \"none\"","RESPONDENTS","RESPONSES","RESPONSES","PER  ","HOURS","RECORD-","HOURS PER","KEEPING HOURS"]
["REGS.",null,null,null,null,null,"so state)",null,"PER ","(Col. D x E)","RESPONSE","(Col. F x G)","KEEPERS","RECORD-","(Col. I x J)"]
[null,null,null,null,null,null,null,null,"RESPONDENT",null,null,null,null,"KEEPER"]
["(A)","(B)",null,null,null,null,"(C)","(D)","(E)","(F)","(G)","(H)","(I)","(J)","(K)"]
[null,null,null,null,null,null,null,null,null,{"$f":"SUM(H555*I555)","v":0},null,{"$f":"SUM(J555*K555)","v":0},null,null,{"$f":"SUM(M555*N555)","v":0}]
[null,null,null,null,null,null,null,null,null,0,null,0,null,null,0]
[null,null,null,null,null,null,null,null,null,0,null,0,null,null,0]
[null,null,null,null,null,null,null,null,null,0,null,0,null,null,0]
[null,null,null,null,null,null,null,null,null,0,null,0,null,null,0]
[null,null,null,null,null,null,null,null,null,0,null,0,null,null,0]
[null,"SUBTOTAL",null,null,null,null,null,null,null,{"$f":"SUM(J555:J560)","v":0},null,{"$f":"SUM(L555:L560)","v":0},{"$f":"SUM(M555:M560)","v":0},null,{"$f":"SUM(O555:O560)","v":0}]
[]
[]
[]
["INSTRUCTIONS:  Use this form when a single information collection document involves multiple reporting and recordkeeping requirements.  The totals of the figures in cols. should be entered in item 13 of OMB-83-1:                  cols. (D) &/or (I) = 13a (respondent is only counted once); cols. F & I = 13b;         cols. H & K = 13c.                                                                                                                                                                                                                                                                                                       (F)Total/(D)Total = (E)Average     (H)Total/(F)Total = (G)Average     (K)Total/(I)Total = (J)Average\nNOTE:  The columns will calculate automatically.  If Col. E's response is something other than annually, i.e., 1/6 years, list as \"1/6\" & decimal will display.    \n",null,null,null,null,null,null,null,"TITLE OF INFORMATION COLLECTION DOCUMENT",null,null,null,null,"OMB NO."]
[]
[null,null,null,null,null,null,null,null,null,null,null,null,null,"0581-"]
[]
[]
[null,null,null,null,null,null,null,null,null,null,null,null,null,"DATE PREPARED"]
[]
[]
[]
["IDENTIFICATION OF REPORTING OR RECORDKEEPING REQUIREMENT",null,null,null,null,null,null,"ANNUAL BURDEN"]
[]
[null,null,null,null,null,null,null,"REPORTS",null,null,null,null,"RECORDS"]
[]
[null,null,null,null,null,null,null,null,null,null,null,null,null,null,"TOTAL"]
[null,null,null,null,null,null,"FORMS NO (S)","NO. OF","NO OF","TOTAL ANNUAL","HOURS","TOTAL ","NO. OF ","ANNUAL ","RECORD-"]
["SECTION OF","DESCRIPTION",null,null,null,null,"(If \"none\"","RESPONDENTS","RESPONSES","RESPONSES","PER  ","HOURS","RECORD-","HOURS PER","KEEPING HOURS"]
["REGS.",null,null,null,null,null,"so state)",null,"PER ","(Col. D x E)","RESPONSE","(Col. F x G)","KEEPERS","RECORD-","(Col. I x J)"]
[null,null,null,null,null,null,null,null,"RESPONDENT",null,null,null,null,"KEEPER"]
["(A)","(B)",null,null,null,null,"(C)","(D)","(E)","(F)","(G)","(H)","(I)","(J)","(K)"]
[null,null,null,null,null,null,null,null,null,{"$f":"SUM(H584*I584)","v":0},null,{"$f":"SUM(J584*K584)","v":0},null,null,{"$f":"SUM(M584*N584)","v":0}]
[null,null,null,null,null,null,null,null,null,0,null,0,null,null,0]
[null,null,null,null,null,null,null,null,null,0,null,0,null,null,0]
[null,null,null,null,null,null,null,null,null,0,null,0,null,null,0]
[null,null,null,null,null,null,null,null,null,0,null,0,null,null,0]
[null,null,null,null,null,null,null,null,null,0,null,0,null,null,0]
[null,"SUBTOTAL",null,null,null,null,null,null,null,{"$f":"SUM(J584:J589)","v":0},null,{"$f":"SUM(L584:L589)","v":0},{"$f":"SUM(M584:M589)","v":0},null,{"$f":"SUM(O584:O589)","v":0}]
[]
[]
[]
["INSTRUCTIONS:  Use this form when a single information collection document involves multiple reporting and recordkeeping requirements.  The totals of the figures in cols. should be entered in item 13 of OMB-83-1:                  cols. (D) &/or (I) = 13a (respondent is only counted once); cols. F & I = 13b;         cols. H & K = 13c.                                                                                                                                                                                                                                                                                                       (F)Total/(D)Total = (E)Average     (H)Total/(F)Total = (G)Average     (K)Total/(I)Total = (J)Average\nNOTE:  The columns will calculate automatically.  If Col. E's response is something other than annually, i.e., 1/6 years, list as \"1/6\" & decimal will display.    \n",null,null,null,null,null,null,null,"TITLE OF INFORMATION COLLECTION DOCUMENT",null,null,null,null,"OMB NO."]
[]
[null,null,null,null,null,null,null,null,null,null,null,null,null,"0581-"]
[]
[]
[null,null,null,null,null,null,null,null,null,null,null,null,null,"DATE PREPARED"]
[]
[]
[]
["IDENTIFICATION OF REPORTING OR RECORDKEEPING REQUIREMENT",null,null,null,null,null,null,"ANNUAL BURDEN"]
[]
[null,null,null,null,null,null,null,"REPORTS",null,null,null,null,"RECORDS"]
[]
[null,null,null,null,null,null,null,null,null,null,null,null,null,null,"TOTAL"]
[null,null,null,null,null,null,"FORMS NO (S)","NO. OF","NO OF","TOTAL ANNUAL","HOURS","TOTAL ","NO. OF ","ANNUAL ","RECORD-"]
["SECTION OF","DESCRIPTION",null,null,null,null,"(If \"none\"","RESPONDENTS","RESPONSES","RESPONSES","PER  ","HOURS","RECORD-","HOURS PER","KEEPING HOURS"]
["REGS.",null,null,null,null,null,"so state)",null,"PER ","(Col. D x E)","RESPONSE","(Col. F x G)","KEEPERS","RECORD-","(Col. I x J)"]
[null,null,null,null,null,null,null,null,"RESPONDENT",null,null,null,null,"KEEPER"]
["(A)","(B)",null,null,null,null,"(C)","(D)","(E)","(F)","(G)","(H)","(I)","(J)","(K)"]
[null,null,null,null,null,null,null,null,null,{"$f":"SUM(H613*I613)","v":0},null,{"$f":"SUM(J613*K613)","v":0},null,null,{"$f":"SUM(M613*N613)","v":0}]
[null,null,null,null,null,null,null,null,null,0,null,0,null,null,0]
[null,null,null,null,null,null,null,null,null,0,null,0,null,null,0]
[null,null,null,null,null,null,null,null,null,0,null,0,null,null,0]
[null,null,null,null,null,null,null,null,null,0,null,0,null,null,0]
[null,null,null,null,null,null,null,null,null,0,null,0,null,null,0]
[null,"SUBTOTAL",null,null,null,null,null,null,null,{"$f":"SUM(J613:J618)","v":0},null,{"$f":"SUM(L613:L618)","v":0},{"$f":"SUM(M613:M618)","v":0},null,{"$f":"SUM(O613:O618)","v":0}]
[]
[]
[]
["INSTRUCTIONS:  Use this form when a single information collection document involves multiple reporting and recordkeeping requirements.  The totals of the figures in cols. should be entered in item 13 of OMB-83-1:                  cols. (D) &/or (I) = 13a (respondent is only counted once); cols. F & I = 13b;         cols. H & K = 13c.                                                                                                                                                                                                                                                                                                       (F)Total/(D)Total = (E)Average     (H)Total/(F)Total = (G)Average     (K)Total/(I)Total = (J)Average\nNOTE:  The columns will calculate automatically.  If Col. E's response is something other than annually, i.e., 1/6 years, list as \"1/6\" & decimal will display.    \n",null,null,null,null,null,null,null,"TITLE OF INFORMATION COLLECTION DOCUMENT",null,null,null,null,"OMB NO."]
[]
[null,null,null,null,null,null,null,null,null,null,null,null,null,"0581-"]
[]
[]
[null,null,null,null,null,null,null,null,null,null,null,null,null,"DATE PREPARED"]
[]
[]
[]
["IDENTIFICATION OF REPORTING OR RECORDKEEPING REQUIREMENT",null,null,null,null,null,null,"ANNUAL BURDEN"]
[]
[null,null,null,null,null,null,null,"REPORTS",null,null,null,null,"RECORDS"]
[]
[null,null,null,null,null,null,null,null,null,null,null,null,null,null,"TOTAL"]
[null,null,null,null,null,null,"FORMS NO (S)","NO. OF","NO OF","TOTAL ANNUAL","HOURS","TOTAL ","NO. OF ","ANNUAL ","RECORD-"]
["SECTION OF","DESCRIPTION",null,null,null,null,"(If \"none\"","RESPONDENTS","RESPONSES","RESPONSES","PER  ","HOURS","RECORD-","HOURS PER","KEEPING HOURS"]
["REGS.",null,null,null,null,null,"so state)",null,"PER ","(Col. D x E)","RESPONSE","(Col. F x G)","KEEPERS","RECORD-","(Col. I x J)"]
[null,null,null,null,null,null,null,null,"RESPONDENT",null,null,null,null,"KEEPER"]
["(A)","(B)",null,null,null,null,"(C)","(D)","(E)","(F)","(G)","(H)","(I)","(J)","(K)"]
[null,null,null,null,null,null,null,null,null,{"$f":"SUM(H642*I642)","v":0},null,{"$f":"SUM(J642*K642)","v":0},null,null,{"$f":"SUM(M642*N642)","v":0}]
[null,null,null,null,null,null,null,null,null,0,null,0,null,null,0]
[null,null,null,null,null,null,null,null,null,0,null,0,null,null,0]
[null,null,null,null,null,null,null,null,null,0,null,0,null,null,0]
[null,null,null,null,null,null,null,null,null,0,null,0,null,null,0]
[null,null,null,null,null,null,null,null,null,0,null,0,null,null,0]
[null,"SUBTOTAL",null,null,null,null,null,null,null,{"$f":"SUM(J642:J647)","v":0},null,{"$f":"SUM(L642:L647)","v":0},{"$f":"SUM(M642:M647)","v":0},null,{"$f":"SUM(O642:O647)","v":0}]
[]
[]
[]
["INSTRUCTIONS:  Use this form when a single information collection document involves multiple reporting and recordkeeping requirements.  The totals of the figures in cols. should be entered in item 13 of OMB-83-1:                  cols. (D) &/or (I) = 13a (respondent is only counted once); cols. F & I = 13b;         cols. H & K = 13c.                                                                                                                                                                                                                                                                                                       (F)Total/(D)Total = (E)Average     (H)Total/(F)Total = (G)Average     (K)Total/(I)Total = (J)Average\nNOTE:  The columns will calculate automatically.  If Col. E's response is something other than annually, i.e., 1/6 years, list as \"1/6\" & decimal will display.    \n",null,null,null,null,null,null,null,"TITLE OF INFORMATION COLLECTION DOCUMENT",null,null,null,null,"OMB NO."]
[]
[null,null,null,null,null,null,null,null,null,null,null,null,null,"0581-"]
[]
[]
[null,null,null,null,null,null,null,null,null,null,null,null,null,"DATE PREPARED"]
[]
[]
[]
["IDENTIFICATION OF REPORTING OR RECORDKEEPING REQUIREMENT",null,null,null,null,null,null,"ANNUAL BURDEN"]
[]
[null,null,null,null,null,null,null,"REPORTS",null,null,null,null,"RECORDS"]
[]
[null,null,null,null,null,null,null,null,null,null,null,null,null,null,"TOTAL"]
[null,null,null,null,null,null,"FORMS NO (S)","NO. OF","NO OF","TOTAL ANNUAL","HOURS","TOTAL ","NO. OF ","ANNUAL ","RECORD-"]
["SECTION OF","DESCRIPTION",null,null,null,null,"(If \"none\"","RESPONDENTS","RESPONSES","RESPONSES","PER  ","HOURS","RECORD-","HOURS PER","KEEPING HOURS"]
["REGS.",null,null,null,null,null,"so state)",null,"PER ","(Col. D x E)","RESPONSE","(Col. F x G)","KEEPERS","RECORD-","(Col. I x J)"]
[null,null,null,null,null,null,null,null,"RESPONDENT",null,null,null,null,"KEEPER"]
["(A)","(B)",null,null,null,null,"(C)","(D)","(E)","(F)","(G)","(H)","(I)","(J)","(K)"]
[null,null,null,null,null,null,null,null,null,{"$f":"SUM(H671*I671)","v":0},null,{"$f":"SUM(J671*K671)","v":0},null,null,{"$f":"SUM(M671*N671)","v":0}]
[null,null,null,null,null,null,null,null,null,0,null,0,null,null,0]
[null,null,null,null,null,null,null,null,null,0,null,0,null,null,0]
[null,null,null,null,null,null,null,null,null,0,null,0,null,null,0]
[null,null,null,null,null,null,null,null,null,0,null,0,null,null,0]
[null,null,null,null,null,null,null,null,null,0,null,0,null,null,0]
[null,"SUBTOTAL",null,null,null,null,null,null,null,{"$f":"SUM(J671:J676)","v":0},null,{"$f":"SUM(L671:L676)","v":0},{"$f":"SUM(M671:M676)","v":0},null,{"$f":"SUM(O671:O676)","v":0}]
[]
[]
[]
["INSTRUCTIONS:  Use this form when a single information collection document involves multiple reporting and recordkeeping requirements.  The totals of the figures in cols. should be entered in item 13 of OMB-83-1:                  cols. (D) &/or (I) = 13a (respondent is only counted once); cols. F & I = 13b;         cols. H & K = 13c.                                                                                                                                                                                                                                                                                                       (F)Total/(D)Total = (E)Average     (H)Total/(F)Total = (G)Average     (K)Total/(I)Total = (J)Average\nNOTE:  The columns will calculate automatically.  If Col. E's response is something other than annually, i.e., 1/6 years, list as \"1/6\" & decimal will display.    \n",null,null,null,null,null,null,null,"TITLE OF INFORMATION COLLECTION DOCUMENT",null,null,null,null,"OMB NO."]
[]
[null,null,null,null,null,null,null,null,null,null,null,null,null,"0581-"]
[]
[]
[null,null,null,null,null,null,null,null,null,null,null,null,null,"DATE PREPARED"]
[]
[]
[]
["IDENTIFICATION OF REPORTING OR RECORDKEEPING REQUIREMENT",null,null,null,null,null,null,"ANNUAL BURDEN"]
[]
[null,null,null,null,null,null,null,"REPORTS",null,null,null,null,"RECORDS"]
[]
[null,null,null,null,null,null,null,null,null,null,null,null,null,null,"TOTAL"]
[null,null,null,null,null,null,"FORMS NO (S)","NO. OF","NO OF","TOTAL ANNUAL","HOURS","TOTAL ","NO. OF ","ANNUAL ","RECORD-"]
["SECTION OF","DESCRIPTION",null,null,null,null,"(If \"none\"","RESPONDENTS","RESPONSES","RESPONSES","PER  ","HOURS","RECORD-","HOURS PER","KEEPING HOURS"]
["REGS.",null,null,null,null,null,"so state)",null,"PER ","(Col. D x E)","RESPONSE","(Col. F x G)","KEEPERS","RECORD-","(Col. I x J)"]
[null,null,null,null,null,null,null,null,"RESPONDENT",null,null,null,null,"KEEPER"]
["(A)","(B)",null,null,null,null,"(C)","(D)","(E)","(F)","(G)","(H)","(I)","(J)","(K)"]
[null,null,null,null,null,null,null,null,null,{"$f":"SUM(H700*I700)","v":0},null,{"$f":"SUM(J700*K700)","v":0},null,null,{"$f":"SUM(M700*N700)","v":0}]
[null,null,null,null,null,null,null,null,null,0,null,0,null,null,0]
[null,null,null,null,null,null,null,null,null,0,null,0,null,null,0]
[null,null,null,null,null,null,null,null,null,0,null,0,null,null,0]
[null,null,null,null,null,null,null,null,null,0,null,0,null,null,0]
[null,null,null,null,null,null,null,null,null,0,null,0,null,null,0]
[null,"SUBTOTAL",null,null,null,null,null,null,null,{"$f":"SUM(J700:J705)","v":0},null,{"$f":"SUM(L700:L705)","v":0},{"$f":"SUM(M700:M705)","v":0},null,{"$f":"SUM(O700:O705)","v":0}]
[]
[]
[]
["INSTRUCTIONS:  Use this form when a single information collection document involves multiple reporting and recordkeeping requirements.  The totals of the figures in cols. should be entered in item 13 of OMB-83-1:                  cols. (D) &/or (I) = 13a (respondent is only counted once); cols. F & I = 13b;         cols. H & K = 13c.                                                                                                                                                                                                                                                                                                       (F)Total/(D)Total = (E)Average     (H)Total/(F)Total = (G)Average     (K)Total/(I)Total = (J)Average\nNOTE:  The columns will calculate automatically.  If Col. E's response is something other than annually, i.e., 1/6 years, list as \"1/6\" & decimal will display.    \n",null,null,null,null,null,null,null,"TITLE OF INFORMATION COLLECTION DOCUMENT",null,null,null,null,"OMB NO."]
[]
[null,null,null,null,null,null,null,null,null,null,null,null,null,"0581-"]
[]
[]
[null,null,null,null,null,null,null,null,null,null,null,null,null,"DATE PREPARED"]
[]
[]
[]
["IDENTIFICATION OF REPORTING OR RECORDKEEPING REQUIREMENT",null,null,null,null,null,null,"ANNUAL BURDEN"]
[]
[null,null,null,null,null,null,null,"REPORTS",null,null,null,null,"RECORDS"]
[]
[null,null,null,null,null,null,null,null,null,null,null,null,null,null,"TOTAL"]
[null,null,null,null,null,null,"FORMS NO (S)","NO. OF","NO OF","TOTAL ANNUAL","HOURS","TOTAL ","NO. OF ","ANNUAL ","RECORD-"]
["SECTION OF","DESCRIPTION",null,null,null,null,"(If \"none\"","RESPONDENTS","RESPONSES","RESPONSES","PER  ","HOURS","RECORD-","HOURS PER","KEEPING HOURS"]
["REGS.",null,null,null,null,null,"so state)",null,"PER ","(Col. D x E)","RESPONSE","(Col. F x G)","KEEPERS","RECORD-","(Col. I x J)"]
[null,null,null,null,null,null,null,null,"RESPONDENT",null,null,null,null,"KEEPER"]
["(A)","(B)",null,null,null,null,"(C)","(D)","(E)","(F)","(G)","(H)","(I)","(J)","(K)"]
[null,null,null,null,null,null,null,null,null,{"$f":"SUM(H729*I729)","v":0},null,{"$f":"SUM(J729*K729)","v":0},null,null,{"$f":"SUM(M729*N729)","v":0}]
[null,null,null,null,null,null,null,null,null,0,null,0,null,null,0]
[null,null,null,null,null,null,null,null,null,0,null,0,null,null,0]
[null,null,null,null,null,null,null,null,null,0,null,0,null,null,0]
[null,null,null,null,null,null,null,null,null,0,null,0,null,null,0]
[null,null,null,null,null,null,null,null,null,0,null,0,null,null,0]
[null,"SUBTOTAL",null,null,null,null,null,null,null,{"$f":"SUM(J729:J734)","v":0},null,{"$f":"SUM(L729:L734)","v":0},{"$f":"SUM(M729:M734)","v":0},null,{"$f":"SUM(O729:O734)","v":0}]
[]
[]
[]
["INSTRUCTIONS:  Use this form when a single information collection document involves multiple reporting and recordkeeping requirements.  The totals of the figures in cols. should be entered in item 13 of OMB-83-1:                  cols. (D) &/or (I) = 13a (respondent is only counted once); cols. F & I = 13b;         cols. H & K = 13c.                                                                                                                                                                                                                                                                                                       (F)Total/(D)Total = (E)Average     (H)Total/(F)Total = (G)Average     (K)Total/(I)Total = (J)Average\nNOTE:  The columns will calculate automatically.  If Col. E's response is something other than annually, i.e., 1/6 years, list as \"1/6\" & decimal will display.    \n",null,null,null,null,null,null,null,"TITLE OF INFORMATION COLLECTION DOCUMENT",null,null,null,null,"OMB NO."]
[]
[null,null,null,null,null,null,null,null,null,null,null,null,null,"0581-"]
[]
[]
[null,null,null,null,null,null,null,null,null,null,null,null,null,"DATE PREPARED"]
[]
[]
[]
["IDENTIFICATION OF REPORTING OR RECORDKEEPING REQUIREMENT",null,null,null,null,null,null,"ANNUAL BURDEN"]
[]
[null,null,null,null,null,null,null,"REPORTS",null,null,null,null,"RECORDS"]
[]
[null,null,null,null,null,null,null,null,null,null,null,null,null,null,"TOTAL"]
[null,null,null,null,null,null,"FORMS NO (S)","NO. OF","NO OF","TOTAL ANNUAL","HOURS","TOTAL ","NO. OF ","ANNUAL ","RECORD-"]
["SECTION OF","DESCRIPTION",null,null,null,null,"(If \"none\"","RESPONDENTS","RESPONSES","RESPONSES","PER  ","HOURS","RECORD-","HOURS PER","KEEPING HOURS"]
["REGS.",null,null,null,null,null,"so state)",null,"PER ","(Col. D x E)","RESPONSE","(Col. F x G)","KEEPERS","RECORD-","(Col. I x J)"]
[null,null,null,null,null,null,null,null,"RESPONDENT",null,null,null,null,"KEEPER"]
["(A)","(B)",null,null,null,null,"(C)","(D)","(E)","(F)","(G)","(H)","(I)","(J)","(K)"]
[null,null,null,null,null,null,null,null,null,{"$f":"SUM(H758*I758)","v":0},null,{"$f":"SUM(J758*K758)","v":0},null,null,{"$f":"SUM(M758*N758)","v":0}]
[null,null,null,null,null,null,null,null,null,0,null,0,null,null,0]
[null,null,null,null,null,null,null,null,null,0,null,0,null,null,0]
[null,null,null,null,null,null,null,null,null,0,null,0,null,null,0]
[null,null,null,null,null,null,null,null,null,0,null,0,null,null,0]
[null,null,null,null,null,null,null,null,null,0,null,0,null,null,0]
[null,"SUBTOTAL",null,null,null,null,null,null,null,{"$f":"SUM(J758:J763)","v":0},null,{"$f":"SUM(L758:L763)","v":0},{"$f":"SUM(M758:M763)","v":0},null,{"$f":"SUM(O758:O763)","v":0}]
[]
[]
[]
["INSTRUCTIONS:  Use this form when a single information collection document involves multiple reporting and recordkeeping requirements.  The totals of the figures in cols. should be entered in item 13 of OMB-83-1:                  cols. (D) &/or (I) = 13a (respondent is only counted once); cols. F & I = 13b;         cols. H & K = 13c.                                                                                                                                                                                                                                                                                                       (F)Total/(D)Total = (E)Average     (H)Total/(F)Total = (G)Average     (K)Total/(I)Total = (J)Average\nNOTE:  The columns will calculate automatically.  If Col. E's response is something other than annually, i.e., 1/6 years, list as \"1/6\" & decimal will display.    \n",null,null,null,null,null,null,null,"TITLE OF INFORMATION COLLECTION DOCUMENT",null,null,null,null,"OMB NO."]
[]
[null,null,null,null,null,null,null,null,null,null,null,null,null,"0581-"]
[]
[]
[null,null,null,null,null,null,null,null,null,null,null,null,null,"DATE PREPARED"]
[]
[]
[]
["IDENTIFICATION OF REPORTING OR RECORDKEEPING REQUIREMENT",null,null,null,null,null,null,"ANNUAL BURDEN"]
[]
[null,null,null,null,null,null,null,"REPORTS",null,null,null,null,"RECORDS"]
[]
[null,null,null,null,null,null,null,null,null,null,null,null,null,null,"TOTAL"]
[null,null,null,null,null,null,"FORMS NO (S)","NO. OF","NO OF","TOTAL ANNUAL","HOURS","TOTAL ","NO. OF ","ANNUAL ","RECORD-"]
["SECTION OF","DESCRIPTION",null,null,null,null,"(If \"none\"","RESPONDENTS","RESPONSES","RESPONSES","PER  ","HOURS","RECORD-","HOURS PER","KEEPING HOURS"]
["REGS.",null,null,null,null,null,"so state)",null,"PER ","(Col. D x E)","RESPONSE","(Col. F x G)","KEEPERS","RECORD-","(Col. I x J)"]
[null,null,null,null,null,null,null,null,"RESPONDENT",null,null,null,null,"KEEPER"]
["(A)","(B)",null,null,null,null,"(C)","(D)","(E)","(F)","(G)","(H)","(I)","(J)","(K)"]
[null,null,null,null,null,null,null,null,null,{"$f":"SUM(H787*I787)","v":0},null,{"$f":"SUM(J787*K787)","v":0},null,null,{"$f":"SUM(M787*N787)","v":0}]
[null,null,null,null,null,null,null,null,null,0,null,0,null,null,0]
[null,null,null,null,null,null,null,null,null,0,null,0,null,null,0]
[null,null,null,null,null,null,null,null,null,0,null,0,null,null,0]
[null,null,null,null,null,null,null,null,null,0,null,0,null,null,0]
[null,null,null,null,null,null,null,null,null,0,null,0,null,null,0]
[null,"SUBTOTAL",null,null,null,null,null,null,null,{"$f":"SUM(J787:J792)","v":0},null,{"$f":"SUM(L787:L792)","v":0},{"$f":"SUM(M787:M792)","v":0},null,{"$f":"SUM(O787:O792)","v":0}]
[]
[]
[]
["INSTRUCTIONS:  Use this form when a single information collection document involves multiple reporting and recordkeeping requirements.  The totals of the figures in cols. should be entered in item 13 of OMB-83-1:                  cols. (D) &/or (I) = 13a (respondent is only counted once); cols. F & I = 13b;         cols. H & K = 13c.                                                                                                                                                                                                                                                                                                       (F)Total/(D)Total = (E)Average     (H)Total/(F)Total = (G)Average     (K)Total/(I)Total = (J)Average\nNOTE:  The columns will calculate automatically.  If Col. E's response is something other than annually, i.e., 1/6 years, list as \"1/6\" & decimal will display.    \n",null,null,null,null,null,null,null,"TITLE OF INFORMATION COLLECTION DOCUMENT",null,null,null,null,"OMB NO."]
[]
[null,null,null,null,null,null,null,null,null,null,null,null,null,"0581-"]
[]
[]
[null,null,null,null,null,null,null,null,null,null,null,null,null,"DATE PREPARED"]
[]
[]
[]
["IDENTIFICATION OF REPORTING OR RECORDKEEPING REQUIREMENT",null,null,null,null,null,null,"ANNUAL BURDEN"]
[]
[null,null,null,null,null,null,null,"REPORTS",null,null,null,null,"RECORDS"]
[]
[null,null,null,null,null,null,null,null,null,null,null,null,null,null,"TOTAL"]
[null,null,null,null,null,null,"FORMS NO (S)","NO. OF","NO OF","TOTAL ANNUAL","HOURS","TOTAL ","NO. OF ","ANNUAL ","RECORD-"]
["SECTION OF","DESCRIPTION",null,null,null,null,"(If \"none\"","RESPONDENTS","RESPONSES","RESPONSES","PER  ","HOURS","RECORD-","HOURS PER","KEEPING HOURS"]
["REGS.",null,null,null,null,null,"so state)",null,"PER ","(Col. D x E)","RESPONSE","(Col. F x G)","KEEPERS","RECORD-","(Col. I x J)"]
[null,null,null,null,null,null,null,null,"RESPONDENT",null,null,null,null,"KEEPER"]
["(A)","(B)",null,null,null,null,"(C)","(D)","(E)","(F)","(G)","(H)","(I)","(J)","(K)"]
[null,null,null,null,null,null,null,null,null,{"$f":"SUM(H816*I816)","v":0},null,{"$f":"SUM(J816*K816)","v":0},null,null,{"$f":"SUM(M816*N816)","v":0}]
[null,null,null,null,null,null,null,null,null,0,null,0,null,null,0]
[null,null,null,null,null,null,null,null,null,0,null,0,null,null,0]
[null,null,null,null,null,null,null,null,null,0,null,0,null,null,0]
[null,null,null,null,null,null,null,null,null,0,null,0,null,null,0]
[null,null,null,null,null,null,null,null,null,0,null,0,null,null,0]
[null,"SUBTOTAL",null,null,null,null,null,null,null,{"$f":"SUM(J816:J821)","v":0},null,{"$f":"SUM(L816:L821)","v":0},{"$f":"SUM(M816:M821)","v":0},null,{"$f":"SUM(O816:O821)","v":0}]
[]
[]
[]
["INSTRUCTIONS:  Use this form when a single information collection document involves multiple reporting and recordkeeping requirements.  The totals of the figures in cols. should be entered in item 13 of OMB-83-1:                  cols. (D) &/or (I) = 13a (respondent is only counted once); cols. F & I = 13b;         cols. H & K = 13c.                                                                                                                                                                                                                                                                                                       (F)Total/(D)Total = (E)Average     (H)Total/(F)Total = (G)Average     (K)Total/(I)Total = (J)Average\nNOTE:  The columns will calculate automatically.  If Col. E's response is something other than annually, i.e., 1/6 years, list as \"1/6\" & decimal will display.    \n",null,null,null,null,null,null,null,"TITLE OF INFORMATION COLLECTION DOCUMENT",null,null,null,null,"OMB NO."]
[]
[null,null,null,null,null,null,null,null,null,null,null,null,null,"0581-"]
[]
[]
[null,null,null,null,null,null,null,null,null,null,null,null,null,"DATE PREPARED"]
[]
[]
[]
["IDENTIFICATION OF REPORTING OR RECORDKEEPING REQUIREMENT",null,null,null,null,null,null,"ANNUAL BURDEN"]
[]
[null,null,null,null,null,null,null,"REPORTS",null,null,null,null,"RECORDS"]
[]
[null,null,null,null,null,null,null,null,null,null,null,null,null,null,"TOTAL"]
[null,null,null,null,null,null,"FORMS NO (S)","NO. OF","NO OF","TOTAL ANNUAL","HOURS","TOTAL ","NO. OF ","ANNUAL ","RECORD-"]
["SECTION OF","DESCRIPTION",null,null,null,null,"(If \"none\"","RESPONDENTS","RESPONSES","RESPONSES","PER  ","HOURS","RECORD-","HOURS PER","KEEPING HOURS"]
["REGS.",null,null,null,null,null,"so state)",null,"PER ","(Col. D x E)","RESPONSE","(Col. F x G)","KEEPERS","RECORD-","(Col. I x J)"]
[null,null,null,null,null,null,null,null,"RESPONDENT",null,null,null,null,"KEEPER"]
["(A)","(B)",null,null,null,null,"(C)","(D)","(E)","(F)","(G)","(H)","(I)","(J)","(K)"]
[null,null,null,null,null,null,null,null,null,{"$f":"SUM(H845*I845)","v":0},null,{"$f":"SUM(J845*K845)","v":0},null,null,{"$f":"SUM(M845*N845)","v":0}]
[null,null,null,null,null,null,null,null,null,0,null,0,null,null,0]
[null,null,null,null,null,null,null,null,null,0,null,0,null,null,0]
[null,null,null,null,null,null,null,null,null,0,null,0,null,null,0]
[null,null,null,null,null,null,null,null,null,0,null,0,null,null,0]
[null,null,null,null,null,null,null,null,null,0,null,0,null,null,0]
[null,"SUBTOTAL",null,null,null,null,null,null,null,{"$f":"SUM(J845:J850)","v":0},null,{"$f":"SUM(L845:L850)","v":0},{"$f":"SUM(M845:M850)","v":0},null,{"$f":"SUM(O845:O850)","v":0}]
[]
[]
[]
["INSTRUCTIONS:  Use this form when a single information collection document involves multiple reporting and recordkeeping requirements.  The totals of the figures in cols. should be entered in item 13 of OMB-83-1:                  cols. (D) &/or (I) = 13a (respondent is only counted once); cols. F & I = 13b;         cols. H & K = 13c.                                                                                                                                                                                                                                                                                                       (F)Total/(D)Total = (E)Average     (H)Total/(F)Total = (G)Average     (K)Total/(I)Total = (J)Average\nNOTE:  The columns will calculate automatically.  If Col. E's response is something other than annually, i.e., 1/6 years, list as \"1/6\" & decimal will display.    \n",null,null,null,null,null,null,null,"TITLE OF INFORMATION COLLECTION DOCUMENT",null,null,null,null,"OMB NO."]
[]
[null,null,null,null,null,null,null,null,null,null,null,null,null,"0581-"]
[]
[]
[null,null,null,null,null,null,null,null,null,null,null,null,null,"DATE PREPARED"]
[]
[]
[]
["IDENTIFICATION OF REPORTING OR RECORDKEEPING REQUIREMENT",null,null,null,null,null,null,"ANNUAL BURDEN"]
[]
[null,null,null,null,null,null,null,"REPORTS",null,null,null,null,"RECORDS"]
[]
[null,null,null,null,null,null,null,null,null,null,null,null,null,null,"TOTAL"]
[null,null,null,null,null,null,"FORMS NO (S)","NO. OF","NO OF","TOTAL ANNUAL","HOURS","TOTAL ","NO. OF ","ANNUAL ","RECORD-"]
["SECTION OF","DESCRIPTION",null,null,null,null,"(If \"none\"","RESPONDENTS","RESPONSES","RESPONSES","PER  ","HOURS","RECORD-","HOURS PER","KEEPING HOURS"]
["REGS.",null,null,null,null,null,"so state)",null,"PER ","(Col. D x E)","RESPONSE","(Col. F x G)","KEEPERS","RECORD-","(Col. I x J)"]
[null,null,null,null,null,null,null,null,"RESPONDENT",null,null,null,null,"KEEPER"]
["(A)","(B)",null,null,null,null,"(C)","(D)","(E)","(F)","(G)","(H)","(I)","(J)","(K)"]
[null,null,null,null,null,null,null,null,null,{"$f":"SUM(H874*I874)","v":0},null,{"$f":"SUM(J874*K874)","v":0},null,null,{"$f":"SUM(M874*N874)","v":0}]
[null,null,null,null,null,null,null,null,null,0,null,0,null,null,0]
[null,null,null,null,null,null,null,null,null,0,null,0,null,null,0]
[null,null,null,null,null,null,null,null,null,0,null,0,null,null,0]
[null,null,null,null,null,null,null,null,null,0,null,0,null,null,0]
[null,null,null,null,null,null,null,null,null,0,null,0,null,null,0]
[null,"SUBTOTAL",null,null,null,null,null,null,null,{"$f":"SUM(J874:J879)","v":0},null,{"$f":"SUM(L874:L879)","v":0},{"$f":"SUM(M874:M879)","v":0},null,{"$f":"SUM(O874:O879)","v":0}]
[]
[]
[]
["INSTRUCTIONS:  Use this form when a single information collection document involves multiple reporting and recordkeeping requirements.  The totals of the figures in cols. should be entered in item 13 of OMB-83-1:                  cols. (D) &/or (I) = 13a (respondent is only counted once); cols. F & I = 13b;         cols. H & K = 13c.                                                                                                                                                                                                                                                                                                       (F)Total/(D)Total = (E)Average     (H)Total/(F)Total = (G)Average     (K)Total/(I)Total = (J)Average\nNOTE:  The columns will calculate automatically.  If Col. E's response is something other than annually, i.e., 1/6 years, list as \"1/6\" & decimal will display.    \n",null,null,null,null,null,null,null,"TITLE OF INFORMATION COLLECTION DOCUMENT",null,null,null,null,"OMB NO."]
[]
[null,null,null,null,null,null,null,null,null,null,null,null,null,"0581-"]
[]
[]
[null,null,null,null,null,null,null,null,null,null,null,null,null,"DATE PREPARED"]
[]
[]
[]
["IDENTIFICATION OF REPORTING OR RECORDKEEPING REQUIREMENT",null,null,null,null,null,null,"ANNUAL BURDEN"]
[]
[null,null,null,null,null,null,null,"REPORTS",null,null,null,null,"RECORDS"]
[]
[null,null,null,null,null,null,null,null,null,null,null,null,null,null,"TOTAL"]
[null,null,null,null,null,null,"FORMS NO (S)","NO. OF","NO OF","TOTAL ANNUAL","HOURS","TOTAL ","NO. OF ","ANNUAL ","RECORD-"]
["SECTION OF","DESCRIPTION",null,null,null,null,"(If \"none\"","RESPONDENTS","RESPONSES","RESPONSES","PER  ","HOURS","RECORD-","HOURS PER","KEEPING HOURS"]
["REGS.",null,null,null,null,null,"so state)",null,"PER ","(Col. D x E)","RESPONSE","(Col. F x G)","KEEPERS","RECORD-","(Col. I x J)"]
[null,null,null,null,null,null,null,null,"RESPONDENT",null,null,null,null,"KEEPER"]
["(A)","(B)",null,null,null,null,"(C)","(D)","(E)","(F)","(G)","(H)","(I)","(J)","(K)"]
[null,null,null,null,null,null,null,null,null,{"$f":"SUM(H903*I903)","v":0},null,{"$f":"SUM(J903*K903)","v":0},null,null,{"$f":"SUM(M903*N903)","v":0}]
[null,null,null,null,null,null,null,null,null,0,null,0,null,null,0]
[null,null,null,null,null,null,null,null,null,0,null,0,null,null,0]
[null,null,null,null,null,null,null,null,null,0,null,0,null,null,0]
[null,null,null,null,null,null,null,null,null,0,null,0,null,null,0]
[null,null,null,null,null,null,null,null,null,0,null,0,null,null,0]
[null,"SUBTOTAL",null,null,null,null,null,null,null,{"$f":"SUM(J903:J908)","v":0},null,{"$f":"SUM(L903:L908)","v":0},{"$f":"SUM(M903:M908)","v":0},null,{"$f":"SUM(O903:O908)","v":0}]
[]
[]
[]
["INSTRUCTIONS:  Use this form when a single information collection document involves multiple reporting and recordkeeping requirements.  The totals of the figures in cols. should be entered in item 13 of OMB-83-1:                  cols. (D) &/or (I) = 13a (respondent is only counted once); cols. F & I = 13b;         cols. H & K = 13c.                                                                                                                                                                                                                                                                                                       (F)Total/(D)Total = (E)Average     (H)Total/(F)Total = (G)Average     (K)Total/(I)Total = (J)Average\nNOTE:  The columns will calculate automatically.  If Col. E's response is something other than annually, i.e., 1/6 years, list as \"1/6\" & decimal will display.    \n",null,null,null,null,null,null,null,"TITLE OF INFORMATION COLLECTION DOCUMENT",null,null,null,null,"OMB NO."]
[]
[null,null,null,null,null,null,null,null,null,null,null,null,null,"0581-"]
[]
[]
[null,null,null,null,null,null,null,null,null,null,null,null,null,"DATE PREPARED"]
[]
[]
[]
["IDENTIFICATION OF REPORTING OR RECORDKEEPING REQUIREMENT",null,null,null,null,null,null,"ANNUAL BURDEN"]
[]
[null,null,null,null,null,null,null,"REPORTS",null,null,null,null,"RECORDS"]
[]
[null,null,null,null,null,null,null,null,null,null,null,null,null,null,"TOTAL"]
[null,null,null,null,null,null,"FORMS NO (S)","NO. OF","NO OF","TOTAL ANNUAL","HOURS","TOTAL ","NO. OF ","ANNUAL ","RECORD-"]
["SECTION OF","DESCRIPTION",null,null,null,null,"(If \"none\"","RESPONDENTS","RESPONSES","RESPONSES","PER  ","HOURS","RECORD-","HOURS PER","KEEPING HOURS"]
["REGS.",null,null,null,null,null,"so state)",null,"PER ","(Col. D x E)","RESPONSE","(Col. F x G)","KEEPERS","RECORD-","(Col. I x J)"]
[null,null,null,null,null,null,null,null,"RESPONDENT",null,null,null,null,"KEEPER"]
["(A)","(B)",null,null,null,null,"(C)","(D)","(E)","(F)","(G)","(H)","(I)","(J)","(K)"]
[null,null,null,null,null,null,null,null,null,{"$f":"SUM(H932*I932)","v":0},null,{"$f":"SUM(J932*K932)","v":0},null,null,{"$f":"SUM(M932*N932)","v":0}]
[null,null,null,null,null,null,null,null,null,0,null,0,null,null,0]
[null,null,null,null,null,null,null,null,null,0,null,0,null,null,0]
[null,null,null,null,null,null,null,null,null,0,null,0,null,null,0]
[null,null,null,null,null,null,null,null,null,0,null,0,null,null,0]
[null,null,null,null,null,null,null,null,null,0,null,0,null,null,0]
[null,"SUBTOTAL",null,null,null,null,null,null,null,{"$f":"SUM(J932:J937)","v":0},null,{"$f":"SUM(L932:L937)","v":0},{"$f":"SUM(M932:M937)","v":0},null,{"$f":"SUM(O932:O937)","v":0}]
[]
[]
[]
["INSTRUCTIONS:  Use this form when a single information collection document involves multiple reporting and recordkeeping requirements.  The totals of the figures in cols. should be entered in item 13 of OMB-83-1:                  cols. (D) &/or (I) = 13a (respondent is only counted once); cols. F & I = 13b;         cols. H & K = 13c.                                                                                                                                                                                                                                                                                                       (F)Total/(D)Total = (E)Average     (H)Total/(F)Total = (G)Average     (K)Total/(I)Total = (J)Average\nNOTE:  The columns will calculate automatically.  If Col. E's response is something other than annually, i.e., 1/6 years, list as \"1/6\" & decimal will display.    \n",null,null,null,null,null,null,null,"TITLE OF INFORMATION COLLECTION DOCUMENT",null,null,null,null,"OMB NO."]
[]
[null,null,null,null,null,null,null,null,null,null,null,null,null,"0581-"]
[]
[]
[null,null,null,null,null,null,null,null,null,null,null,null,null,"DATE PREPARED"]
[]
[]
[]
["IDENTIFICATION OF REPORTING OR RECORDKEEPING REQUIREMENT",null,null,null,null,null,null,"ANNUAL BURDEN"]
[]
[null,null,null,null,null,null,null,"REPORTS",null,null,null,null,"RECORDS"]
[]
[null,null,null,null,null,null,null,null,null,null,null,null,null,null,"TOTAL"]
[null,null,null,null,null,null,"FORMS NO (S)","NO. OF","NO OF","TOTAL ANNUAL","HOURS","TOTAL ","NO. OF ","ANNUAL ","RECORD-"]
["SECTION OF","DESCRIPTION",null,null,null,null,"(If \"none\"","RESPONDENTS","RESPONSES","RESPONSES","PER  ","HOURS","RECORD-","HOURS PER","KEEPING HOURS"]
["REGS.",null,null,null,null,null,"so state)",null,"PER ","(Col. D x E)","RESPONSE","(Col. F x G)","KEEPERS","RECORD-","(Col. I x J)"]
[null,null,null,null,null,null,null,null,"RESPONDENT",null,null,null,null,"KEEPER"]
["(A)","(B)",null,null,null,null,"(C)","(D)","(E)","(F)","(G)","(H)","(I)","(J)","(K)"]
[null,null,null,null,null,null,null,null,null,{"$f":"SUM(H961*I961)","v":0},null,{"$f":"SUM(J961*K961)","v":0},null,null,{"$f":"SUM(M961*N961)","v":0}]
[null,null,null,null,null,null,null,null,null,0,null,0,null,null,0]
[null,null,null,null,null,null,null,null,null,0,null,0,null,null,0]
[null,null,null,null,null,null,null,null,null,0,null,0,null,null,0]
[null,null,null,null,null,null,null,null,null,0,null,0,null,null,0]
[null,null,null,null,null,null,null,null,null,0,null,0,null,null,0]
[null,"SUBTOTAL",null,null,null,null,null,null,null,{"$f":"SUM(J961:J966)","v":0},null,{"$f":"SUM(L961:L966)","v":0},{"$f":"SUM(M961:M966)","v":0},null,{"$f":"SUM(O961:O966)","v":0}]
[]
[]
[]
["INSTRUCTIONS:  Use this form when a single information collection document involves multiple reporting and recordkeeping requirements.  The totals of the figures in cols. should be entered in item 13 of OMB-83-1:                  cols. (D) &/or (I) = 13a (respondent is only counted once); cols. F & I = 13b;         cols. H & K = 13c.                                                                                                                                                                                                                                                                                                       (F)Total/(D)Total = (E)Average     (H)Total/(F)Total = (G)Average     (K)Total/(I)Total = (J)Average\nNOTE:  The columns will calculate automatically.  If Col. E's response is something other than annually, i.e., 1/6 years, list as \"1/6\" & decimal will display.    \n",null,null,null,null,null,null,null,"TITLE OF INFORMATION COLLECTION DOCUMENT",null,null,null,null,"OMB NO."]
[]
[null,null,null,null,null,null,null,null,null,null,null,null,null,"0581-"]
[]
[]
[null,null,null,null,null,null,null,null,null,null,null,null,null,"DATE PREPARED"]
[]
[]
[]
["IDENTIFICATION OF REPORTING OR RECORDKEEPING REQUIREMENT",null,null,null,null,null,null,"ANNUAL BURDEN"]
[]
[null,null,null,null,null,null,null,"REPORTS",null,null,null,null,"RECORDS"]
[]
[null,null,null,null,null,null,null,null,null,null,null,null,null,null,"TOTAL"]
[null,null,null,null,null,null,"FORMS NO (S)","NO. OF","NO OF","TOTAL ANNUAL","HOURS","TOTAL ","NO. OF ","ANNUAL ","RECORD-"]
["SECTION OF","DESCRIPTION",null,null,null,null,"(If \"none\"","RESPONDENTS","RESPONSES","RESPONSES","PER  ","HOURS","RECORD-","HOURS PER","KEEPING HOURS"]
["REGS.",null,null,null,null,null,"so state)",null,"PER ","(Col. D x E)","RESPONSE","(Col. F x G)","KEEPERS","RECORD-","(Col. I x J)"]
[null,null,null,null,null,null,null,null,"RESPONDENT",null,null,null,null,"KEEPER"]
["(A)","(B)",null,null,null,null,"(C)","(D)","(E)","(F)","(G)","(H)","(I)","(J)","(K)"]
[null,null,null,null,null,null,null,null,null,{"$f":"SUM(H990*I990)","v":0},null,{"$f":"SUM(J990*K990)","v":0},null,null,{"$f":"SUM(M990*N990)","v":0}]
[null,null,null,null,null,null,null,null,null,0,null,0,null,null,0]
[null,null,null,null,null,null,null,null,null,0,null,0,null,null,0]
[null,null,null,null,null,null,null,null,null,0,null,0,null,null,0]
[null,null,null,null,null,null,null,null,null,0,null,0,null,null,0]
[null,null,null,null,null,null,null,null,null,0,null,0,null,null,0]
[null,"SUBTOTAL",null,null,null,null,null,null,null,{"$f":"SUM(J990:J995)","v":0},null,{"$f":"SUM(L990:L995)","v":0},{"$f":"SUM(M990:M995)","v":0},null,{"$f":"SUM(O990:O995)","v":0}]
[]
[]
[]
["INSTRUCTIONS:  Use this form when a single information collection document involves multiple reporting and recordkeeping requirements.  The totals of the figures in cols. should be entered in item 13 of OMB-83-1:                  cols. (D) &/or (I) = 13a (respondent is only counted once); cols. F & I = 13b;         cols. H & K = 13c.                                                                                                                                                                                                                                                                                                       (F)Total/(D)Total = (E)Average     (H)Total/(F)Total = (G)Average     (K)Total/(I)Total = (J)Average\nNOTE:  The columns will calculate automatically.  If Col. E's response is something other than annually, i.e., 1/6 years, list as \"1/6\" & decimal will display.    \n",null,null,null,null,null,null,null,"TITLE OF INFORMATION COLLECTION DOCUMENT",null,null,null,null,"OMB NO."]
[]
[null,null,null,null,null,null,null,null,null,null,null,null,null,"0581-"]
[]
[]
[null,null,null,null,null,null,null,null,null,null,null,null,null,"DATE PREPARED"]
[]
[]
[]
["IDENTIFICATION OF REPORTING OR RECORDKEEPING REQUIREMENT",null,null,null,null,null,null,"ANNUAL BURDEN"]
[]
[null,null,null,null,null,null,null,"REPORTS",null,null,null,null,"RECORDS"]
[]
[null,null,null,null,null,null,null,null,null,null,null,null,null,null,"TOTAL"]
[null,null,null,null,null,null,"FORMS NO (S)","NO. OF","NO OF","TOTAL ANNUAL","HOURS","TOTAL ","NO. OF ","ANNUAL ","RECORD-"]
["SECTION OF","DESCRIPTION",null,null,null,null,"(If \"none\"","RESPONDENTS","RESPONSES","RESPONSES","PER  ","HOURS","RECORD-","HOURS PER","KEEPING HOURS"]
["REGS.",null,null,null,null,null,"so state)",null,"PER ","(Col. D x E)","RESPONSE","(Col. F x G)","KEEPERS","RECORD-","(Col. I x J)"]
[null,null,null,null,null,null,null,null,"RESPONDENT",null,null,null,null,"KEEPER"]
["(A)","(B)",null,null,null,null,"(C)","(D)","(E)","(F)","(G)","(H)","(I)","(J)","(K)"]
[null,null,null,null,null,null,null,null,null,{"$f":"SUM(H1019*I1019)","v":0},null,{"$f":"SUM(J1019*K1019)","v":0},null,null,{"$f":"SUM(M1019*N1019)","v":0}]
[null,null,null,null,null,null,null,null,null,0,null,0,null,null,0]
[null,null,null,null,null,null,null,null,null,0,null,0,null,null,0]
[null,null,null,null,null,null,null,null,null,0,null,0,null,null,0]
[null,null,null,null,null,null,null,null,null,0,null,0,null,null,0]
[null,null,null,null,null,null,null,null,null,0,null,0,null,null,0]
[null,"SUBTOTAL",null,null,null,null,null,null,null,{"$f":"SUM(J1019:J1024)","v":0},null,{"$f":"SUM(L1019:L1024)","v":0},{"$f":"SUM(M1019:M1024)","v":0},null,{"$f":"SUM(O1019:O1024)","v":0}]
[]
[]
[]
["INSTRUCTIONS:  Use this form when a single information collection document involves multiple reporting and recordkeeping requirements.  The totals of the figures in cols. should be entered in item 13 of OMB-83-1:                  cols. (D) &/or (I) = 13a (respondent is only counted once); cols. F & I = 13b;         cols. H & K = 13c.                                                                                                                                                                                                                                                                                                       (F)Total/(D)Total = (E)Average     (H)Total/(F)Total = (G)Average     (K)Total/(I)Total = (J)Average\nNOTE:  The columns will calculate automatically.  If Col. E's response is something other than annually, i.e., 1/6 years, list as \"1/6\" & decimal will display.    \n",null,null,null,null,null,null,null,"TITLE OF INFORMATION COLLECTION DOCUMENT",null,null,null,null,"OMB NO."]
[]
[null,null,null,null,null,null,null,null,null,null,null,null,null,"0581-"]
[]
[]
[null,null,null,null,null,null,null,null,null,null,null,null,null,"DATE PREPARED"]
[]
[]
[]
["IDENTIFICATION OF REPORTING OR RECORDKEEPING REQUIREMENT",null,null,null,null,null,null,"ANNUAL BURDEN"]
[]
[null,null,null,null,null,null,null,"REPORTS",null,null,null,null,"RECORDS"]
[]
[null,null,null,null,null,null,null,null,null,null,null,null,null,null,"TOTAL"]
[null,null,null,null,null,null,"FORMS NO (S)","NO. OF","NO OF","TOTAL ANNUAL","HOURS","TOTAL ","NO. OF ","ANNUAL ","RECORD-"]
["SECTION OF","DESCRIPTION",null,null,null,null,"(If \"none\"","RESPONDENTS","RESPONSES","RESPONSES","PER  ","HOURS","RECORD-","HOURS PER","KEEPING HOURS"]
["REGS.",null,null,null,null,null,"so state)",null,"PER ","(Col. D x E)","RESPONSE","(Col. F x G)","KEEPERS","RECORD-","(Col. I x J)"]
[null,null,null,null,null,null,null,null,"RESPONDENT",null,null,null,null,"KEEPER"]
["(A)","(B)",null,null,null,null,"(C)","(D)","(E)","(F)","(G)","(H)","(I)","(J)","(K)"]
[null,null,null,null,null,null,null,null,null,{"$f":"SUM(H1048*I1048)","v":0},null,{"$f":"SUM(J1048*K1048)","v":0},null,null,{"$f":"SUM(M1048*N1048)","v":0}]
[null,null,null,null,null,null,null,null,null,0,null,0,null,null,0]
[null,null,null,null,null,null,null,null,null,0,null,0,null,null,0]
[null,null,null,null,null,null,null,null,null,0,null,0,null,null,0]
[null,null,null,null,null,null,null,null,null,0,null,0,null,null,0]
[null,null,null,null,null,null,null,null,null,0,null,0,null,null,0]
[null,"SUBTOTAL",null,null,null,null,null,null,null,{"$f":"SUM(J1048:J1053)","v":0},null,{"$f":"SUM(L1048:L1053)","v":0},{"$f":"SUM(M1048:M1053)","v":0},null,{"$f":"SUM(O1048:O1053)","v":0}]
[]
[]
[]
["INSTRUCTIONS:  Use this form when a single information collection document involves multiple reporting and recordkeeping requirements.  The totals of the figures in cols. should be entered in item 13 of OMB-83-1:                  cols. (D) &/or (I) = 13a (respondent is only counted once); cols. F & I = 13b;         cols. H & K = 13c.                                                                                                                                                                                                                                                                                                       (F)Total/(D)Total = (E)Average     (H)Total/(F)Total = (G)Average     (K)Total/(I)Total = (J)Average\nNOTE:  The columns will calculate automatically.  If Col. E's response is something other than annually, i.e., 1/6 years, list as \"1/6\" & decimal will display.    \n",null,null,null,null,null,null,null,"TITLE OF INFORMATION COLLECTION DOCUMENT",null,null,null,null,"OMB NO."]
[]
[null,null,null,null,null,null,null,null,null,null,null,null,null,"0581-"]
[]
[]
[null,null,null,null,null,null,null,null,null,null,null,null,null,"DATE PREPARED"]
[]
[]
[]
["IDENTIFICATION OF REPORTING OR RECORDKEEPING REQUIREMENT",null,null,null,null,null,null,"ANNUAL BURDEN"]
[]
[null,null,null,null,null,null,null,"REPORTS",null,null,null,null,"RECORDS"]
[]
[null,null,null,null,null,null,null,null,null,null,null,null,null,null,"TOTAL"]
[null,null,null,null,null,null,"FORMS NO (S)","NO. OF","NO OF","TOTAL ANNUAL","HOURS","TOTAL ","NO. OF ","ANNUAL ","RECORD-"]
["SECTION OF","DESCRIPTION",null,null,null,null,"(If \"none\"","RESPONDENTS","RESPONSES","RESPONSES","PER  ","HOURS","RECORD-","HOURS PER","KEEPING HOURS"]
["REGS.",null,null,null,null,null,"so state)",null,"PER ","(Col. D x E)","RESPONSE","(Col. F x G)","KEEPERS","RECORD-","(Col. I x J)"]
[null,null,null,null,null,null,null,null,"RESPONDENT",null,null,null,null,"KEEPER"]
["(A)","(B)",null,null,null,null,"(C)","(D)","(E)","(F)","(G)","(H)","(I)","(J)","(K)"]
[null,null,null,null,null,null,null,null,null,{"$f":"SUM(H1077*I1077)","v":0},null,{"$f":"SUM(J1077*K1077)","v":0},null,null,{"$f":"SUM(M1077*N1077)","v":0}]
[null,null,null,null,null,null,null,null,null,0,null,0,null,null,0]
[null,null,null,null,null,null,null,null,null,0,null,0,null,null,0]
[null,null,null,null,null,null,null,null,null,0,null,0,null,null,0]
[null,null,null,null,null,null,null,null,null,0,null,0,null,null,0]
[null,null,null,null,null,null,null,null,null,0,null,0,null,null,0]
[null,"SUBTOTAL",null,null,null,null,null,null,null,{"$f":"SUM(J1077:J1082)","v":0},null,{"$f":"SUM(L1077:L1082)","v":0},{"$f":"SUM(M1077:M1082)","v":0},null,{"$f":"SUM(O1077:O1082)","v":0}]
[]
[]
[]
["INSTRUCTIONS:  Use this form when a single information collection document involves multiple reporting and recordkeeping requirements.  The totals of the figures in cols. should be entered in item 13 of OMB-83-1:                  cols. (D) &/or (I) = 13a (respondent is only counted once); cols. F & I = 13b;         cols. H & K = 13c.                                                                                                                                                                                                                                                                                                       (F)Total/(D)Total = (E)Average     (H)Total/(F)Total = (G)Average     (K)Total/(I)Total = (J)Average\nNOTE:  The columns will calculate automatically.  If Col. E's response is something other than annually, i.e., 1/6 years, list as \"1/6\" & decimal will display.    \n",null,null,null,null,null,null,null,"TITLE OF INFORMATION COLLECTION DOCUMENT",null,null,null,null,"OMB NO."]
[]
[null,null,null,null,null,null,null,null,null,null,null,null,null,"0581-"]
[]
[]
[null,null,null,null,null,null,null,null,null,null,null,null,null,"DATE PREPARED"]
[]
[]
[]
["IDENTIFICATION OF REPORTING OR RECORDKEEPING REQUIREMENT",null,null,null,null,null,null,"ANNUAL BURDEN"]
[]
[null,null,null,null,null,null,null,"REPORTS",null,null,null,null,"RECORDS"]
[]
[null,null,null,null,null,null,null,null,null,null,null,null,null,null,"TOTAL"]
[null,null,null,null,null,null,"FORMS NO (S)","NO. OF","NO OF","TOTAL ANNUAL","HOURS","TOTAL ","NO. OF ","ANNUAL ","RECORD-"]
["SECTION OF","DESCRIPTION",null,null,null,null,"(If \"none\"","RESPONDENTS","RESPONSES","RESPONSES","PER  ","HOURS","RECORD-","HOURS PER","KEEPING HOURS"]
["REGS.",null,null,null,null,null,"so state)",null,"PER ","(Col. D x E)","RESPONSE","(Col. F x G)","KEEPERS","RECORD-","(Col. I x J)"]
[null,null,null,null,null,null,null,null,"RESPONDENT",null,null,null,null,"KEEPER"]
["(A)","(B)",null,null,null,null,"(C)","(D)","(E)","(F)","(G)","(H)","(I)","(J)","(K)"]
[null,null,null,null,null,null,null,null,null,{"$f":"SUM(H1106*I1106)","v":0},null,{"$f":"SUM(J1106*K1106)","v":0},null,null,{"$f":"SUM(M1106*N1106)","v":0}]
[null,null,null,null,null,null,null,null,null,0,null,0,null,null,0]
[null,null,null,null,null,null,null,null,null,0,null,0,null,null,0]
[null,null,null,null,null,null,null,null,null,0,null,0,null,null,0]
[null,null,null,null,null,null,null,null,null,0,null,0,null,null,0]
[null,null,null,null,null,null,null,null,null,0,null,0,null,null,0]
[null,"SUBTOTAL",null,null,null,null,null,null,null,{"$f":"SUM(J1106:J1111)","v":0},null,{"$f":"SUM(L1106:L1111)","v":0},{"$f":"SUM(M1106:M1111)","v":0},null,{"$f":"SUM(O1106:O1111)","v":0}]
[]
[]
[]
["INSTRUCTIONS:  Use this form when a single information collection document involves multiple reporting and recordkeeping requirements.  The totals of the figures in cols. should be entered in item 13 of OMB-83-1:                  cols. (D) &/or (I) = 13a (respondent is only counted once); cols. F & I = 13b;         cols. H & K = 13c.                                                                                                                                                                                                                                                                                                       (F)Total/(D)Total = (E)Average     (H)Total/(F)Total = (G)Average     (K)Total/(I)Total = (J)Average\nNOTE:  The columns will calculate automatically.  If Col. E's response is something other than annually, i.e., 1/6 years, list as \"1/6\" & decimal will display.    \n",null,null,null,null,null,null,null,"TITLE OF INFORMATION COLLECTION DOCUMENT",null,null,null,null,"OMB NO."]
[]
[null,null,null,null,null,null,null,null,null,null,null,null,null,"0581-"]
[]
[]
[null,null,null,null,null,null,null,null,null,null,null,null,null,"DATE PREPARED"]
[]
[]
[]
["IDENTIFICATION OF REPORTING OR RECORDKEEPING REQUIREMENT",null,null,null,null,null,null,"ANNUAL BURDEN"]
[]
[null,null,null,null,null,null,null,"REPORTS",null,null,null,null,"RECORDS"]
[]
[null,null,null,null,null,null,null,null,null,null,null,null,null,null,"TOTAL"]
[null,null,null,null,null,null,"FORMS NO (S)","NO. OF","NO OF","TOTAL ANNUAL","HOURS","TOTAL ","NO. OF ","ANNUAL ","RECORD-"]
["SECTION OF","DESCRIPTION",null,null,null,null,"(If \"none\"","RESPONDENTS","RESPONSES","RESPONSES","PER  ","HOURS","RECORD-","HOURS PER","KEEPING HOURS"]
["REGS.",null,null,null,null,null,"so state)",null,"PER ","(Col. D x E)","RESPONSE","(Col. F x G)","KEEPERS","RECORD-","(Col. I x J)"]
[null,null,null,null,null,null,null,null,"RESPONDENT",null,null,null,null,"KEEPER"]
["(A)","(B)",null,null,null,null,"(C)","(D)","(E)","(F)","(G)","(H)","(I)","(J)","(K)"]
[null,null,null,null,null,null,null,null,null,{"$f":"SUM(H1135*I1135)","v":0},null,{"$f":"SUM(J1135*K1135)","v":0},null,null,{"$f":"SUM(M1135*N1135)","v":0}]
[null,null,null,null,null,null,null,null,null,0,null,0,null,null,0]
[null,null,null,null,null,null,null,null,null,0,null,0,null,null,0]
[null,null,null,null,null,null,null,null,null,0,null,0,null,null,0]
[null,null,null,null,null,null,null,null,null,0,null,0,null,null,0]
[null,null,null,null,null,null,null,null,null,0,null,0,null,null,0]
[null,"SUBTOTAL",null,null,null,null,null,null,null,{"$f":"SUM(J1135:J1140)","v":0},null,{"$f":"SUM(L1135:L1140)","v":0},{"$f":"SUM(M1135:M1140)","v":0},null,{"$f":"SUM(O1135:O1140)","v":0}]
[]
[]
[]
["INSTRUCTIONS:  Use this form when a single information collection document involves multiple reporting and recordkeeping requirements.  The totals of the figures in cols. should be entered in item 13 of OMB-83-1:                  cols. (D) &/or (I) = 13a (respondent is only counted once); cols. F & I = 13b;         cols. H & K = 13c.                                                                                                                                                                                                                                                                                                       (F)Total/(D)Total = (E)Average     (H)Total/(F)Total = (G)Average     (K)Total/(I)Total = (J)Average\nNOTE:  The columns will calculate automatically.  If Col. E's response is something other than annually, i.e., 1/6 years, list as \"1/6\" & decimal will display.    \n",null,null,null,null,null,null,null,"TITLE OF INFORMATION COLLECTION DOCUMENT",null,null,null,null,"OMB NO."]
[]
[null,null,null,null,null,null,null,null,null,null,null,null,null,"0581-"]
[]
[]
[null,null,null,null,null,null,null,null,null,null,null,null,null,"DATE PREPARED"]
[]
[]
[]
["IDENTIFICATION OF REPORTING OR RECORDKEEPING REQUIREMENT",null,null,null,null,null,null,"ANNUAL BURDEN"]
[]
[null,null,null,null,null,null,null,"REPORTS",null,null,null,null,"RECORDS"]
[]
[null,null,null,null,null,null,null,null,null,null,null,null,null,null,"TOTAL"]
[null,null,null,null,null,null,"FORMS NO (S)","NO. OF","NO OF","TOTAL ANNUAL","HOURS","TOTAL ","NO. OF ","ANNUAL ","RECORD-"]
["SECTION OF","DESCRIPTION",null,null,null,null,"(If \"none\"","RESPONDENTS","RESPONSES","RESPONSES","PER  ","HOURS","RECORD-","HOURS PER","KEEPING HOURS"]
["REGS.",null,null,null,null,null,"so state)",null,"PER ","(Col. D x E)","RESPONSE","(Col. F x G)","KEEPERS","RECORD-","(Col. I x J)"]
[null,null,null,null,null,null,null,null,"RESPONDENT",null,null,null,null,"KEEPER"]
["(A)","(B)",null,null,null,null,"(C)","(D)","(E)","(F)","(G)","(H)","(I)","(J)","(K)"]
[null,null,null,null,null,null,null,null,null,{"$f":"SUM(H1164*I1164)","v":0},null,{"$f":"SUM(J1164*K1164)","v":0},null,null,{"$f":"SUM(M1164*N1164)","v":0}]
[null,null,null,null,null,null,null,null,null,0,null,0,null,null,0]
[null,null,null,null,null,null,null,null,null,0,null,0,null,null,0]
[null,null,null,null,null,null,null,null,null,0,null,0,null,null,0]
[null,null,null,null,null,null,null,null,null,0,null,0,null,null,0]
[null,null,null,null,null,null,null,null,null,0,null,0,null,null,0]
[null,"SUBTOTAL",null,null,null,null,null,null,null,{"$f":"SUM(J1164:J1169)","v":0},null,{"$f":"SUM(L1164:L1169)","v":0},{"$f":"SUM(M1164:M1169)","v":0},null,{"$f":"SUM(O1164:O1169)","v":0}]
[]
[]
[]
["INSTRUCTIONS:  Use this form when a single information collection document involves multiple reporting and recordkeeping requirements.  The totals of the figures in cols. should be entered in item 13 of OMB-83-1:                  cols. (D) &/or (I) = 13a (respondent is only counted once); cols. F & I = 13b;         cols. H & K = 13c.                                                                                                                                                                                                                                                                                                       (F)Total/(D)Total = (E)Average     (H)Total/(F)Total = (G)Average     (K)Total/(I)Total = (J)Average\nNOTE:  The columns will calculate automatically.  If Col. E's response is something other than annually, i.e., 1/6 years, list as \"1/6\" & decimal will display.    \n",null,null,null,null,null,null,null,"TITLE OF INFORMATION COLLECTION DOCUMENT",null,null,null,null,"OMB NO."]
[]
[null,null,null,null,null,null,null,null,null,null,null,null,null,"0581-"]
[]
[]
[null,null,null,null,null,null,null,null,null,null,null,null,null,"DATE PREPARED"]
[]
[]
[]
["IDENTIFICATION OF REPORTING OR RECORDKEEPING REQUIREMENT",null,null,null,null,null,null,"ANNUAL BURDEN"]
[]
[null,null,null,null,null,null,null,"REPORTS",null,null,null,null,"RECORDS"]
[]
[null,null,null,null,null,null,null,null,null,null,null,null,null,null,"TOTAL"]
[null,null,null,null,null,null,"FORMS NO (S)","NO. OF","NO OF","TOTAL ANNUAL","HOURS","TOTAL ","NO. OF ","ANNUAL ","RECORD-"]
["SECTION OF","DESCRIPTION",null,null,null,null,"(If \"none\"","RESPONDENTS","RESPONSES","RESPONSES","PER  ","HOURS","RECORD-","HOURS PER","KEEPING HOURS"]
["REGS.",null,null,null,null,null,"so state)",null,"PER ","(Col. D x E)","RESPONSE","(Col. F x G)","KEEPERS","RECORD-","(Col. I x J)"]
[null,null,null,null,null,null,null,null,"RESPONDENT",null,null,null,null,"KEEPER"]
["(A)","(B)",null,null,null,null,"(C)","(D)","(E)","(F)","(G)","(H)","(I)","(J)","(K)"]
[null,null,null,null,null,null,null,null,null,{"$f":"SUM(H1193*I1193)","v":0},null,{"$f":"SUM(J1193*K1193)","v":0},null,null,{"$f":"SUM(M1193*N1193)","v":0}]
[null,null,null,null,null,null,null,null,null,0,null,0,null,null,0]
[null,null,null,null,null,null,null,null,null,0,null,0,null,null,0]
[null,null,null,null,null,null,null,null,null,0,null,0,null,null,0]
[null,null,null,null,null,null,null,null,null,0,null,0,null,null,0]
[null,null,null,null,null,null,null,null,null,0,null,0,null,null,0]
[null,"SUBTOTAL",null,null,null,null,null,null,null,{"$f":"SUM(J1193:J1198)","v":0},null,{"$f":"SUM(L1193:L1198)","v":0},{"$f":"SUM(M1193:M1198)","v":0},null,{"$f":"SUM(O1193:O1198)","v":0}]
[]
[]
[]
["INSTRUCTIONS:  Use this form when a single information collection document involves multiple reporting and recordkeeping requirements.  The totals of the figures in cols. should be entered in item 13 of OMB-83-1:                  cols. (D) &/or (I) = 13a (respondent is only counted once); cols. F & I = 13b;         cols. H & K = 13c.                                                                                                                                                                                                                                                                                                       (F)Total/(D)Total = (E)Average     (H)Total/(F)Total = (G)Average     (K)Total/(I)Total = (J)Average\nNOTE:  The columns will calculate automatically.  If Col. E's response is something other than annually, i.e., 1/6 years, list as \"1/6\" & decimal will display.    \n",null,null,null,null,null,null,null,"TITLE OF INFORMATION COLLECTION DOCUMENT",null,null,null,null,"OMB NO."]
[]
[null,null,null,null,null,null,null,null,null,null,null,null,null,"0581-"]
[]
[]
[null,null,null,null,null,null,null,null,null,null,null,null,null,"DATE PREPARED"]
[]
[]
[]
["IDENTIFICATION OF REPORTING OR RECORDKEEPING REQUIREMENT",null,null,null,null,null,null,"ANNUAL BURDEN"]
[]
[null,null,null,null,null,null,null,"REPORTS",null,null,null,null,"RECORDS"]
[]
[null,null,null,null,null,null,null,null,null,null,null,null,null,null,"TOTAL"]
[null,null,null,null,null,null,"FORMS NO (S)","NO. OF","NO OF","TOTAL ANNUAL","HOURS","TOTAL ","NO. OF ","ANNUAL ","RECORD-"]
["SECTION OF","DESCRIPTION",null,null,null,null,"(If \"none\"","RESPONDENTS","RESPONSES","RESPONSES","PER  ","HOURS","RECORD-","HOURS PER","KEEPING HOURS"]
["REGS.",null,null,null,null,null,"so state)",null,"PER ","(Col. D x E)","RESPONSE","(Col. F x G)","KEEPERS","RECORD-","(Col. I x J)"]
[null,null,null,null,null,null,null,null,"RESPONDENT",null,null,null,null,"KEEPER"]
["(A)","(B)",null,null,null,null,"(C)","(D)","(E)","(F)","(G)","(H)","(I)","(J)","(K)"]
[null,null,null,null,null,null,null,null,null,{"$f":"SUM(H1222*I1222)","v":0},null,{"$f":"SUM(J1222*K1222)","v":0},null,null,{"$f":"SUM(M1222*N1222)","v":0}]
[null,null,null,null,null,null,null,null,null,0,null,0,null,null,0]
[null,null,null,null,null,null,null,null,null,0,null,0,null,null,0]
[null,null,null,null,null,null,null,null,null,0,null,0,null,null,0]
[null,null,null,null,null,null,null,null,null,0,null,0,null,null,0]
[null,null,null,null,null,null,null,null,null,0,null,0,null,null,0]
[null,"SUBTOTAL",null,null,null,null,null,null,null,{"$f":"SUM(J1222:J1227)","v":0},null,{"$f":"SUM(L1222:L1227)","v":0},{"$f":"SUM(M1222:M1227)","v":0},null,{"$f":"SUM(O1222:O1227)","v":0}]
[]
[]
[]
["INSTRUCTIONS:  Use this form when a single information collection document involves multiple reporting and recordkeeping requirements.  The totals of the figures in cols. should be entered in item 13 of OMB-83-1:                  cols. (D) &/or (I) = 13a (respondent is only counted once); cols. F & I = 13b;         cols. H & K = 13c.                                                                                                                                                                                                                                                                                                       (F)Total/(D)Total = (E)Average     (H)Total/(F)Total = (G)Average     (K)Total/(I)Total = (J)Average\nNOTE:  The columns will calculate automatically.  If Col. E's response is something other than annually, i.e., 1/6 years, list as \"1/6\" & decimal will display.    \n",null,null,null,null,null,null,null,"TITLE OF INFORMATION COLLECTION DOCUMENT",null,null,null,null,"OMB NO."]
[]
[null,null,null,null,null,null,null,null,null,null,null,null,null,"0581-"]
[]
[]
[null,null,null,null,null,null,null,null,null,null,null,null,null,"DATE PREPARED"]
[]
[]
[]
["IDENTIFICATION OF REPORTING OR RECORDKEEPING REQUIREMENT",null,null,null,null,null,null,"ANNUAL BURDEN"]
[]
[null,null,null,null,null,null,null,"REPORTS",null,null,null,null,"RECORDS"]
[]
[null,null,null,null,null,null,null,null,null,null,null,null,null,null,"TOTAL"]
[null,null,null,null,null,null,"FORMS NO (S)","NO. OF","NO OF","TOTAL ANNUAL","HOURS","TOTAL ","NO. OF ","ANNUAL ","RECORD-"]
["SECTION OF","DESCRIPTION",null,null,null,null,"(If \"none\"","RESPONDENTS","RESPONSES","RESPONSES","PER  ","HOURS","RECORD-","HOURS PER","KEEPING HOURS"]
["REGS.",null,null,null,null,null,"so state)",null,"PER ","(Col. D x E)","RESPONSE","(Col. F x G)","KEEPERS","RECORD-","(Col. I x J)"]
[null,null,null,null,null,null,null,null,"RESPONDENT",null,null,null,null,"KEEPER"]
["(A)","(B)",null,null,null,null,"(C)","(D)","(E)","(F)","(G)","(H)","(I)","(J)","(K)"]
[null,null,null,null,null,null,null,null,null,{"$f":"SUM(H1251*I1251)","v":0},null,{"$f":"SUM(J1251*K1251)","v":0},null,null,{"$f":"SUM(M1251*N1251)","v":0}]
[null,null,null,null,null,null,null,null,null,0,null,0,null,null,0]
[null,null,null,null,null,null,null,null,null,0,null,0,null,null,0]
[null,null,null,null,null,null,null,null,null,0,null,0,null,null,0]
[null,null,null,null,null,null,null,null,null,0,null,0,null,null,0]
[null,null,null,null,null,null,null,null,null,0,null,0,null,null,0]
[null,"SUBTOTAL",null,null,null,null,null,null,null,{"$f":"SUM(J1251:J1256)","v":0},null,{"$f":"SUM(L1251:L1256)","v":0},{"$f":"SUM(M1251:M1256)","v":0},null,{"$f":"SUM(O1251:O1256)","v":0}]
[]
[]
[]
["INSTRUCTIONS:  Use this form when a single information collection document involves multiple reporting and recordkeeping requirements.  The totals of the figures in cols. should be entered in item 13 of OMB-83-1:                  cols. (D) &/or (I) = 13a (respondent is only counted once); cols. F & I = 13b;         cols. H & K = 13c.                                                                                                                                                                                                                                                                                                       (F)Total/(D)Total = (E)Average     (H)Total/(F)Total = (G)Average     (K)Total/(I)Total = (J)Average\nNOTE:  The columns will calculate automatically.  If Col. E's response is something other than annually, i.e., 1/6 years, list as \"1/6\" & decimal will display.    \n",null,null,null,null,null,null,null,"TITLE OF INFORMATION COLLECTION DOCUMENT",null,null,null,null,"OMB NO."]
[]
[null,null,null,null,null,null,null,null,null,null,null,null,null,"0581-"]
[]
[]
[null,null,null,null,null,null,null,null,null,null,null,null,null,"DATE PREPARED"]
[]
[]
[]
["IDENTIFICATION OF REPORTING OR RECORDKEEPING REQUIREMENT",null,null,null,null,null,null,"ANNUAL BURDEN"]
[]
[null,null,null,null,null,null,null,"REPORTS",null,null,null,null,"RECORDS"]
[]
[null,null,null,null,null,null,null,null,null,null,null,null,null,null,"TOTAL"]
[null,null,null,null,null,null,"FORMS NO (S)","NO. OF","NO OF","TOTAL ANNUAL","HOURS","TOTAL ","NO. OF ","ANNUAL ","RECORD-"]
["SECTION OF","DESCRIPTION",null,null,null,null,"(If \"none\"","RESPONDENTS","RESPONSES","RESPONSES","PER  ","HOURS","RECORD-","HOURS PER","KEEPING HOURS"]
["REGS.",null,null,null,null,null,"so state)",null,"PER ","(Col. D x E)","RESPONSE","(Col. F x G)","KEEPERS","RECORD-","(Col. I x J)"]
[null,null,null,null,null,null,null,null,"RESPONDENT",null,null,null,null,"KEEPER"]
["(A)","(B)",null,null,null,null,"(C)","(D)","(E)","(F)","(G)","(H)","(I)","(J)","(K)"]
[null,null,null,null,null,null,null,null,null,{"$f":"SUM(H1280*I1280)","v":0},null,{"$f":"SUM(J1280*K1280)","v":0},null,null,{"$f":"SUM(M1280*N1280)","v":0}]
[null,null,null,null,null,null,null,null,null,0,null,0,null,null,0]
[null,null,null,null,null,null,null,null,null,0,null,0,null,null,0]
[null,null,null,null,null,null,null,null,null,0,null,0,null,null,0]
[null,null,null,null,null,null,null,null,null,0,null,0,null,null,0]
[null,null,null,null,null,null,null,null,null,0,null,0,null,null,0]
[null,"SUBTOTAL",null,null,null,null,null,null,null,{"$f":"SUM(J1280:J1285)","v":0},null,{"$f":"SUM(L1280:L1285)","v":0},{"$f":"SUM(M1280:M1285)","v":0},null,{"$f":"SUM(O1280:O1285)","v":0}]
[]
[]
[]
["INSTRUCTIONS:  Use this form when a single information collection document involves multiple reporting and recordkeeping requirements.  The totals of the figures in cols. should be entered in item 13 of OMB-83-1:                  cols. (D) &/or (I) = 13a (respondent is only counted once); cols. F & I = 13b;         cols. H & K = 13c.                                                                                                                                                                                                                                                                                                       (F)Total/(D)Total = (E)Average     (H)Total/(F)Total = (G)Average     (K)Total/(I)Total = (J)Average\nNOTE:  The columns will calculate automatically.  If Col. E's response is something other than annually, i.e., 1/6 years, list as \"1/6\" & decimal will display.    \n",null,null,null,null,null,null,null,"TITLE OF INFORMATION COLLECTION DOCUMENT",null,null,null,null,"OMB NO."]
[]
[null,null,null,null,null,null,null,null,null,null,null,null,null,"0581-"]
[]
[]
[null,null,null,null,null,null,null,null,null,null,null,null,null,"DATE PREPARED"]
[]
[]
[]
["IDENTIFICATION OF REPORTING OR RECORDKEEPING REQUIREMENT",null,null,null,null,null,null,"ANNUAL BURDEN"]
[]
[null,null,null,null,null,null,null,"REPORTS",null,null,null,null,"RECORDS"]
[]
[null,null,null,null,null,null,null,null,null,null,null,null,null,null,"TOTAL"]
[null,null,null,null,null,null,"FORMS NO (S)","NO. OF","NO OF","TOTAL ANNUAL","HOURS","TOTAL ","NO. OF ","ANNUAL ","RECORD-"]
["SECTION OF","DESCRIPTION",null,null,null,null,"(If \"none\"","RESPONDENTS","RESPONSES","RESPONSES","PER  ","HOURS","RECORD-","HOURS PER","KEEPING HOURS"]
["REGS.",null,null,null,null,null,"so state)",null,"PER ","(Col. D x E)","RESPONSE","(Col. F x G)","KEEPERS","RECORD-","(Col. I x J)"]
[null,null,null,null,null,null,null,null,"RESPONDENT",null,null,null,null,"KEEPER"]
["(A)","(B)",null,null,null,null,"(C)","(D)","(E)","(F)","(G)","(H)","(I)","(J)","(K)"]
[null,null,null,null,null,null,null,null,null,{"$f":"SUM(H1309*I1309)","v":0},null,{"$f":"SUM(J1309*K1309)","v":0},null,null,{"$f":"SUM(M1309*N1309)","v":0}]
[null,null,null,null,null,null,null,null,null,0,null,0,null,null,0]
[null,null,null,null,null,null,null,null,null,0,null,0,null,null,0]
[null,null,null,null,null,null,null,null,null,0,null,0,null,null,0]
[null,null,null,null,null,null,null,null,null,0,null,0,null,null,0]
[null,null,null,null,null,null,null,null,null,0,null,0,null,null,0]
[null,"SUBTOTAL",null,null,null,null,null,null,null,{"$f":"SUM(J1309:J1314)","v":0},null,{"$f":"SUM(L1309:L1314)","v":0},{"$f":"SUM(M1309:M1314)","v":0},null,{"$f":"SUM(O1309:O1314)","v":0}]
[]
[]
[]
["INSTRUCTIONS:  Use this form when a single information collection document involves multiple reporting and recordkeeping requirements.  The totals of the figures in cols. should be entered in item 13 of OMB-83-1:                  cols. (D) &/or (I) = 13a (respondent is only counted once); cols. F & I = 13b;         cols. H & K = 13c.                                                                                                                                                                                                                                                                                                       (F)Total/(D)Total = (E)Average     (H)Total/(F)Total = (G)Average     (K)Total/(I)Total = (J)Average\nNOTE:  The columns will calculate automatically.  If Col. E's response is something other than annually, i.e., 1/6 years, list as \"1/6\" & decimal will display.    \n",null,null,null,null,null,null,null,"TITLE OF INFORMATION COLLECTION DOCUMENT",null,null,null,null,"OMB NO."]
[]
[null,null,null,null,null,null,null,null,null,null,null,null,null,"0581-"]
[]
[]
[null,null,null,null,null,null,null,null,null,null,null,null,null,"DATE PREPARED"]
[]
[]
[]
["IDENTIFICATION OF REPORTING OR RECORDKEEPING REQUIREMENT",null,null,null,null,null,null,"ANNUAL BURDEN"]
[]
[null,null,null,null,null,null,null,"REPORTS",null,null,null,null,"RECORDS"]
[]
[null,null,null,null,null,null,null,null,null,null,null,null,null,null,"TOTAL"]
[null,null,null,null,null,null,"FORMS NO (S)","NO. OF","NO OF","TOTAL ANNUAL","HOURS","TOTAL ","NO. OF ","ANNUAL ","RECORD-"]
["SECTION OF","DESCRIPTION",null,null,null,null,"(If \"none\"","RESPONDENTS","RESPONSES","RESPONSES","PER  ","HOURS","RECORD-","HOURS PER","KEEPING HOURS"]
["REGS.",null,null,null,null,null,"so state)",null,"PER ","(Col. D x E)","RESPONSE","(Col. F x G)","KEEPERS","RECORD-","(Col. I x J)"]
[null,null,null,null,null,null,null,null,"RESPONDENT",null,null,null,null,"KEEPER"]
["(A)","(B)",null,null,null,null,"(C)","(D)","(E)","(F)","(G)","(H)","(I)","(J)","(K)"]
[null,null,null,null,null,null,null,null,null,{"$f":"SUM(H1338*I1338)","v":0},null,{"$f":"SUM(J1338*K1338)","v":0},null,null,{"$f":"SUM(M1338*N1338)","v":0}]
[null,null,null,null,null,null,null,null,null,0,null,0,null,null,0]
[null,null,null,null,null,null,null,null,null,0,null,0,null,null,0]
[null,null,null,null,null,null,null,null,null,0,null,0,null,null,0]
[null,null,null,null,null,null,null,null,null,0,null,0,null,null,0]
[null,null,null,null,null,null,null,null,null,0,null,0,null,null,0]
[null,"SUBTOTAL",null,null,null,null,null,null,null,{"$f":"SUM(J1338:J1343)","v":0},null,{"$f":"SUM(L1338:L1343)","v":0},{"$f":"SUM(M1338:M1343)","v":0},null,{"$f":"SUM(O1338:O1343)","v":0}]
[]
[]
[]
["INSTRUCTIONS:  Use this form when a single information collection document involves multiple reporting and recordkeeping requirements.  The totals of the figures in cols. should be entered in item 13 of OMB-83-1:                  cols. (D) &/or (I) = 13a (respondent is only counted once); cols. F & I = 13b;         cols. H & K = 13c.                                                                                                                                                                                                                                                                                                       (F)Total/(D)Total = (E)Average     (H)Total/(F)Total = (G)Average     (K)Total/(I)Total = (J)Average\nNOTE:  The columns will calculate automatically.  If Col. E's response is something other than annually, i.e., 1/6 years, list as \"1/6\" & decimal will display.    \n",null,null,null,null,null,null,null,"TITLE OF INFORMATION COLLECTION DOCUMENT",null,null,null,null,"OMB NO."]
[]
[null,null,null,null,null,null,null,null,null,null,null,null,null,"0581-"]
[]
[]
[null,null,null,null,null,null,null,null,null,null,null,null,null,"DATE PREPARED"]
[]
[]
[]
["IDENTIFICATION OF REPORTING OR RECORDKEEPING REQUIREMENT",null,null,null,null,null,null,"ANNUAL BURDEN"]
[]
[null,null,null,null,null,null,null,"REPORTS",null,null,null,null,"RECORDS"]
[]
[null,null,null,null,null,null,null,null,null,null,null,null,null,null,"TOTAL"]
[null,null,null,null,null,null,"FORMS NO (S)","NO. OF","NO OF","TOTAL ANNUAL","HOURS","TOTAL ","NO. OF ","ANNUAL ","RECORD-"]
["SECTION OF","DESCRIPTION",null,null,null,null,"(If \"none\"","RESPONDENTS","RESPONSES","RESPONSES","PER  ","HOURS","RECORD-","HOURS PER","KEEPING HOURS"]
["REGS.",null,null,null,null,null,"so state)",null,"PER ","(Col. D x E)","RESPONSE","(Col. F x G)","KEEPERS","RECORD-","(Col. I x J)"]
[null,null,null,null,null,null,null,null,"RESPONDENT",null,null,null,null,"KEEPER"]
["(A)","(B)",null,null,null,null,"(C)","(D)","(E)","(F)","(G)","(H)","(I)","(J)","(K)"]
[null,null,null,null,null,null,null,null,null,{"$f":"SUM(H1367*I1367)","v":0},null,{"$f":"SUM(J1367*K1367)","v":0},null,null,{"$f":"SUM(M1367*N1367)","v":0}]
[null,null,null,null,null,null,null,null,null,0,null,0,null,null,0]
[null,null,null,null,null,null,null,null,null,0,null,0,null,null,0]
[null,null,null,null,null,null,null,null,null,0,null,0,null,null,0]
[null,null,null,null,null,null,null,null,null,0,null,0,null,null,0]
[null,null,null,null,null,null,null,null,null,0,null,0,null,null,0]
[null,"SUBTOTAL",null,null,null,null,null,null,null,{"$f":"SUM(J1367:J1372)","v":0},null,{"$f":"SUM(L1367:L1372)","v":0},{"$f":"SUM(M1367:M1372)","v":0},null,{"$f":"SUM(O1367:O1372)","v":0}]
[]
[]
[]
["INSTRUCTIONS:  Use this form when a single information collection document involves multiple reporting and recordkeeping requirements.  The totals of the figures in cols. should be entered in item 13 of OMB-83-1:                  cols. (D) &/or (I) = 13a (respondent is only counted once); cols. F & I = 13b;         cols. H & K = 13c.                                                                                                                                                                                                                                                                                                       (F)Total/(D)Total = (E)Average     (H)Total/(F)Total = (G)Average     (K)Total/(I)Total = (J)Average\nNOTE:  The columns will calculate automatically.  If Col. E's response is something other than annually, i.e., 1/6 years, list as \"1/6\" & decimal will display.    \n",null,null,null,null,null,null,null,"TITLE OF INFORMATION COLLECTION DOCUMENT",null,null,null,null,"OMB NO."]
[]
[null,null,null,null,null,null,null,null,null,null,null,null,null,"0581-"]
[]
[]
[null,null,null,null,null,null,null,null,null,null,null,null,null,"DATE PREPARED"]
[]
[]
[]
["IDENTIFICATION OF REPORTING OR RECORDKEEPING REQUIREMENT",null,null,null,null,null,null,"ANNUAL BURDEN"]
[]
[null,null,null,null,null,null,null,"REPORTS",null,null,null,null,"RECORDS"]
[]
[null,null,null,null,null,null,null,null,null,null,null,null,null,null,"TOTAL"]
[null,null,null,null,null,null,"FORMS NO (S)","NO. OF","NO OF","TOTAL ANNUAL","HOURS","TOTAL ","NO. OF ","ANNUAL ","RECORD-"]
["SECTION OF","DESCRIPTION",null,null,null,null,"(If \"none\"","RESPONDENTS","RESPONSES","RESPONSES","PER  ","HOURS","RECORD-","HOURS PER","KEEPING HOURS"]
["REGS.",null,null,null,null,null,"so state)",null,"PER ","(Col. D x E)","RESPONSE","(Col. F x G)","KEEPERS","RECORD-","(Col. I x J)"]
[null,null,null,null,null,null,null,null,"RESPONDENT",null,null,null,null,"KEEPER"]
["(A)","(B)",null,null,null,null,"(C)","(D)","(E)","(F)","(G)","(H)","(I)","(J)","(K)"]
[null,null,null,null,null,null,null,null,null,{"$f":"SUM(H1396*I1396)","v":0},null,{"$f":"SUM(J1396*K1396)","v":0},null,null,{"$f":"SUM(M1396*N1396)","v":0}]
[null,null,null,null,null,null,null,null,null,0,null,0,null,null,0]
[null,null,null,null,null,null,null,null,null,0,null,0,null,null,0]
[null,null,null,null,null,null,null,null,null,0,null,0,null,null,0]
[null,null,null,null,null,null,null,null,null,0,null,0,null,null,0]
[null,null,null,null,null,null,null,null,null,0,null,0,null,null,0]
[null,"SUBTOTAL",null,null,null,null,null,null,null,{"$f":"SUM(J1396:J1401)","v":0},null,{"$f":"SUM(L1396:L1401)","v":0},{"$f":"SUM(M1396:M1401)","v":0},null,{"$f":"SUM(O1396:O1401)","v":0}]
[]
[]
[]
["INSTRUCTIONS:  Use this form when a single information collection document involves multiple reporting and recordkeeping requirements.  The totals of the figures in cols. should be entered in item 13 of OMB-83-1:                  cols. (D) &/or (I) = 13a (respondent is only counted once); cols. F & I = 13b;         cols. H & K = 13c.                                                                                                                                                                                                                                                                                                       (F)Total/(D)Total = (E)Average     (H)Total/(F)Total = (G)Average     (K)Total/(I)Total = (J)Average\nNOTE:  The columns will calculate automatically.  If Col. E's response is something other than annually, i.e., 1/6 years, list as \"1/6\" & decimal will display.    \n",null,null,null,null,null,null,null,"TITLE OF INFORMATION COLLECTION DOCUMENT",null,null,null,null,"OMB NO."]
[]
[null,null,null,null,null,null,null,null,null,null,null,null,null,"0581-"]
[]
[]
[null,null,null,null,null,null,null,null,null,null,null,null,null,"DATE PREPARED"]
[]
[]
[]
["IDENTIFICATION OF REPORTING OR RECORDKEEPING REQUIREMENT",null,null,null,null,null,null,"ANNUAL BURDEN"]
[]
[null,null,null,null,null,null,null,"REPORTS",null,null,null,null,"RECORDS"]
[]
[null,null,null,null,null,null,null,null,null,null,null,null,null,null,"TOTAL"]
[null,null,null,null,null,null,"FORMS NO (S)","NO. OF","NO OF","TOTAL ANNUAL","HOURS","TOTAL ","NO. OF ","ANNUAL ","RECORD-"]
["SECTION OF","DESCRIPTION",null,null,null,null,"(If \"none\"","RESPONDENTS","RESPONSES","RESPONSES","PER  ","HOURS","RECORD-","HOURS PER","KEEPING HOURS"]
["REGS.",null,null,null,null,null,"so state)",null,"PER ","(Col. D x E)","RESPONSE","(Col. F x G)","KEEPERS","RECORD-","(Col. I x J)"]
[null,null,null,null,null,null,null,null,"RESPONDENT",null,null,null,null,"KEEPER"]
["(A)","(B)",null,null,null,null,"(C)","(D)","(E)","(F)","(G)","(H)","(I)","(J)","(K)"]
[null,null,null,null,null,null,null,null,null,{"$f":"SUM(H1425*I1425)","v":0},null,{"$f":"SUM(J1425*K1425)","v":0},null,null,{"$f":"SUM(M1425*N1425)","v":0}]
[null,null,null,null,null,null,null,null,null,0,null,0,null,null,0]
[null,null,null,null,null,null,null,null,null,0,null,0,null,null,0]
[null,null,null,null,null,null,null,null,null,0,null,0,null,null,0]
[null,null,null,null,null,null,null,null,null,0,null,0,null,null,0]
[null,null,null,null,null,null,null,null,null,0,null,0,null,null,0]
[null,"SUBTOTAL",null,null,null,null,null,null,null,{"$f":"SUM(J1425:J1430)","v":0},null,{"$f":"SUM(L1425:L1430)","v":0},{"$f":"SUM(M1425:M1430)","v":0},null,{"$f":"SUM(O1425:O1430)","v":0}]
[]
[]
[]
["INSTRUCTIONS:  Use this form when a single information collection document involves multiple reporting and recordkeeping requirements.  The totals of the figures in cols. should be entered in item 13 of OMB-83-1:                  cols. (D) &/or (I) = 13a (respondent is only counted once); cols. F & I = 13b;         cols. H & K = 13c.                                                                                                                                                                                                                                                                                                       (F)Total/(D)Total = (E)Average     (H)Total/(F)Total = (G)Average     (K)Total/(I)Total = (J)Average\nNOTE:  The columns will calculate automatically.  If Col. E's response is something other than annually, i.e., 1/6 years, list as \"1/6\" & decimal will display.    \n",null,null,null,null,null,null,null,"TITLE OF INFORMATION COLLECTION DOCUMENT",null,null,null,null,"OMB NO."]
[]
[null,null,null,null,null,null,null,null,null,null,null,null,null,"0581-"]
[]
[]
[null,null,null,null,null,null,null,null,null,null,null,null,null,"DATE PREPARED"]
[]
[]
[]
["IDENTIFICATION OF REPORTING OR RECORDKEEPING REQUIREMENT",null,null,null,null,null,null,"ANNUAL BURDEN"]
[]
[null,null,null,null,null,null,null,"REPORTS",null,null,null,null,"RECORDS"]
[]
[null,null,null,null,null,null,null,null,null,null,null,null,null,null,"TOTAL"]
[null,null,null,null,null,null,"FORMS NO (S)","NO. OF","NO OF","TOTAL ANNUAL","HOURS","TOTAL ","NO. OF ","ANNUAL ","RECORD-"]
["SECTION OF","DESCRIPTION",null,null,null,null,"(If \"none\"","RESPONDENTS","RESPONSES","RESPONSES","PER  ","HOURS","RECORD-","HOURS PER","KEEPING HOURS"]
["REGS.",null,null,null,null,null,"so state)",null,"PER ","(Col. D x E)","RESPONSE","(Col. F x G)","KEEPERS","RECORD-","(Col. I x J)"]
[null,null,null,null,null,null,null,null,"RESPONDENT",null,null,null,null,"KEEPER"]
["(A)","(B)",null,null,null,null,"(C)","(D)","(E)","(F)","(G)","(H)","(I)","(J)","(K)"]
[null,null,null,null,null,null,null,null,null,{"$f":"SUM(H1454*I1454)","v":0},null,{"$f":"SUM(J1454*K1454)","v":0},null,null,{"$f":"SUM(M1454*N1454)","v":0}]
[null,null,null,null,null,null,null,null,null,0,null,0,null,null,0]
[null,null,null,null,null,null,null,null,null,0,null,0,null,null,0]
[null,null,null,null,null,null,null,null,null,0,null,0,null,null,0]
[null,null,null,null,null,null,null,null,null,0,null,0,null,null,0]
[null,null,null,null,null,null,null,null,null,0,null,0,null,null,0]
[null,"SUBTOTAL",null,null,null,null,null,null,null,{"$f":"SUM(J1454:J1459)","v":0},null,{"$f":"SUM(L1454:L1459)","v":0},{"$f":"SUM(M1454:M1459)","v":0},null,{"$f":"SUM(O1454:O1459)","v":0}]
[]
[]
[]
["INSTRUCTIONS:  Use this form when a single information collection document involves multiple reporting and recordkeeping requirements.  The totals of the figures in cols. should be entered in item 13 of OMB-83-1:                  cols. (D) &/or (I) = 13a (respondent is only counted once); cols. F & I = 13b;         cols. H & K = 13c.                                                                                                                                                                                                                                                                                                       (F)Total/(D)Total = (E)Average     (H)Total/(F)Total = (G)Average     (K)Total/(I)Total = (J)Average\nNOTE:  The columns will calculate automatically.  If Col. E's response is something other than annually, i.e., 1/6 years, list as \"1/6\" & decimal will display.    \n",null,null,null,null,null,null,null,"TITLE OF INFORMATION COLLECTION DOCUMENT",null,null,null,null,"OMB NO."]
[]
[null,null,null,null,null,null,null,null,null,null,null,null,null,"0581-"]
[]
[]
[null,null,null,null,null,null,null,null,null,null,null,null,null,"DATE PREPARED"]
[]
[]
[]
["IDENTIFICATION OF REPORTING OR RECORDKEEPING REQUIREMENT",null,null,null,null,null,null,"ANNUAL BURDEN"]
[]
[null,null,null,null,null,null,null,"REPORTS",null,null,null,null,"RECORDS"]
[]
[null,null,null,null,null,null,null,null,null,null,null,null,null,null,"TOTAL"]
[null,null,null,null,null,null,"FORMS NO (S)","NO. OF","NO OF","TOTAL ANNUAL","HOURS","TOTAL ","NO. OF ","ANNUAL ","RECORD-"]
["SECTION OF","DESCRIPTION",null,null,null,null,"(If \"none\"","RESPONDENTS","RESPONSES","RESPONSES","PER  ","HOURS","RECORD-","HOURS PER","KEEPING HOURS"]
["REGS.",null,null,null,null,null,"so state)",null,"PER ","(Col. D x E)","RESPONSE","(Col. F x G)","KEEPERS","RECORD-","(Col. I x J)"]
[null,null,null,null,null,null,null,null,"RESPONDENT",null,null,null,null,"KEEPER"]
["(A)","(B)",null,null,null,null,"(C)","(D)","(E)","(F)","(G)","(H)","(I)","(J)","(K)"]
[null,null,null,null,null,null,null,null,null,{"$f":"SUM(H1483*I1483)","v":0},null,{"$f":"SUM(J1483*K1483)","v":0},null,null,{"$f":"SUM(M1483*N1483)","v":0}]
[null,null,null,null,null,null,null,null,null,0,null,0,null,null,0]
[null,null,null,null,null,null,null,null,null,0,null,0,null,null,0]
[null,null,null,null,null,null,null,null,null,0,null,0,null,null,0]
[null,null,null,null,null,null,null,null,null,0,null,0,null,null,0]
[null,null,null,null,null,null,null,null,null,0,null,0,null,null,0]
[null,"SUBTOTAL",null,null,null,null,null,null,null,{"$f":"SUM(J1483:J1488)","v":0},null,{"$f":"SUM(L1483:L1488)","v":0},{"$f":"SUM(M1483:M1488)","v":0},null,{"$f":"SUM(O1483:O1488)","v":0}]
[]
[]
[]
["INSTRUCTIONS:  Use this form when a single information collection document involves multiple reporting and recordkeeping requirements.  The totals of the figures in cols. should be entered in item 13 of OMB-83-1:                  cols. (D) &/or (I) = 13a (respondent is only counted once); cols. F & I = 13b;         cols. H & K = 13c.                                                                                                                                                                                                                                                                                                       (F)Total/(D)Total = (E)Average     (H)Total/(F)Total = (G)Average     (K)Total/(I)Total = (J)Average\nNOTE:  The columns will calculate automatically.  If Col. E's response is something other than annually, i.e., 1/6 years, list as \"1/6\" & decimal will display.    \n",null,null,null,null,null,null,null,"TITLE OF INFORMATION COLLECTION DOCUMENT",null,null,null,null,"OMB NO."]
[]
[null,null,null,null,null,null,null,null,null,null,null,null,null,"0581-"]
[]
[]
[null,null,null,null,null,null,null,null,null,null,null,null,null,"DATE PREPARED"]
[]
[]
[]
["IDENTIFICATION OF REPORTING OR RECORDKEEPING REQUIREMENT",null,null,null,null,null,null,"ANNUAL BURDEN"]
[]
[null,null,null,null,null,null,null,"REPORTS",null,null,null,null,"RECORDS"]
[]
[null,null,null,null,null,null,null,null,null,null,null,null,null,null,"TOTAL"]
[null,null,null,null,null,null,"FORMS NO (S)","NO. OF","NO OF","TOTAL ANNUAL","HOURS","TOTAL ","NO. OF ","ANNUAL ","RECORD-"]
["SECTION OF","DESCRIPTION",null,null,null,null,"(If \"none\"","RESPONDENTS","RESPONSES","RESPONSES","PER  ","HOURS","RECORD-","HOURS PER","KEEPING HOURS"]
["REGS.",null,null,null,null,null,"so state)",null,"PER ","(Col. D x E)","RESPONSE","(Col. F x G)","KEEPERS","RECORD-","(Col. I x J)"]
[null,null,null,null,null,null,null,null,"RESPONDENT",null,null,null,null,"KEEPER"]
["(A)","(B)",null,null,null,null,"(C)","(D)","(E)","(F)","(G)","(H)","(I)","(J)","(K)"]
[null,null,null,null,null,null,null,null,null,{"$f":"SUM(H1512*I1512)","v":0},null,{"$f":"SUM(J1512*K1512)","v":0},null,null,{"$f":"SUM(M1512*N1512)","v":0}]
[null,null,null,null,null,null,null,null,null,0,null,0,null,null,0]
[null,null,null,null,null,null,null,null,null,0,null,0,null,null,0]
[null,null,null,null,null,null,null,null,null,0,null,0,null,null,0]
[null,null,null,null,null,null,null,null,null,0,null,0,null,null,0]
[null,null,null,null,null,null,null,null,null,0,null,0,null,null,0]
[null,"SUBTOTAL",null,null,null,null,null,null,null,{"$f":"SUM(J1512:J1517)","v":0},null,{"$f":"SUM(L1512:L1517)","v":0},{"$f":"SUM(M1512:M1517)","v":0},null,{"$f":"SUM(O1512:O1517)","v":0}]
[]
[]
[]
["INSTRUCTIONS:  Use this form when a single information collection document involves multiple reporting and recordkeeping requirements.  The totals of the figures in cols. should be entered in item 13 of OMB-83-1:                  cols. (D) &/or (I) = 13a (respondent is only counted once); cols. F & I = 13b;         cols. H & K = 13c.                                                                                                                                                                                                                                                                                                       (F)Total/(D)Total = (E)Average     (H)Total/(F)Total = (G)Average     (K)Total/(I)Total = (J)Average\nNOTE:  The columns will calculate automatically.  If Col. E's response is something other than annually, i.e., 1/6 years, list as \"1/6\" & decimal will display.    \n",null,null,null,null,null,null,null,"TITLE OF INFORMATION COLLECTION DOCUMENT",null,null,null,null,"OMB NO."]
[]
[null,null,null,null,null,null,null,null,null,null,null,null,null,"0581-"]
[]
[]
[null,null,null,null,null,null,null,null,null,null,null,null,null,"DATE PREPARED"]
[]
[]
[]
["IDENTIFICATION OF REPORTING OR RECORDKEEPING REQUIREMENT",null,null,null,null,null,null,"ANNUAL BURDEN"]
[]
[null,null,null,null,null,null,null,"REPORTS",null,null,null,null,"RECORDS"]
[]
[null,null,null,null,null,null,null,null,null,null,null,null,null,null,"TOTAL"]
[null,null,null,null,null,null,"FORMS NO (S)","NO. OF","NO OF","TOTAL ANNUAL","HOURS","TOTAL ","NO. OF ","ANNUAL ","RECORD-"]
["SECTION OF","DESCRIPTION",null,null,null,null,"(If \"none\"","RESPONDENTS","RESPONSES","RESPONSES","PER  ","HOURS","RECORD-","HOURS PER","KEEPING HOURS"]
["REGS.",null,null,null,null,null,"so state)",null,"PER ","(Col. D x E)","RESPONSE","(Col. F x G)","KEEPERS","RECORD-","(Col. I x J)"]
[null,null,null,null,null,null,null,null,"RESPONDENT",null,null,null,null,"KEEPER"]
["(A)","(B)",null,null,null,null,"(C)","(D)","(E)","(F)","(G)","(H)","(I)","(J)","(K)"]
[null,null,null,null,null,null,null,null,null,{"$f":"SUM(H1541*I1541)","v":0},null,{"$f":"SUM(J1541*K1541)","v":0},null,null,{"$f":"SUM(M1541*N1541)","v":0}]
[null,null,null,null,null,null,null,null,null,0,null,0,null,null,0]
[null,null,null,null,null,null,null,null,null,0,null,0,null,null,0]
[null,null,null,null,null,null,null,null,null,0,null,0,null,null,0]
[null,null,null,null,null,null,null,null,null,0,null,0,null,null,0]
[null,null,null,null,null,null,null,null,null,0,null,0,null,null,0]
[null,"SUBTOTAL",null,null,null,null,null,null,null,{"$f":"SUM(J1541:J1546)","v":0},null,{"$f":"SUM(L1541:L1546)","v":0},{"$f":"SUM(M1541:M1546)","v":0},null,{"$f":"SUM(O1541:O1546)","v":0}]
[]
[]
[]
["INSTRUCTIONS:  Use this form when a single information collection document involves multiple reporting and recordkeeping requirements.  The totals of the figures in cols. should be entered in item 13 of OMB-83-1:                  cols. (D) &/or (I) = 13a (respondent is only counted once); cols. F & I = 13b;         cols. H & K = 13c.                                                                                                                                                                                                                                                                                                       (F)Total/(D)Total = (E)Average     (H)Total/(F)Total = (G)Average     (K)Total/(I)Total = (J)Average\nNOTE:  The columns will calculate automatically.  If Col. E's response is something other than annually, i.e., 1/6 years, list as \"1/6\" & decimal will display.    \n",null,null,null,null,null,null,null,"TITLE OF INFORMATION COLLECTION DOCUMENT",null,null,null,null,"OMB NO."]
[]
[null,null,null,null,null,null,null,null,null,null,null,null,null,"0581-"]
[]
[]
[null,null,null,null,null,null,null,null,null,null,null,null,null,"DATE PREPARED"]
[]
[]
[]
["IDENTIFICATION OF REPORTING OR RECORDKEEPING REQUIREMENT",null,null,null,null,null,null,"ANNUAL BURDEN"]
[]
[null,null,null,null,null,null,null,"REPORTS",null,null,null,null,"RECORDS"]
[]
[null,null,null,null,null,null,null,null,null,null,null,null,null,null,"TOTAL"]
[null,null,null,null,null,null,"FORMS NO (S)","NO. OF","NO OF","TOTAL ANNUAL","HOURS","TOTAL ","NO. OF ","ANNUAL ","RECORD-"]
["SECTION OF","DESCRIPTION",null,null,null,null,"(If \"none\"","RESPONDENTS","RESPONSES","RESPONSES","PER  ","HOURS","RECORD-","HOURS PER","KEEPING HOURS"]
["REGS.",null,null,null,null,null,"so state)",null,"PER ","(Col. D x E)","RESPONSE","(Col. F x G)","KEEPERS","RECORD-","(Col. I x J)"]
[null,null,null,null,null,null,null,null,"RESPONDENT",null,null,null,null,"KEEPER"]
["(A)","(B)",null,null,null,null,"(C)","(D)","(E)","(F)","(G)","(H)","(I)","(J)","(K)"]
[null,null,null,null,null,null,null,null,null,{"$f":"SUM(H1570*I1570)","v":0},null,{"$f":"SUM(J1570*K1570)","v":0},null,null,{"$f":"SUM(M1570*N1570)","v":0}]
[null,null,null,null,null,null,null,null,null,0,null,0,null,null,0]
[null,null,null,null,null,null,null,null,null,0,null,0,null,null,0]
[null,null,null,null,null,null,null,null,null,0,null,0,null,null,0]
[null,null,null,null,null,null,null,null,null,0,null,0,null,null,0]
[null,null,null,null,null,null,null,null,null,0,null,0,null,null,0]
[null,"SUBTOTAL",null,null,null,null,null,null,null,{"$f":"SUM(J1570:J1575)","v":0},null,{"$f":"SUM(L1570:L1575)","v":0},{"$f":"SUM(M1570:M1575)","v":0},null,{"$f":"SUM(O1570:O1575)","v":0}]
[]
[]
[]
["INSTRUCTIONS:  Use this form when a single information collection document involves multiple reporting and recordkeeping requirements.  The totals of the figures in cols. should be entered in item 13 of OMB-83-1:                  cols. (D) &/or (I) = 13a (respondent is only counted once); cols. F & I = 13b;         cols. H & K = 13c.                                                                                                                                                                                                                                                                                                       (F)Total/(D)Total = (E)Average     (H)Total/(F)Total = (G)Average     (K)Total/(I)Total = (J)Average\nNOTE:  The columns will calculate automatically.  If Col. E's response is something other than annually, i.e., 1/6 years, list as \"1/6\" & decimal will display.    \n",null,null,null,null,null,null,null,"TITLE OF INFORMATION COLLECTION DOCUMENT",null,null,null,null,"OMB NO."]
[]
[null,null,null,null,null,null,null,null,null,null,null,null,null,"0581-"]
[]
[]
[null,null,null,null,null,null,null,null,null,null,null,null,null,"DATE PREPARED"]
[]
[]
[]
["IDENTIFICATION OF REPORTING OR RECORDKEEPING REQUIREMENT",null,null,null,null,null,null,"ANNUAL BURDEN"]
[]
[null,null,null,null,null,null,null,"REPORTS",null,null,null,null,"RECORDS"]
[]
[null,null,null,null,null,null,null,null,null,null,null,null,null,null,"TOTAL"]
[null,null,null,null,null,null,"FORMS NO (S)","NO. OF","NO OF","TOTAL ANNUAL","HOURS","TOTAL ","NO. OF ","ANNUAL ","RECORD-"]
["SECTION OF","DESCRIPTION",null,null,null,null,"(If \"none\"","RESPONDENTS","RESPONSES","RESPONSES","PER  ","HOURS","RECORD-","HOURS PER","KEEPING HOURS"]
["REGS.",null,null,null,null,null,"so state)",null,"PER ","(Col. D x E)","RESPONSE","(Col. F x G)","KEEPERS","RECORD-","(Col. I x J)"]
[null,null,null,null,null,null,null,null,"RESPONDENT",null,null,null,null,"KEEPER"]
["(A)","(B)",null,null,null,null,"(C)","(D)","(E)","(F)","(G)","(H)","(I)","(J)","(K)"]
[null,null,null,null,null,null,null,null,null,{"$f":"SUM(H1599*I1599)","v":0},null,{"$f":"SUM(J1599*K1599)","v":0},null,null,{"$f":"SUM(M1599*N1599)","v":0}]
[null,null,null,null,null,null,null,null,null,0,null,0,null,null,0]
[null,null,null,null,null,null,null,null,null,0,null,0,null,null,0]
[null,null,null,null,null,null,null,null,null,0,null,0,null,null,0]
[null,null,null,null,null,null,null,null,null,0,null,0,null,null,0]
[null,null,null,null,null,null,null,null,null,0,null,0,null,null,0]
[null,"SUBTOTAL",null,null,null,null,null,null,null,{"$f":"SUM(J1599:J1604)","v":0},null,{"$f":"SUM(L1599:L1604)","v":0},{"$f":"SUM(M1599:M1604)","v":0},null,{"$f":"SUM(O1599:O1604)","v":0}]
[]
[]
[]
["INSTRUCTIONS:  Use this form when a single information collection document involves multiple reporting and recordkeeping requirements.  The totals of the figures in cols. should be entered in item 13 of OMB-83-1:                  cols. (D) &/or (I) = 13a (respondent is only counted once); cols. F & I = 13b;         cols. H & K = 13c.                                                                                                                                                                                                                                                                                                       (F)Total/(D)Total = (E)Average     (H)Total/(F)Total = (G)Average     (K)Total/(I)Total = (J)Average\nNOTE:  The columns will calculate automatically.  If Col. E's response is something other than annually, i.e., 1/6 years, list as \"1/6\" & decimal will display.    \n",null,null,null,null,null,null,null,"TITLE OF INFORMATION COLLECTION DOCUMENT",null,null,null,null,"OMB NO."]
[]
[null,null,null,null,null,null,null,null,null,null,null,null,null,"0581-"]
[]
[]
[null,null,null,null,null,null,null,null,null,null,null,null,null,"DATE PREPARED"]
[]
[]
[]
["IDENTIFICATION OF REPORTING OR RECORDKEEPING REQUIREMENT",null,null,null,null,null,null,"ANNUAL BURDEN"]
[]
[null,null,null,null,null,null,null,"REPORTS",null,null,null,null,"RECORDS"]
[]
[null,null,null,null,null,null,null,null,null,null,null,null,null,null,"TOTAL"]
[null,null,null,null,null,null,"FORMS NO (S)","NO. OF","NO OF","TOTAL ANNUAL","HOURS","TOTAL ","NO. OF ","ANNUAL ","RECORD-"]
["SECTION OF","DESCRIPTION",null,null,null,null,"(If \"none\"","RESPONDENTS","RESPONSES","RESPONSES","PER  ","HOURS","RECORD-","HOURS PER","KEEPING HOURS"]
["REGS.",null,null,null,null,null,"so state)",null,"PER ","(Col. D x E)","RESPONSE","(Col. F x G)","KEEPERS","RECORD-","(Col. I x J)"]
[null,null,null,null,null,null,null,null,"RESPONDENT",null,null,null,null,"KEEPER"]
["(A)","(B)",null,null,null,null,"(C)","(D)","(E)","(F)","(G)","(H)","(I)","(J)","(K)"]
[null,null,null,null,null,null,null,null,null,{"$f":"SUM(H1628*I1628)","v":0},null,{"$f":"SUM(J1628*K1628)","v":0},null,null,{"$f":"SUM(M1628*N1628)","v":0}]
[null,null,null,null,null,null,null,null,null,0,null,0,null,null,0]
[null,null,null,null,null,null,null,null,null,0,null,0,null,null,0]
[null,null,null,null,null,null,null,null,null,0,null,0,null,null,0]
[null,null,null,null,null,null,null,null,null,0,null,0,null,null,0]
[null,null,null,null,null,null,null,null,null,0,null,0,null,null,0]
[null,"SUBTOTAL",null,null,null,null,null,null,null,{"$f":"SUM(J1628:J1633)","v":0},null,{"$f":"SUM(L1628:L1633)","v":0},{"$f":"SUM(M1628:M1633)","v":0},null,{"$f":"SUM(O1628:O1633)","v":0}]
[]
[]
[]
["INSTRUCTIONS:  Use this form when a single information collection document involves multiple reporting and recordkeeping requirements.  The totals of the figures in cols. should be entered in item 13 of OMB-83-1:                  cols. (D) &/or (I) = 13a (respondent is only counted once); cols. F & I = 13b;         cols. H & K = 13c.                                                                                                                                                                                                                                                                                                       (F)Total/(D)Total = (E)Average     (H)Total/(F)Total = (G)Average     (K)Total/(I)Total = (J)Average\nNOTE:  The columns will calculate automatically.  If Col. E's response is something other than annually, i.e., 1/6 years, list as \"1/6\" & decimal will display.    \n",null,null,null,null,null,null,null,"TITLE OF INFORMATION COLLECTION DOCUMENT",null,null,null,null,"OMB NO."]
[]
[null,null,null,null,null,null,null,null,null,null,null,null,null,"0581-"]
[]
[]
[null,null,null,null,null,null,null,null,null,null,null,null,null,"DATE PREPARED"]
[]
[]
[]
["IDENTIFICATION OF REPORTING OR RECORDKEEPING REQUIREMENT",null,null,null,null,null,null,"ANNUAL BURDEN"]
[]
[null,null,null,null,null,null,null,"REPORTS",null,null,null,null,"RECORDS"]
[]
[null,null,null,null,null,null,null,null,null,null,null,null,null,null,"TOTAL"]
[null,null,null,null,null,null,"FORMS NO (S)","NO. OF","NO OF","TOTAL ANNUAL","HOURS","TOTAL ","NO. OF ","ANNUAL ","RECORD-"]
["SECTION OF","DESCRIPTION",null,null,null,null,"(If \"none\"","RESPONDENTS","RESPONSES","RESPONSES","PER  ","HOURS","RECORD-","HOURS PER","KEEPING HOURS"]
["REGS.",null,null,null,null,null,"so state)",null,"PER ","(Col. D x E)","RESPONSE","(Col. F x G)","KEEPERS","RECORD-","(Col. I x J)"]
[null,null,null,null,null,null,null,null,"RESPONDENT",null,null,null,null,"KEEPER"]
["(A)","(B)",null,null,null,null,"(C)","(D)","(E)","(F)","(G)","(H)","(I)","(J)","(K)"]
[null,null,null,null,null,null,null,null,null,{"$f":"SUM(H1657*I1657)","v":0},null,{"$f":"SUM(J1657*K1657)","v":0},null,null,{"$f":"SUM(M1657*N1657)","v":0}]
[null,null,null,null,null,null,null,null,null,0,null,0,null,null,0]
[null,null,null,null,null,null,null,null,null,0,null,0,null,null,0]
[null,null,null,null,null,null,null,null,null,0,null,0,null,null,0]
[null,null,null,null,null,null,null,null,null,0,null,0,null,null,0]
[null,null,null,null,null,null,null,null,null,0,null,0,null,null,0]
[null,"SUBTOTAL",null,null,null,null,null,null,null,{"$f":"SUM(J1657:J1662)","v":0},null,{"$f":"SUM(L1657:L1662)","v":0},{"$f":"SUM(M1657:M1662)","v":0},null,{"$f":"SUM(O1657:O1662)","v":0}]
[]
[]
[]
["INSTRUCTIONS:  Use this form when a single information collection document involves multiple reporting and recordkeeping requirements.  The totals of the figures in cols. should be entered in item 13 of OMB-83-1:                  cols. (D) &/or (I) = 13a (respondent is only counted once); cols. F & I = 13b;         cols. H & K = 13c.                                                                                                                                                                                                                                                                                                       (F)Total/(D)Total = (E)Average     (H)Total/(F)Total = (G)Average     (K)Total/(I)Total = (J)Average\nNOTE:  The columns will calculate automatically.  If Col. E's response is something other than annually, i.e., 1/6 years, list as \"1/6\" & decimal will display.    \n",null,null,null,null,null,null,null,"TITLE OF INFORMATION COLLECTION DOCUMENT",null,null,null,null,"OMB NO."]
[]
[null,null,null,null,null,null,null,null,null,null,null,null,null,"0581-"]
[]
[]
[null,null,null,null,null,null,null,null,null,null,null,null,null,"DATE PREPARED"]
[]
[]
[]
["IDENTIFICATION OF REPORTING OR RECORDKEEPING REQUIREMENT",null,null,null,null,null,null,"ANNUAL BURDEN"]
[]
[null,null,null,null,null,null,null,"REPORTS",null,null,null,null,"RECORDS"]
[]
[null,null,null,null,null,null,null,null,null,null,null,null,null,null,"TOTAL"]
[null,null,null,null,null,null,"FORMS NO (S)","NO. OF","NO OF","TOTAL ANNUAL","HOURS","TOTAL ","NO. OF ","ANNUAL ","RECORD-"]
["SECTION OF","DESCRIPTION",null,null,null,null,"(If \"none\"","RESPONDENTS","RESPONSES","RESPONSES","PER  ","HOURS","RECORD-","HOURS PER","KEEPING HOURS"]
["REGS.",null,null,null,null,null,"so state)",null,"PER ","(Col. D x E)","RESPONSE","(Col. F x G)","KEEPERS","RECORD-","(Col. I x J)"]
[null,null,null,null,null,null,null,null,"RESPONDENT",null,null,null,null,"KEEPER"]
["(A)","(B)",null,null,null,null,"(C)","(D)","(E)","(F)","(G)","(H)","(I)","(J)","(K)"]
[null,null,null,null,null,null,null,null,null,{"$f":"SUM(H1686*I1686)","v":0},null,{"$f":"SUM(J1686*K1686)","v":0},null,null,{"$f":"SUM(M1686*N1686)","v":0}]
[null,null,null,null,null,null,null,null,null,0,null,0,null,null,0]
[null,null,null,null,null,null,null,null,null,0,null,0,null,null,0]
[null,null,null,null,null,null,null,null,null,0,null,0,null,null,0]
[null,null,null,null,null,null,null,null,null,0,null,0,null,null,0]
[null,null,null,null,null,null,null,null,null,0,null,0,null,null,0]
[null,"SUBTOTAL",null,null,null,null,null,null,null,{"$f":"SUM(J1686:J1691)","v":0},null,{"$f":"SUM(L1686:L1691)","v":0},{"$f":"SUM(M1686:M1691)","v":0},null,{"$f":"SUM(O1686:O1691)","v":0}]
[]
[]
[]
["INSTRUCTIONS:  Use this form when a single information collection document involves multiple reporting and recordkeeping requirements.  The totals of the figures in cols. should be entered in item 13 of OMB-83-1:                  cols. (D) &/or (I) = 13a (respondent is only counted once); cols. F & I = 13b;         cols. H & K = 13c.                                                                                                                                                                                                                                                                                                       (F)Total/(D)Total = (E)Average     (H)Total/(F)Total = (G)Average     (K)Total/(I)Total = (J)Average\nNOTE:  The columns will calculate automatically.  If Col. E's response is something other than annually, i.e., 1/6 years, list as \"1/6\" & decimal will display.    \n",null,null,null,null,null,null,null,"TITLE OF INFORMATION COLLECTION DOCUMENT",null,null,null,null,"OMB NO."]
[]
[null,null,null,null,null,null,null,null,null,null,null,null,null,"0581-"]
[]
[]
[null,null,null,null,null,null,null,null,null,null,null,null,null,"DATE PREPARED"]
[]
[]
[]
["IDENTIFICATION OF REPORTING OR RECORDKEEPING REQUIREMENT",null,null,null,null,null,null,"ANNUAL BURDEN"]
[]
[null,null,null,null,null,null,null,"REPORTS",null,null,null,null,"RECORDS"]
[]
[null,null,null,null,null,null,null,null,null,null,null,null,null,null,"TOTAL"]
[null,null,null,null,null,null,"FORMS NO (S)","NO. OF","NO OF","TOTAL ANNUAL","HOURS","TOTAL ","NO. OF ","ANNUAL ","RECORD-"]
["SECTION OF","DESCRIPTION",null,null,null,null,"(If \"none\"","RESPONDENTS","RESPONSES","RESPONSES","PER  ","HOURS","RECORD-","HOURS PER","KEEPING HOURS"]
["REGS.",null,null,null,null,null,"so state)",null,"PER ","(Col. D x E)","RESPONSE","(Col. F x G)","KEEPERS","RECORD-","(Col. I x J)"]
[null,null,null,null,null,null,null,null,"RESPONDENT",null,null,null,null,"KEEPER"]
["(A)","(B)",null,null,null,null,"(C)","(D)","(E)","(F)","(G)","(H)","(I)","(J)","(K)"]
[null,null,null,null,null,null,null,null,null,{"$f":"SUM(H1715*I1715)","v":0},null,{"$f":"SUM(J1715*K1715)","v":0},null,null,{"$f":"SUM(M1715*N1715)","v":0}]
[null,null,null,null,null,null,null,null,null,0,null,0,null,null,0]
[null,null,null,null,null,null,null,null,null,0,null,0,null,null,0]
[null,null,null,null,null,null,null,null,null,0,null,0,null,null,0]
[null,null,null,null,null,null,null,null,null,0,null,0,null,null,0]
[null,null,null,null,null,null,null,null,null,0,null,0,null,null,0]
[null,"SUBTOTAL",null,null,null,null,null,null,null,{"$f":"SUM(J1715:J1720)","v":0},null,{"$f":"SUM(L1715:L1720)","v":0},{"$f":"SUM(M1715:M1720)","v":0},null,{"$f":"SUM(O1715:O1720)","v":0}]
[]
[]
[]
["INSTRUCTIONS:  Use this form when a single information collection document involves multiple reporting and recordkeeping requirements.  The totals of the figures in cols. should be entered in item 13 of OMB-83-1:                  cols. (D) &/or (I) = 13a (respondent is only counted once); cols. F & I = 13b;         cols. H & K = 13c.                                                                                                                                                                                                                                                                                                       (F)Total/(D)Total = (E)Average     (H)Total/(F)Total = (G)Average     (K)Total/(I)Total = (J)Average\nNOTE:  The columns will calculate automatically.  If Col. E's response is something other than annually, i.e., 1/6 years, list as \"1/6\" & decimal will display.    \n",null,null,null,null,null,null,null,"TITLE OF INFORMATION COLLECTION DOCUMENT",null,null,null,null,"OMB NO."]
[]
[null,null,null,null,null,null,null,null,null,null,null,null,null,"0581-"]
[]
[]
[null,null,null,null,null,null,null,null,null,null,null,null,null,"DATE PREPARED"]
[]
[]
[]
["IDENTIFICATION OF REPORTING OR RECORDKEEPING REQUIREMENT",null,null,null,null,null,null,"ANNUAL BURDEN"]
[]
[null,null,null,null,null,null,null,"REPORTS",null,null,null,null,"RECORDS"]
[]
[null,null,null,null,null,null,null,null,null,null,null,null,null,null,"TOTAL"]
[null,null,null,null,null,null,"FORMS NO (S)","NO. OF","NO OF","TOTAL ANNUAL","HOURS","TOTAL ","NO. OF ","ANNUAL ","RECORD-"]
["SECTION OF","DESCRIPTION",null,null,null,null,"(If \"none\"","RESPONDENTS","RESPONSES","RESPONSES","PER  ","HOURS","RECORD-","HOURS PER","KEEPING HOURS"]
["REGS.",null,null,null,null,null,"so state)",null,"PER ","(Col. D x E)","RESPONSE","(Col. F x G)","KEEPERS","RECORD-","(Col. I x J)"]
[null,null,null,null,null,null,null,null,"RESPONDENT",null,null,null,null,"KEEPER"]
["(A)","(B)",null,null,null,null,"(C)","(D)","(E)","(F)","(G)","(H)","(I)","(J)","(K)"]
[null,null,null,null,null,null,null,null,null,{"$f":"SUM(H1744*I1744)","v":0},null,{"$f":"SUM(J1744*K1744)","v":0},null,null,{"$f":"SUM(M1744*N1744)","v":0}]
[null,null,null,null,null,null,null,null,null,0,null,0,null,null,0]
[null,null,null,null,null,null,null,null,null,0,null,0,null,null,0]
[null,null,null,null,null,null,null,null,null,0,null,0,null,null,0]
[null,null,null,null,null,null,null,null,null,0,null,0,null,null,0]
[null,null,null,null,null,null,null,null,null,0,null,0,null,null,0]
[null,"SUBTOTAL",null,null,null,null,null,null,null,{"$f":"SUM(J1744:J1749)","v":0},null,{"$f":"SUM(L1744:L1749)","v":0},{"$f":"SUM(M1744:M1749)","v":0},null,{"$f":"SUM(O1744:O1749)","v":0}]